Department Family,Entity,Date of Payment,Expense Type,Expense Area,Supplier,Voluntary & Community Sector,SME Class,Sole Trader,Transaction number,Narrative,Postal Code,Amount in Sterling,Grant?
Communities & Local Government,DCLG,02/01/2013,Agency Staff,Finance & Corporate Services,CAPITA RESOURCING LTD,,Large,,5106187376,Interim manager,SL6 1DP,"3,974.40",
Communities & Local Government,DCLG,02/01/2013,Agency Staff,Finance & Corporate Services,CAPITA RESOURCING LTD,,Large,,5106187624,Expenses,SL6 1DP,382.56,
Communities & Local Government,DCLG,02/01/2013,Agency Staff,Finance & Corporate Services,CAPITA RESOURCING LTD,,Large,,5106187624,Interim Manager,SL6 1DP,"7,077.56",
Communities & Local Government,DCLG,02/01/2013,Agency Staff,Localism,CAPITA RESOURCING LTD,,Large,,5106187267,Interim manager,SL6 1DP,"2,882.28",
Communities & Local Government,DCLG,02/01/2013,Agency Staff,Localism,CAPITA RESOURCING LTD,,Large,,5106187334,Expenses,SL6 1DP,9.84,
Communities & Local Government,DCLG,02/01/2013,Agency Staff,Localism,CAPITA RESOURCING LTD,,Large,,5106187334,Interim manager,SL6 1DP,"2,882.28",
Communities & Local Government,DCLG,02/01/2013,Agency Staff,Localism,CAPITA RESOURCING LTD,,Large,,5106187611,Expenses,SL6 1DP,7.44,
Communities & Local Government,DCLG,02/01/2013,Agency Staff,Localism,CAPITA RESOURCING LTD,,Large,,5106187611,Interim manager,SL6 1DP,"2,882.28",
Communities & Local Government,DCLG,02/01/2013,Agency Staff,Localism,MICHAEL PAGE INTERNATIONAL,,Large,,5106187690,Interim Manager,SL1 3SA,"4,687.50",
Communities & Local Government,DCLG,02/01/2013,Agency Staff,Localism,MICHAEL PAGE INTERNATIONAL,,Large,,5106187691,Interim Manager,SL1 3SA,"4,687.50",
Communities & Local Government,DCLG,02/01/2013,IT - Software Maintenance,Finance & Corporate Services,TRUSTMARQUE SOLUTIONS LTD,,Medium,,5106187659,Becrypt licence renewal - 400 licences,YO32 9WN,"4,848.00",
Communities & Local Government,DCLG,02/01/2013,Publishing,Finance & Corporate Services,DCLG GOVERNMENT PROCUREMENT CARD,,,,1000003717,Special labels,TN37 7GA,377.65,
Communities & Local Government,DCLG,02/01/2013,Software Licences,Finance & Corporate Services,PHOENIX SOFTWARE,,Large,,5106187669,Prophix licences&support to May 2013,YO42 1NS,"7,488.00",
Communities & Local Government,DCLG,03/01/2013,Agency Staff,Finance & Corporate Services,MANPOWER UK LTD,,Large,,5106187710,Temp information specialist,UB8 1AB,765.31,
Communities & Local Government,DCLG,03/01/2013,Fees,Finance & Corporate Services,MS DIANA BRIGHTMORE-ARMOUR,,,,2100225684,TRAVEL EXPENSES,,309.99,
Communities & Local Government,DCLG,03/01/2013,Fixed Maintenance,Neighbourhoods,E C HARRIS LLP,,Large,,5106187692,ERDF SWC LDU QS Services to Feb 14,N1 9AB,"1,254.00",
Communities & Local Government,DCLG,03/01/2013,Fixed Maintenance,Neighbourhoods,E C HARRIS LLP,,Large,,5106187693,ERDF SWC LDU QS Services to Feb 14,N1 9AB,"2,090.00",
Communities & Local Government,DCLG,03/01/2013,IT Maintenance,Finance & Corporate Services,COMPUTACENTER (UK) LTD,,Large,,5106187706,T2000 annual maintenance renewal,AL10 9TW,"3,255.99",
Communities & Local Government,DCLG,03/01/2013,Legal Fees,Finance & Corporate Services,SHARPE PRITCHARD,,Small,,5106187667,ICT Re-Let Legal Advice,WC1V 6HG,573.00,
Communities & Local Government,DCLG,03/01/2013,National Non Domestic Rates (NNDR) Payments,Localism,AVON & SOMERSET POLICE AUTHORITY,,,,5000217386,Grant Payable by Exchequer,TA1 4DY,"2,913,958.00",Yes
Communities & Local Government,DCLG,03/01/2013,National Non Domestic Rates (NNDR) Payments,Localism,AVON FIRE AUTHORITY,,,,5000217392,Grant Payable by Exchequer,BS1 6EU,"1,069,474.00",Yes
Communities & Local Government,DCLG,03/01/2013,National Non Domestic Rates (NNDR) Payments,Localism,BARKING & DAGENHAM LB,,Public Bodies,,5000217410,Grant Payable by Exchequer,RM10 7BY,"4,676,806.00",Yes
Communities & Local Government,DCLG,03/01/2013,National Non Domestic Rates (NNDR) Payments,Localism,BARNSLEY MBC,,Public Bodies,,5000217423,Grant Payable by Exchequer,S70 2AQ,"4,810,612.00",Yes
Communities & Local Government,DCLG,03/01/2013,National Non Domestic Rates (NNDR) Payments,Localism,BEDFORDSHIRE POLICE AUTH,,,,5000217467,Grant Payable by Exchequer,MK43 9AX,"1,313,595.00",Yes
Communities & Local Government,DCLG,03/01/2013,National Non Domestic Rates (NNDR) Payments,Localism,BEDS & LUTON FIRE & RESCUE SERVICE,,,,5000217460,Grant Payable by Exchequer,MK42 7NR,"532,077.00",Yes
Communities & Local Government,DCLG,03/01/2013,National Non Domestic Rates (NNDR) Payments,Localism,BIRMINGHAM CITY CNCL,,,,5000217485,Grant Payable by Exchequer,B3 3AB,"30,125,706.00",Yes
Communities & Local Government,DCLG,03/01/2013,National Non Domestic Rates (NNDR) Payments,Localism,BLACKBURN WITH DARWEN BC,,,,5000217497,Grant Payable by Exchequer,BB1 7DY,"3,602,774.00",Yes
Communities & Local Government,DCLG,03/01/2013,National Non Domestic Rates (NNDR) Payments,Localism,BLACKPOOL BC,,,,5000217506,Grant Payable by Exchequer,FY1 1NA,"3,843,923.00",Yes
Communities & Local Government,DCLG,03/01/2013,National Non Domestic Rates (NNDR) Payments,Localism,BOLTON MBC,,,,5000217519,Grant Payable by Exchequer,BL1 1RU,"5,580,216.00",Yes
Communities & Local Government,DCLG,03/01/2013,National Non Domestic Rates (NNDR) Payments,Localism,BRADFORD MBC,,,,5000217543,Grant Payable by Exchequer,BD1 1HX,"11,945,916.00",Yes
Communities & Local Government,DCLG,03/01/2013,National Non Domestic Rates (NNDR) Payments,Localism,BRENT LB,,,,5000217563,Grant Payable by Exchequer,HA9 9EZ,"7,242,066.00",Yes
Communities & Local Government,DCLG,03/01/2013,National Non Domestic Rates (NNDR) Payments,Localism,BRIGHTON & HOVE CITY COUNCIL,,,,5000217575,Grant Payable by Exchequer,BN3 2SR,"4,863,382.00",Yes
Communities & Local Government,DCLG,03/01/2013,National Non Domestic Rates (NNDR) Payments,Localism,BUCKINGHAMSHIRE CC,,,,5000217629,Grant Payable by Exchequer,HP20 1UD,"2,993,862.00",Yes
Communities & Local Government,DCLG,03/01/2013,National Non Domestic Rates (NNDR) Payments,Localism,BUCKS & MILTON KEYNES FIRE AUTH,,,,5000217623,Grant Payable by Exchequer,HP20 1BD,"507,762.00",Yes
Communities & Local Government,DCLG,03/01/2013,National Non Domestic Rates (NNDR) Payments,Localism,BURY MBC,,,,5000217703,Grant Payable by Exchequer,BL9 0SP,"2,945,692.00",Yes
Communities & Local Government,DCLG,03/01/2013,National Non Domestic Rates (NNDR) Payments,Localism,CALDERDALE MBC,,,,5000217704,Grant Payable by Exchequer,HX1 1YP,"3,590,418.00",Yes
Communities & Local Government,DCLG,03/01/2013,National Non Domestic Rates (NNDR) Payments,Localism,CAMBRIDGESHIRE COUNTY CNCL,,,,5000217707,Grant Payable by Exchequer,CB3 0AP,"5,275,467.00",Yes
Communities & Local Government,DCLG,03/01/2013,National Non Domestic Rates (NNDR) Payments,Localism,CAMBRIDGESHIRE POLICE AUT,,,,5000217706,Grant Payable by Exchequer,P18 8NP,"1,351,531.00",Yes
Communities & Local Government,DCLG,03/01/2013,National Non Domestic Rates (NNDR) Payments,Localism,CAMBS & PETERBOROUGH FIRE AUTHORITY,,,,5000217705,Grant Payable by Exchequer,PE29 2NA,"607,020.00",Yes
Communities & Local Government,DCLG,03/01/2013,National Non Domestic Rates (NNDR) Payments,Localism,CHESHIRE FIRE AUTHORITY,,,,5000217717,Grant Payable by Exchequer,CW7 2FQ,"916,270.00",Yes
Communities & Local Government,DCLG,03/01/2013,National Non Domestic Rates (NNDR) Payments,Localism,CHESHIRE POLICE AUTHORITY,,,,5000217718,Grant Payable by Exchequer,CW7 9FX,"2,403,852.00",Yes
Communities & Local Government,DCLG,03/01/2013,National Non Domestic Rates (NNDR) Payments,Localism,CITY OF WAKEFIELD MDC,,,,5000217553,Grant Payable by Exchequer,WF1 2QW,"6,103,459.00",Yes
Communities & Local Government,DCLG,03/01/2013,National Non Domestic Rates (NNDR) Payments,Localism,CLEVELAND FIRE AUTHORITY,,,,5000217726,Grant Payable by Exchequer,TS25 5TB,"924,442.00",Yes
Communities & Local Government,DCLG,03/01/2013,National Non Domestic Rates (NNDR) Payments,Localism,CLEVELAND POLICE AUTHORITY,,,,5000217727,Grant Payable by Exchequer,TS1 2JX,"2,069,159.00",Yes
Communities & Local Government,DCLG,03/01/2013,National Non Domestic Rates (NNDR) Payments,Localism,CO DURHAM & DARLINGTON FIRE AND RES,,,,5000217464,Grant Payable by Exchequer,DH1 5UE,"618,273.00",Yes
Communities & Local Government,DCLG,03/01/2013,National Non Domestic Rates (NNDR) Payments,Localism,CORNWALL COUNCIL,,,,5000217880,Grant Payable by Exchequer,TR1 3AY,"9,621,134.00",Yes
Communities & Local Government,DCLG,03/01/2013,National Non Domestic Rates (NNDR) Payments,Localism,COVENTRY CITY CNCL,,,,5000217732,Grant Payable by Exchequer,CV1 2QL,"6,946,353.00",Yes
Communities & Local Government,DCLG,03/01/2013,National Non Domestic Rates (NNDR) Payments,Localism,CROYDON LB,,,,5000217735,Grant Payable by Exchequer,CR9 3JS,"5,405,522.00",Yes
Communities & Local Government,DCLG,03/01/2013,National Non Domestic Rates (NNDR) Payments,Localism,CUMBRIA COUNTY CNCL,,,,5000217736,Grant Payable by Exchequer,CA3 8NA,"7,134,371.00",Yes
Communities & Local Government,DCLG,03/01/2013,National Non Domestic Rates (NNDR) Payments,Localism,CUMBRIA POLICE AUTHORITY,,,,5000217737,Grant Payable by Exchequer,CA10 2AU,"1,624,252.00",Yes
Communities & Local Government,DCLG,03/01/2013,National Non Domestic Rates (NNDR) Payments,Localism,DARLINGTON BC,,,,5000217368,Grant Payable by Exchequer,TS19 1JA,"1,820,518.00",Yes
Communities & Local Government,DCLG,03/01/2013,National Non Domestic Rates (NNDR) Payments,Localism,DERBY CITY CNCL,,,,5000217384,Grant Payable by Exchequer,DE1 2FS,"4,921,271.00",Yes
Communities & Local Government,DCLG,03/01/2013,National Non Domestic Rates (NNDR) Payments,Localism,DERBYSHIRE COUNTYCOUNCIL,,,,5000217401,Grant Payable by Exchequer,DE4 3AH,"9,161,877.00",Yes
Communities & Local Government,DCLG,03/01/2013,National Non Domestic Rates (NNDR) Payments,Localism,DERBYSHIRE FIRE AUTHORITY,,,,5000217391,Grant Payable by Exchequer,DE55 1RH,"860,486.00",Yes
Communities & Local Government,DCLG,03/01/2013,National Non Domestic Rates (NNDR) Payments,Localism,DERBYSHIRE POLICE AUTHORITY,,,,5000217396,Grant Payable by Exchequer,DE5 3RS,"2,075,226.00",Yes
Communities & Local Government,DCLG,03/01/2013,National Non Domestic Rates (NNDR) Payments,Localism,DEVON & CORNWALL POLICE A,,,,5000217413,Grant Payable by Exchequer,EX2 5YT,"3,277,670.00",Yes
Communities & Local Government,DCLG,03/01/2013,National Non Domestic Rates (NNDR) Payments,Localism,DEVON & SOMERSET FIRE & RESCUE SERV,,,,5000217426,Grant Payable by Exchequer,EX3 0NW,"1,518,303.00",Yes
Communities & Local Government,DCLG,03/01/2013,National Non Domestic Rates (NNDR) Payments,Localism,DEVON COUNTY CNCL,,,,5000217419,Grant Payable by Exchequer,EX2 4QJ,"8,358,697.00",Yes
Communities & Local Government,DCLG,03/01/2013,National Non Domestic Rates (NNDR) Payments,Localism,DONCASTER MBC,,,,5000217432,Grant Payable by Exchequer,DN1 3QA,"6,327,297.00",Yes
Communities & Local Government,DCLG,03/01/2013,National Non Domestic Rates (NNDR) Payments,Localism,DORSET COUNTY CNCL,,,,5000217435,Grant Payable by Exchequer,DT1 1XJ,"3,063,676.00",Yes
Communities & Local Government,DCLG,03/01/2013,National Non Domestic Rates (NNDR) Payments,Localism,DORSET FIRE AUTHORITY,,,,5000217440,Grant Payable by Exchequer,DT1 1FB,"537,657.00",Yes
Communities & Local Government,DCLG,03/01/2013,National Non Domestic Rates (NNDR) Payments,Localism,DORSET POLICE AUTHORITY,,,,5000217447,Grant Payable by Exchequer,DT2 8DZ,"994,026.00",Yes
Communities & Local Government,DCLG,03/01/2013,National Non Domestic Rates (NNDR) Payments,Localism,DUDLEY MBC,,,,5000217459,Grant Payable by Exchequer,DY1 1HF,"5,672,332.00",Yes
Communities & Local Government,DCLG,03/01/2013,National Non Domestic Rates (NNDR) Payments,Localism,DURHAM COUNTY COUNCIL,,,,5000217881,Grant Payable by Exchequer,DH1 5UE,"10,402,824.00",Yes
Communities & Local Government,DCLG,03/01/2013,National Non Domestic Rates (NNDR) Payments,Localism,DURHAM POLICE AUTHORITY,,,,5000217470,Grant Payable by Exchequer,DH1 5TT,"1,977,776.00",Yes
Communities & Local Government,DCLG,03/01/2013,National Non Domestic Rates (NNDR) Payments,Localism,EAST RIDING OF YORKS,,,,5000217532,Grant Payable by Exchequer,HU17 9AB,"4,535,587.00",Yes
Communities & Local Government,DCLG,03/01/2013,National Non Domestic Rates (NNDR) Payments,Localism,EAST SUSSEX COUNTY CNCL,,,,5000217544,Grant Payable by Exchequer,BN7 1SF,"5,332,634.00",Yes
Communities & Local Government,DCLG,03/01/2013,National Non Domestic Rates (NNDR) Payments,Localism,EAST SUSSEX FIRE & RESCUE SERVICE,,,,5000217549,Grant Payable by Exchequer,BN21 1EU,"675,741.00",Yes
Communities & Local Government,DCLG,03/01/2013,National Non Domestic Rates (NNDR) Payments,Localism,ENFIELD LB,,,,5000217580,Grant Payable by Exchequer,EN1 3XF,"5,839,705.00",Yes
Communities & Local Government,DCLG,03/01/2013,National Non Domestic Rates (NNDR) Payments,Localism,ESSEX COUNTY CNCL,,,,5000217604,Grant Payable by Exchequer,CM1 1JZ,"12,804,762.00",Yes
Communities & Local Government,DCLG,03/01/2013,National Non Domestic Rates (NNDR) Payments,Localism,ESSEX FIRE AUTHORITY,,,,5000217608,Grant Payable by Exchequer,CM8 3HB,"1,592,478.00",Yes
Communities & Local Government,DCLG,03/01/2013,National Non Domestic Rates (NNDR) Payments,Localism,ESSEX POLICE AUTHORITY,,,,5000217614,Grant Payable by Exchequer,CM2 6DA,"2,964,211.00",Yes
Communities & Local Government,DCLG,03/01/2013,National Non Domestic Rates (NNDR) Payments,Localism,GATESHEAD MBC,,,,5000217649,Grant Payable by Exchequer,NE8 1HH,"4,638,777.00",Yes
Communities & Local Government,DCLG,03/01/2013,National Non Domestic Rates (NNDR) Payments,Localism,GLOUCESTERSHIRE COUNTY CNCL,,,,5000217661,Grant Payable by Exchequer,GL1 2TG,"6,113,240.00",Yes
Communities & Local Government,DCLG,03/01/2013,National Non Domestic Rates (NNDR) Payments,Localism,GLOUCESTERSHIRE POLICE AUTHORITY,,,,5000217752,Grant Payable by Exchequer,GL2 2AN,"1,034,198.00",Yes
Communities & Local Government,DCLG,03/01/2013,National Non Domestic Rates (NNDR) Payments,Localism,GREATER LONDON AUTHORITY,,,,5000217657,Grant Payable by Exchequer,SE10 1AJ,"39,818,980.00",Yes
Communities & Local Government,DCLG,03/01/2013,National Non Domestic Rates (NNDR) Payments,Localism,GREATER LONDON AUTHORITY-FIRE,,,,5000217876,Grant Payable by Exchequer,SE1 2AA,"12,072,518.00",Yes
Communities & Local Government,DCLG,03/01/2013,National Non Domestic Rates (NNDR) Payments,Localism,GREATER MANCHESTER FIRE,,,,5000217585,Grant Payable by Exchequer,M27 2US,"3,126,071.00",Yes
Communities & Local Government,DCLG,03/01/2013,National Non Domestic Rates (NNDR) Payments,Localism,GREATER MANCHESTER POL AUTH,,,,5000217590,Grant Payable by Exchequer,M16 0RE,"9,774,320.00",Yes
Communities & Local Government,DCLG,03/01/2013,National Non Domestic Rates (NNDR) Payments,Localism,GREENWICH LB,,,,5000217764,Grant Payable by Exchequer,SE18 6RA,"7,220,142.00",Yes
Communities & Local Government,DCLG,03/01/2013,National Non Domestic Rates (NNDR) Payments,Localism,HALTON BC,,,,5000217774,Grant Payable by Exchequer,WA8 7QF,"2,928,008.00",Yes
Communities & Local Government,DCLG,03/01/2013,National Non Domestic Rates (NNDR) Payments,Localism,HAMPSHIRE COUNTY COUNCIL,,,,5000217779,Grant Payable by Exchequer,SO23 8UB,"8,259,415.00",Yes
Communities & Local Government,DCLG,03/01/2013,National Non Domestic Rates (NNDR) Payments,Localism,HAMPSHIRE FIRE & RESCUE AUTHORITY,,,,5000217782,Grant Payable by Exchequer,SO23 8UB,"1,447,396.00",Yes
Communities & Local Government,DCLG,03/01/2013,National Non Domestic Rates (NNDR) Payments,Localism,HAMPSHIRE POLICE AUTHORITY,,,,5000217783,Grant Payable by Exchequer,SO23 8UB,"3,374,229.00",Yes
Communities & Local Government,DCLG,03/01/2013,National Non Domestic Rates (NNDR) Payments,Localism,HARINGEY LB,,,,5000217789,Grant Payable by Exchequer,N22 7TR,"6,699,837.00",Yes
Communities & Local Government,DCLG,03/01/2013,National Non Domestic Rates (NNDR) Payments,Localism,HARROW LB,,,,5000217803,Grant Payable by Exchequer,HA1 2UZ,"3,131,092.00",Yes
Communities & Local Government,DCLG,03/01/2013,National Non Domestic Rates (NNDR) Payments,Localism,HARTLEPOOL BOROUGH COUNCIL,,,,5000217809,Grant Payable by Exchequer,TS24 7BT,"2,258,926.00",Yes
Communities & Local Government,DCLG,03/01/2013,National Non Domestic Rates (NNDR) Payments,Localism,HEREFORD WORCESTER FIRE BRIGADE,,,,5000217821,Grant Payable by Exchequer,WR1 2HQ,"517,396.00",Yes
Communities & Local Government,DCLG,03/01/2013,National Non Domestic Rates (NNDR) Payments,Localism,HEREFORDSHIRE DISTRICT COUNCIL,,,,5000217824,Grant Payable by Exchequer,HR1 1SH,"2,638,080.00",Yes
Communities & Local Government,DCLG,03/01/2013,National Non Domestic Rates (NNDR) Payments,Localism,HERTFORDSHIRE COUNTY CNCL,,,,5000217827,Grant Payable by Exchequer,SG13 9BD,"8,865,865.00",Yes
Communities & Local Government,DCLG,03/01/2013,National Non Domestic Rates (NNDR) Payments,Localism,HERTFORDSHIRE POLICE AUTHORITY,,,,5000217886,Grant Payable by Exchequer,AL8 6XF,"2,026,752.00",Yes
Communities & Local Government,DCLG,03/01/2013,National Non Domestic Rates (NNDR) Payments,Localism,HULL CITY COUNCIL,,,,5000217431,Grant Payable by Exchequer,HU1 2AA,"6,847,188.00",Yes
Communities & Local Government,DCLG,03/01/2013,National Non Domestic Rates (NNDR) Payments,Localism,HUMBERSIDE FIRE & RESCUE SERVICE,,,,5000217843,Grant Payable by Exchequer,HU4 7BB,"1,216,743.00",Yes
Communities & Local Government,DCLG,03/01/2013,National Non Domestic Rates (NNDR) Payments,Localism,HUMBERSIDE POLICE,,,,5000217845,Grant Payable by Exchequer,HU5 5SF,"2,485,367.00",Yes
Communities & Local Government,DCLG,03/01/2013,National Non Domestic Rates (NNDR) Payments,Localism,ISLE OF WIGHT CNCL,,,,5000217371,Grant Payable by Exchequer,PO30 1UD,"2,804,976.00",Yes
Communities & Local Government,DCLG,03/01/2013,National Non Domestic Rates (NNDR) Payments,Localism,ISLES OF SCILLY COUNCIL,,,,5000217383,Grant Payable by Exchequer,TR21 0LW,"122,530.00",Yes
Communities & Local Government,DCLG,03/01/2013,National Non Domestic Rates (NNDR) Payments,Localism,KENT & MEDWAY TOWNS FIRE AUTHORITY,,,,5000217406,Grant Payable by Exchequer,ME15 6XB,"1,388,774.00",Yes
Communities & Local Government,DCLG,03/01/2013,National Non Domestic Rates (NNDR) Payments,Localism,KENT COUNTY CNCL,,,,5000217402,Grant Payable by Exchequer,ME14 1XQ,"14,139,617.00",Yes
Communities & Local Government,DCLG,03/01/2013,National Non Domestic Rates (NNDR) Payments,Localism,KENT POLICE AUTHORITY,,,,5000217412,Grant Payable by Exchequer,ME15 9BZ,"3,673,735.00",Yes
Communities & Local Government,DCLG,03/01/2013,National Non Domestic Rates (NNDR) Payments,Localism,KIRKLEES MBC,,,,5000217445,Grant Payable by Exchequer,HD1 2YU,"6,993,856.00",Yes
Communities & Local Government,DCLG,03/01/2013,National Non Domestic Rates (NNDR) Payments,Localism,KNOWSLEY MBC,,,,5000217450,Grant Payable by Exchequer,L36 9YZ,"5,147,058.00",Yes
Communities & Local Government,DCLG,03/01/2013,National Non Domestic Rates (NNDR) Payments,Localism,LANCASHIRE COMBINED FIRE AUTHORITY,,,,5000217468,Grant Payable by Exchequer,PR2 3LH,"1,494,962.00",Yes
Communities & Local Government,DCLG,03/01/2013,National Non Domestic Rates (NNDR) Payments,Localism,LANCASHIRE COUNTY CNCL,,,,5000217462,Grant Payable by Exchequer,PR1 8RD,"14,767,915.00",Yes
Communities & Local Government,DCLG,03/01/2013,National Non Domestic Rates (NNDR) Payments,Localism,LANCASHIRE POLICE AUTHORITY,,,,5000217474,Grant Payable by Exchequer,PR1 OLD,"4,158,211.00",Yes
Communities & Local Government,DCLG,03/01/2013,National Non Domestic Rates (NNDR) Payments,Localism,LEICESTER CITY CNCL,,,,5000217492,Grant Payable by Exchequer,LE1 6ZG,"8,374,020.00",Yes
Communities & Local Government,DCLG,03/01/2013,National Non Domestic Rates (NNDR) Payments,Localism,LEICESTERSHIRE COUNTY CNCL,,,,5000217502,Grant Payable by Exchequer,LE3 8RB,"4,865,545.00",Yes
Communities & Local Government,DCLG,03/01/2013,National Non Domestic Rates (NNDR) Payments,Localism,LEICESTERSHIRE POLICE AUTHORITY,,,,5000217500,Grant Payable by Exchequer,LE99 1A2,"2,160,786.00",Yes
Communities & Local Government,DCLG,03/01/2013,National Non Domestic Rates (NNDR) Payments,Localism,LEICS LEICESTERSHIRE RUTLAND CFA,,,,5000217494,Grant Payable by Exchequer,LE3 8HD,"879,094.00",Yes
Communities & Local Government,DCLG,03/01/2013,National Non Domestic Rates (NNDR) Payments,Localism,LEWISHAM LB,,,,5000217514,Grant Payable by Exchequer,SE6 4RU,"8,122,216.00",Yes
Communities & Local Government,DCLG,03/01/2013,National Non Domestic Rates (NNDR) Payments,Localism,LINCOLNSHIRE COUNTY CNCL,,,,5000217539,Grant Payable by Exchequer,LN1 1YT,"9,389,788.00",Yes
Communities & Local Government,DCLG,03/01/2013,National Non Domestic Rates (NNDR) Payments,Localism,LINCOLNSHIRE POLICE AUTH,,,,5000217533,Grant Payable by Exchequer,LN5 7PH,"1,127,365.00",Yes
Communities & Local Government,DCLG,03/01/2013,National Non Domestic Rates (NNDR) Payments,Localism,LIVERPOOL CITY COUNCIL,,,,5000217545,Grant Payable by Exchequer,L2 2DH,"14,809,594.00",Yes
Communities & Local Government,DCLG,03/01/2013,National Non Domestic Rates (NNDR) Payments,Localism,LONDON BOROUGH OF HACKNEY,,,,5000217772,Grant Payable by Exchequer,E8 4RU,"9,764,556.00",Yes
Communities & Local Government,DCLG,03/01/2013,National Non Domestic Rates (NNDR) Payments,Localism,LONDON BOROUGH OF LAMBETH,,,,5000217456,Grant Payable by Exchequer,SW2 1RL,"9,608,517.00",Yes
Communities & Local Government,DCLG,03/01/2013,National Non Domestic Rates (NNDR) Payments,Localism,LONDON BOROUGH OF NEWHAM,,Large,,5000217773,Grant Payable by Exchequer,E16 2QU,"9,530,789.00",Yes
Communities & Local Government,DCLG,03/01/2013,National Non Domestic Rates (NNDR) Payments,Localism,LONDON BOROUGH OF REDBRIDGE,,,,5000217422,Grant Payable by Exchequer,IG1 1NN,"4,480,195.00",Yes
Communities & Local Government,DCLG,03/01/2013,National Non Domestic Rates (NNDR) Payments,Localism,LUTON BC,,,,5000217552,Grant Payable by Exchequer,LU1 1DX,"4,015,535.00",Yes
Communities & Local Government,DCLG,03/01/2013,National Non Domestic Rates (NNDR) Payments,Localism,MANCHESTER CITY CNCL,,,,5000217578,Grant Payable by Exchequer,M60 2JR,"15,396,135.00",Yes
Communities & Local Government,DCLG,03/01/2013,National Non Domestic Rates (NNDR) Payments,Localism,MEDWAY COUNCIL,,,,5000217603,Grant Payable by Exchequer,ME4 4TR,"3,762,368.00",Yes
Communities & Local Government,DCLG,03/01/2013,National Non Domestic Rates (NNDR) Payments,Localism,MERSEYSIDE FIRE & RESCUE SERVICE,,,,5000217622,Grant Payable by Exchequer,L30 4YD,"1,918,018.00",Yes
Communities & Local Government,DCLG,03/01/2013,National Non Domestic Rates (NNDR) Payments,Localism,MERSEYSIDE POLICE AUTH,,,,5000217628,Grant Payable by Exchequer,L69 1JD,"5,947,101.00",Yes
Communities & Local Government,DCLG,03/01/2013,National Non Domestic Rates (NNDR) Payments,Localism,MIDDLESBROUGH BC,,,,5000217651,Grant Payable by Exchequer,TS1 9GA,"3,805,216.00",Yes
Communities & Local Government,DCLG,03/01/2013,National Non Domestic Rates (NNDR) Payments,Localism,NEWCASTLE UPON TYNE DC,,,,5000217768,Grant Payable by Exchequer,NE99 1RD,"7,489,985.00",Yes
Communities & Local Government,DCLG,03/01/2013,National Non Domestic Rates (NNDR) Payments,Localism,NORFOLK COUNTY COUNCIL,,,,5000217776,Grant Payable by Exchequer,NR1 2DW,"11,572,243.00",Yes
Communities & Local Government,DCLG,03/01/2013,National Non Domestic Rates (NNDR) Payments,Localism,NORFOLK POLICE & CRIME COMMISSIONER,,,,5000217778,Grant Payable by Exchequer,NR18 0WW,"1,511,936.00",Yes
Communities & Local Government,DCLG,03/01/2013,National Non Domestic Rates (NNDR) Payments,Localism,NORTH EAST LINCOLN COUNCIL,,Public Bodies,,5000217787,Grant Payable by Exchequer,DN35 8LN,"3,225,291.00",Yes
Communities & Local Government,DCLG,03/01/2013,National Non Domestic Rates (NNDR) Payments,Localism,NORTH TYNESIDE MBC,,,,5000217802,Grant Payable by Exchequer,NE30 1AE,"3,944,605.00",Yes
Communities & Local Government,DCLG,03/01/2013,National Non Domestic Rates (NNDR) Payments,Localism,NORTH YORKSHIRE CC,,,,5000217808,Grant Payable by Exchequer,DL7 8AL,"5,441,919.00",Yes
Communities & Local Government,DCLG,03/01/2013,National Non Domestic Rates (NNDR) Payments,Localism,NORTH YORKSHIRE FIRE & RESCUE AUTH,,,,5000217811,Grant Payable by Exchequer,DL6 1AB,"594,641.00",Yes
Communities & Local Government,DCLG,03/01/2013,National Non Domestic Rates (NNDR) Payments,Localism,NORTH YORKSHIRE POLICE AUTHORITY,,,,5000217813,Grant Payable by Exchequer,DL7 9HA,"1,459,720.00",Yes
Communities & Local Government,DCLG,03/01/2013,National Non Domestic Rates (NNDR) Payments,Localism,NORTHAMPTONSHIRE COUNTY COUNCIL,,Public Bodies,,5000217819,Grant Payable by Exchequer,NN4 7DB,"7,480,769.00",Yes
Communities & Local Government,DCLG,03/01/2013,National Non Domestic Rates (NNDR) Payments,Localism,NORTHAMPTONSHIRE POLICE AUTH,,,,5000217822,Grant Payable by Exchequer,NN1 5DQ,"1,308,685.00",Yes
Communities & Local Government,DCLG,03/01/2013,National Non Domestic Rates (NNDR) Payments,Localism,NORTHUMBERLAND,,,,5000217882,Grant Payable by Exchequer,NE61 2EF,"5,679,693.00",Yes
Communities & Local Government,DCLG,03/01/2013,National Non Domestic Rates (NNDR) Payments,Localism,NORTHUMBRIA POLICE AUTH,,,,5000217826,Grant Payable by Exchequer,NE1 8DL,"5,595,311.00",Yes
Communities & Local Government,DCLG,03/01/2013,National Non Domestic Rates (NNDR) Payments,Localism,NOTTINGHAM CITY COUNCIL,,,,5000217832,Grant Payable by Exchequer,M33 0DJ,"8,064,138.00",Yes
Communities & Local Government,DCLG,03/01/2013,National Non Domestic Rates (NNDR) Payments,Localism,NOTTINGHAMSHIRE COUNTY CNCL,,,,5000217834,Grant Payable by Exchequer,NG1 4BU,"8,823,153.00",Yes
Communities & Local Government,DCLG,03/01/2013,National Non Domestic Rates (NNDR) Payments,Localism,NOTTINGHAMSHIRE POLICE AU,,,,5000217838,Grant Payable by Exchequer,NG5 8PP,"2,557,190.00",Yes
Communities & Local Government,DCLG,03/01/2013,National Non Domestic Rates (NNDR) Payments,Localism,NOTTS & CITY NOTTINGHAM FIRE AUTH,,,,5000217836,Grant Payable by Exchequer,NG5 8PD,"1,045,818.00",Yes
Communities & Local Government,DCLG,03/01/2013,National Non Domestic Rates (NNDR) Payments,Localism,OLDHAM MBC,,,,5000217846,Grant Payable by Exchequer,OL1 1UH,"5,365,404.00",Yes
Communities & Local Government,DCLG,03/01/2013,National Non Domestic Rates (NNDR) Payments,Localism,OXFORDSHIRE CC,,,,5000217366,Grant Payable by Exchequer,OX4 2GQ,"5,373,146.00",Yes
Communities & Local Government,DCLG,03/01/2013,National Non Domestic Rates (NNDR) Payments,Localism,PLYMOUTH CITY CNCL,,,,5000217382,Grant Payable by Exchequer,PL1 2AA,"5,013,293.00",Yes
Communities & Local Government,DCLG,03/01/2013,National Non Domestic Rates (NNDR) Payments,Localism,PORTSMOUTH CITY COUNCIL,,,,5000217395,Grant Payable by Exchequer,PO1 2AR,"4,014,226.00",Yes
Communities & Local Government,DCLG,03/01/2013,National Non Domestic Rates (NNDR) Payments,Localism,REDCAR & CLEVELAND BOROUGH COUNCIL,,,,5000217429,Grant Payable by Exchequer,TS6 9AR,"2,976,989.00",Yes
Communities & Local Government,DCLG,03/01/2013,National Non Domestic Rates (NNDR) Payments,Localism,ROCHDALE MBC,,,,5000217471,Grant Payable by Exchequer,OL16 1LQ,"5,000,068.00",Yes
Communities & Local Government,DCLG,03/01/2013,National Non Domestic Rates (NNDR) Payments,Localism,ROTHERHAM MBC,,,,5000217496,Grant Payable by Exchequer,S65 1UF,"5,373,037.00",Yes
Communities & Local Government,DCLG,03/01/2013,National Non Domestic Rates (NNDR) Payments,Localism,ROYAL BERKSHIRE FIRE AUTHORITY,,,,5000217473,Grant Payable by Exchequer,RG30 4FS,"718,818.00",Yes
Communities & Local Government,DCLG,03/01/2013,National Non Domestic Rates (NNDR) Payments,Localism,SALFORD CITY CNCL,,,,5000217542,Grant Payable by Exchequer,M27 5AW,"5,937,363.00",Yes
Communities & Local Government,DCLG,03/01/2013,National Non Domestic Rates (NNDR) Payments,Localism,SANDWELL MBC,,,,5000217548,Grant Payable by Exchequer,B69 3BS,"8,205,906.00",Yes
Communities & Local Government,DCLG,03/01/2013,National Non Domestic Rates (NNDR) Payments,Localism,SEFTON MBC,,,,5000217565,Grant Payable by Exchequer,L20 3NQ,"5,500,221.00",Yes
Communities & Local Government,DCLG,03/01/2013,National Non Domestic Rates (NNDR) Payments,Localism,SHEFFIELD CITY CNCL,,,,5000217581,Grant Payable by Exchequer,S1 1UR,"12,382,234.00",Yes
Communities & Local Government,DCLG,03/01/2013,National Non Domestic Rates (NNDR) Payments,Localism,SHROPSHIRE & WREKIN FIRE AUTHORITY,,,,5000217594,Grant Payable by Exchequer,SY1 2HJ,"352,446.00",Yes
Communities & Local Government,DCLG,03/01/2013,National Non Domestic Rates (NNDR) Payments,Localism,SHROPSHIRE COUNCIL,,Large,,5000217883,Grant Payable by Exchequer,SY2 6ND,"4,210,368.00",Yes
Communities & Local Government,DCLG,03/01/2013,National Non Domestic Rates (NNDR) Payments,Localism,SOMERSET COUNTY CNCL,,,,5000217613,Grant Payable by Exchequer,TA1 4DY,"5,848,210.00",Yes
Communities & Local Government,DCLG,03/01/2013,National Non Domestic Rates (NNDR) Payments,Localism,SOUTH TYNESIDE COUNCIL,,,,5000217751,Grant Payable by Exchequer,NE33 2RL,"3,943,924.00",Yes
Communities & Local Government,DCLG,03/01/2013,National Non Domestic Rates (NNDR) Payments,Localism,SOUTH YORKSHIRE FIRE & CD,,,,5000217754,Grant Payable by Exchequer,S1 3FG,"1,524,778.00",Yes
Communities & Local Government,DCLG,03/01/2013,National Non Domestic Rates (NNDR) Payments,Localism,SOUTH YORKSHIRE P A,,,,5000217755,Grant Payable by Exchequer,S3 8LY,"4,196,037.00",Yes
Communities & Local Government,DCLG,03/01/2013,National Non Domestic Rates (NNDR) Payments,Localism,SOUTHEND ON SEA BC,,,,5000217759,Grant Payable by Exchequer,SS2 6EP,"2,816,970.00",Yes
Communities & Local Government,DCLG,03/01/2013,National Non Domestic Rates (NNDR) Payments,Localism,SOUTHWARK LB,,,,5000217762,Grant Payable by Exchequer,SE1P 5LX,"10,115,143.00",Yes
Communities & Local Government,DCLG,03/01/2013,National Non Domestic Rates (NNDR) Payments,Localism,ST HELENS MBC,,,,5000217780,Grant Payable by Exchequer,WA10 1HP,"3,942,458.00",Yes
Communities & Local Government,DCLG,03/01/2013,National Non Domestic Rates (NNDR) Payments,Localism,STAFFORDSHIRE  FIRE & RESCUE SERV,,,,5000217791,Grant Payable by Exchequer,ST15 0BS,"908,968.00",Yes
Communities & Local Government,DCLG,03/01/2013,National Non Domestic Rates (NNDR) Payments,Localism,STAFFORDSHIRE COUNTY CNCL,,,,5000217788,Grant Payable by Exchequer,ST16 2LH,"7,809,213.00",Yes
Communities & Local Government,DCLG,03/01/2013,National Non Domestic Rates (NNDR) Payments,Localism,STAFFORDSHIRE POLICE AUTHORITY,,,,5000217795,Grant Payable by Exchequer,ST16 2NF,"2,228,356.00",Yes
Communities & Local Government,DCLG,03/01/2013,National Non Domestic Rates (NNDR) Payments,Localism,STOKE ON TRENT CITY COUNCIL,,,,5000217807,Grant Payable by Exchequer,ST4 1RJ,"5,764,577.00",Yes
Communities & Local Government,DCLG,03/01/2013,National Non Domestic Rates (NNDR) Payments,Localism,SUFFOLK COUNTY CNCL,,,,5000217817,Grant Payable by Exchequer,IP4 2JP,"8,244,911.00",Yes
Communities & Local Government,DCLG,03/01/2013,National Non Domestic Rates (NNDR) Payments,Localism,SUFFOLK POLICE AUTHORITY,,,,5000217823,Grant Payable by Exchequer,IP5 3QS,"1,236,404.00",Yes
Communities & Local Government,DCLG,03/01/2013,National Non Domestic Rates (NNDR) Payments,Localism,SUNDERLAND DC,,,,5000217825,Grant Payable by Exchequer,SR2 7DN,"6,904,959.00",Yes
Communities & Local Government,DCLG,03/01/2013,National Non Domestic Rates (NNDR) Payments,Localism,SURREY COUNTY CNCL,,,,5000217828,Grant Payable by Exchequer,KT1 2EA,"6,924,960.00",Yes
Communities & Local Government,DCLG,03/01/2013,National Non Domestic Rates (NNDR) Payments,Localism,SURREY POLICE AUTHORITY,,,,5000217374,Grant Payable by Exchequer,KT1 2EA,"1,662,226.00",Yes
Communities & Local Government,DCLG,03/01/2013,National Non Domestic Rates (NNDR) Payments,Localism,SUSSEX POLICE AUTHORITY,,,,5000217379,Grant Payable by Exchequer,PO19 1RG,"2,989,222.00",Yes
Communities & Local Government,DCLG,03/01/2013,National Non Domestic Rates (NNDR) Payments,Localism,SUTTON LB,,,,5000217387,Grant Payable by Exchequer,SM1 1EA,"2,409,620.00",Yes
Communities & Local Government,DCLG,03/01/2013,National Non Domestic Rates (NNDR) Payments,Localism,TAMESIDE MBC,,,,5000217407,Grant Payable by Exchequer,OL6 6DL,"4,687,612.00",Yes
Communities & Local Government,DCLG,03/01/2013,National Non Domestic Rates (NNDR) Payments,Localism,TELFORD & WREKIN DC,,,,5000217444,Grant Payable by Exchequer,TF3 4LF,"3,105,446.00",Yes
Communities & Local Government,DCLG,03/01/2013,National Non Domestic Rates (NNDR) Payments,Localism,THAMES VALLEY POLICE AUTHORITY,,,,5000217469,Grant Payable by Exchequer,OX5 2NX,"4,070,298.00",Yes
Communities & Local Government,DCLG,03/01/2013,National Non Domestic Rates (NNDR) Payments,Localism,TORBAY BC,,,,5000217503,Grant Payable by Exchequer,TQ1 3DR,"2,770,597.00",Yes
Communities & Local Government,DCLG,03/01/2013,National Non Domestic Rates (NNDR) Payments,Localism,TYNE & WEAR FIRE AUTHORITY,,,,5000217534,Grant Payable by Exchequer,SR2 7DN,"1,476,818.00",Yes
Communities & Local Government,DCLG,03/01/2013,National Non Domestic Rates (NNDR) Payments,Localism,W YORKSHIRE FIRE & RESCUE AUTH,,,,5000217856,Grant Payable by Exchequer,BD11 2DY,"2,441,623.00",Yes
Communities & Local Government,DCLG,03/01/2013,National Non Domestic Rates (NNDR) Payments,Localism,WALSALL MBC,,,,5000217559,Grant Payable by Exchequer,WS1 1TW,"6,018,666.00",Yes
Communities & Local Government,DCLG,03/01/2013,National Non Domestic Rates (NNDR) Payments,Localism,WALTHAM FOREST LB,,Large,,5000217566,Grant Payable by Exchequer,E17 4JF,"5,509,402.00",Yes
Communities & Local Government,DCLG,03/01/2013,National Non Domestic Rates (NNDR) Payments,Localism,WANDSWORTH LB,,,,5000217572,Grant Payable by Exchequer,SW18 2PU,"6,616,204.00",Yes
Communities & Local Government,DCLG,03/01/2013,National Non Domestic Rates (NNDR) Payments,Localism,WARWICKSHIRE COUNTY CNCL,,,,5000217589,Grant Payable by Exchequer,CV34 4RH,"4,869,209.00",Yes
Communities & Local Government,DCLG,03/01/2013,National Non Domestic Rates (NNDR) Payments,Localism,WARWICKSHIRE POLICE AUTHORITY,,,,5000217595,Grant Payable by Exchequer,CV35 7QB,"921,623.00",Yes
Communities & Local Government,DCLG,03/01/2013,National Non Domestic Rates (NNDR) Payments,Localism,WEST MERCIA POLICE AUTH,,,,5000217850,Grant Payable by Exchequer,WR5 2NP,"2,382,198.00",Yes
Communities & Local Government,DCLG,03/01/2013,National Non Domestic Rates (NNDR) Payments,Localism,WEST MIDLANDS FIRE & CIVIL DEFENCE,,,,5000217851,Grant Payable by Exchequer,B4 7DE,"3,336,639.00",Yes
Communities & Local Government,DCLG,03/01/2013,National Non Domestic Rates (NNDR) Payments,Localism,WEST MIDLANDS POLICE AUTH,,,,5000217852,Grant Payable by Exchequer,B4 6NQ,"9,949,230.00",Yes
Communities & Local Government,DCLG,03/01/2013,National Non Domestic Rates (NNDR) Payments,Localism,WEST SUSSEX CC,,,,5000217855,Grant Payable by Exchequer,PO19 1RG,"5,509,493.00",Yes
Communities & Local Government,DCLG,03/01/2013,National Non Domestic Rates (NNDR) Payments,Localism,WEST YORKSHIRE POLICE AUTHORITY,,,,5000217857,Grant Payable by Exchequer,WF1 3QP,"6,682,916.00",Yes
Communities & Local Government,DCLG,03/01/2013,National Non Domestic Rates (NNDR) Payments,Localism,WIGAN MBC,,,,5000217860,Grant Payable by Exchequer,WN1 1YD,"5,938,837.00",Yes
Communities & Local Government,DCLG,03/01/2013,National Non Domestic Rates (NNDR) Payments,Localism,WILTSHIRE & SWINDON FIRE AUTHORITY,,,,5000217861,Grant Payable by Exchequer,SN10 5PP,"448,387.00",Yes
Communities & Local Government,DCLG,03/01/2013,National Non Domestic Rates (NNDR) Payments,Localism,WILTSHIRE POLICE,,,,5000217862,Grant Payable by Exchequer,BA14 8JJ,"1,155,128.00",Yes
Communities & Local Government,DCLG,03/01/2013,National Non Domestic Rates (NNDR) Payments,Localism,WIRRAL MBC,,,,5000217865,Grant Payable by Exchequer,L41 6BU,"6,897,391.00",Yes
Communities & Local Government,DCLG,03/01/2013,National Non Domestic Rates (NNDR) Payments,Localism,WOLVERHAMPTON MBC,,,,5000217868,Grant Payable by Exchequer,WV1 1RL,"6,374,778.00",Yes
Communities & Local Government,DCLG,03/01/2013,National Non Domestic Rates (NNDR) Payments,Localism,WORCESTERSHIRE COUNTY COUNCIL,,,,5000217870,Grant Payable by Exchequer,WR5 2NP,"4,897,652.00",Yes
Communities & Local Government,DCLG,03/01/2013,NNDR Billing Authorities Receipts,Localism,BARKING & DAGENHAM LB,,Public Bodies,,5000217410,Grant Payable by Exchequer,RM10 7BY,"-2,600,370.00",Yes
Communities & Local Government,DCLG,03/01/2013,NNDR Billing Authorities Receipts,Localism,BARNSLEY MBC,,Public Bodies,,5000217423,Grant Payable by Exchequer,S70 2AQ,"-2,368,065.00",Yes
Communities & Local Government,DCLG,03/01/2013,NNDR Billing Authorities Receipts,Localism,BIRMINGHAM CITY CNCL,,,,5000217485,Grant Payable by Exchequer,B3 3AB,"-18,221,683.00",Yes
Communities & Local Government,DCLG,03/01/2013,NNDR Billing Authorities Receipts,Localism,BLACKBURN WITH DARWEN BC,,,,5000217497,Grant Payable by Exchequer,BB1 7DY,"-2,105,421.00",Yes
Communities & Local Government,DCLG,03/01/2013,NNDR Billing Authorities Receipts,Localism,BLACKPOOL BC,,,,5000217506,Grant Payable by Exchequer,FY1 1NA,"-2,241,867.00",Yes
Communities & Local Government,DCLG,03/01/2013,NNDR Billing Authorities Receipts,Localism,BOLTON MBC,,,,5000217519,Grant Payable by Exchequer,BL1 1RU,"-4,172,825.00",Yes
Communities & Local Government,DCLG,03/01/2013,NNDR Billing Authorities Receipts,Localism,BRADFORD MBC,,,,5000217543,Grant Payable by Exchequer,BD1 1HX,"-6,351,576.00",Yes
Communities & Local Government,DCLG,03/01/2013,NNDR Billing Authorities Receipts,Localism,BRENT LB,,,,5000217563,Grant Payable by Exchequer,HA9 9EZ,"-4,743,149.00",Yes
Communities & Local Government,DCLG,03/01/2013,NNDR Billing Authorities Receipts,Localism,BRIGHTON & HOVE CITY COUNCIL,,,,5000217575,Grant Payable by Exchequer,BN3 2SR,"-4,667,308.00",Yes
Communities & Local Government,DCLG,03/01/2013,NNDR Billing Authorities Receipts,Localism,BURY MBC,,,,5000217703,Grant Payable by Exchequer,BL9 0SP,"-2,437,420.00",Yes
Communities & Local Government,DCLG,03/01/2013,NNDR Billing Authorities Receipts,Localism,CALDERDALE MBC,,,,5000217704,Grant Payable by Exchequer,HX1 1YP,"-2,631,238.00",Yes
Communities & Local Government,DCLG,03/01/2013,NNDR Billing Authorities Receipts,Localism,CITY OF WAKEFIELD MDC,,,,5000217553,Grant Payable by Exchequer,WF1 2QW,"-5,596,156.00",Yes
Communities & Local Government,DCLG,03/01/2013,NNDR Billing Authorities Receipts,Localism,CORNWALL COUNCIL,,,,5000217880,Grant Payable by Exchequer,TR1 3AY,"-6,831,616.00",Yes
Communities & Local Government,DCLG,03/01/2013,NNDR Billing Authorities Receipts,Localism,COVENTRY CITY CNCL,,,,5000217732,Grant Payable by Exchequer,CV1 2QL,"-5,248,716.00",Yes
Communities & Local Government,DCLG,03/01/2013,NNDR Billing Authorities Receipts,Localism,CROYDON LB,,,,5000217735,Grant Payable by Exchequer,CR9 3JS,"-5,141,972.00",Yes
Communities & Local Government,DCLG,03/01/2013,NNDR Billing Authorities Receipts,Localism,DARLINGTON BC,,,,5000217368,Grant Payable by Exchequer,TS19 1JA,"-1,540,574.00",Yes
Communities & Local Government,DCLG,03/01/2013,NNDR Billing Authorities Receipts,Localism,DERBY CITY CNCL,,,,5000217384,Grant Payable by Exchequer,DE1 2FS,"-3,851,945.00",Yes
Communities & Local Government,DCLG,03/01/2013,NNDR Billing Authorities Receipts,Localism,DONCASTER MBC,,,,5000217432,Grant Payable by Exchequer,DN1 3QA,"-3,979,092.00",Yes
Communities & Local Government,DCLG,03/01/2013,NNDR Billing Authorities Receipts,Localism,DUDLEY MBC,,,,5000217459,Grant Payable by Exchequer,DY1 1HF,"-4,318,931.00",Yes
Communities & Local Government,DCLG,03/01/2013,NNDR Billing Authorities Receipts,Localism,DURHAM COUNTY COUNCIL,,,,5000217881,Grant Payable by Exchequer,DH1 5UE,"-5,144,179.00",Yes
Communities & Local Government,DCLG,03/01/2013,NNDR Billing Authorities Receipts,Localism,EAST RIDING OF YORKS,,,,5000217532,Grant Payable by Exchequer,HU17 9AB,"-3,910,739.00",Yes
Communities & Local Government,DCLG,03/01/2013,NNDR Billing Authorities Receipts,Localism,ENFIELD LB,,,,5000217580,Grant Payable by Exchequer,EN1 3XF,"-4,719,317.00",Yes
Communities & Local Government,DCLG,03/01/2013,NNDR Billing Authorities Receipts,Localism,GATESHEAD MBC,,,,5000217649,Grant Payable by Exchequer,NE8 1HH,"-3,825,332.00",Yes
Communities & Local Government,DCLG,03/01/2013,NNDR Billing Authorities Receipts,Localism,GREENWICH LB,,,,5000217764,Grant Payable by Exchequer,SE18 6RA,"-2,764,639.00",Yes
Communities & Local Government,DCLG,03/01/2013,NNDR Billing Authorities Receipts,Localism,HALTON BC,,,,5000217774,Grant Payable by Exchequer,WA8 7QF,"-2,326,123.00",Yes
Communities & Local Government,DCLG,03/01/2013,NNDR Billing Authorities Receipts,Localism,HARINGEY LB,,,,5000217789,Grant Payable by Exchequer,N22 7TR,"-2,909,112.00",Yes
Communities & Local Government,DCLG,03/01/2013,NNDR Billing Authorities Receipts,Localism,HARROW LB,,,,5000217803,Grant Payable by Exchequer,HA1 2UZ,"-2,170,183.00",Yes
Communities & Local Government,DCLG,03/01/2013,NNDR Billing Authorities Receipts,Localism,HARTLEPOOL BOROUGH COUNCIL,,,,5000217809,Grant Payable by Exchequer,TS24 7BT,"-1,300,539.00",Yes
Communities & Local Government,DCLG,03/01/2013,NNDR Billing Authorities Receipts,Localism,HEREFORDSHIRE DISTRICT COUNCIL,,,,5000217824,Grant Payable by Exchequer,HR1 1SH,"-2,073,689.00",Yes
Communities & Local Government,DCLG,03/01/2013,NNDR Billing Authorities Receipts,Localism,HULL CITY COUNCIL,,,,5000217431,Grant Payable by Exchequer,HU1 2AA,"-4,297,718.00",Yes
Communities & Local Government,DCLG,03/01/2013,NNDR Billing Authorities Receipts,Localism,ISLE OF WIGHT CNCL,,,,5000217371,Grant Payable by Exchequer,PO30 1UD,"-1,523,911.00",Yes
Communities & Local Government,DCLG,03/01/2013,NNDR Billing Authorities Receipts,Localism,ISLES OF SCILLY COUNCIL,,,,5000217383,Grant Payable by Exchequer,TR21 0LW,"-69,400.00",Yes
Communities & Local Government,DCLG,03/01/2013,NNDR Billing Authorities Receipts,Localism,KIRKLEES MBC,,,,5000217445,Grant Payable by Exchequer,HD1 2YU,"-4,855,366.00",Yes
Communities & Local Government,DCLG,03/01/2013,NNDR Billing Authorities Receipts,Localism,KNOWSLEY MBC,,,,5000217450,Grant Payable by Exchequer,L36 9YZ,"-1,853,840.00",Yes
Communities & Local Government,DCLG,03/01/2013,NNDR Billing Authorities Receipts,Localism,LEICESTER CITY CNCL,,,,5000217492,Grant Payable by Exchequer,LE1 6ZG,"-4,636,915.00",Yes
Communities & Local Government,DCLG,03/01/2013,NNDR Billing Authorities Receipts,Localism,LEWISHAM LB,,,,5000217514,Grant Payable by Exchequer,SE6 4RU,"-2,200,149.00",Yes
Communities & Local Government,DCLG,03/01/2013,NNDR Billing Authorities Receipts,Localism,LIVERPOOL CITY COUNCIL,,,,5000217545,Grant Payable by Exchequer,L2 2DH,"-8,796,965.00",Yes
Communities & Local Government,DCLG,03/01/2013,NNDR Billing Authorities Receipts,Localism,LONDON BOROUGH OF HACKNEY,,,,5000217772,Grant Payable by Exchequer,E8 4RU,"-3,883,504.00",Yes
Communities & Local Government,DCLG,03/01/2013,NNDR Billing Authorities Receipts,Localism,LONDON BOROUGH OF LAMBETH,,,,5000217456,Grant Payable by Exchequer,SW2 1RL,"-5,253,317.00",Yes
Communities & Local Government,DCLG,03/01/2013,NNDR Billing Authorities Receipts,Localism,LONDON BOROUGH OF NEWHAM,,Large,,5000217773,Grant Payable by Exchequer,E16 2QU,"-5,317,852.00",Yes
Communities & Local Government,DCLG,03/01/2013,NNDR Billing Authorities Receipts,Localism,LONDON BOROUGH OF REDBRIDGE,,,,5000217422,Grant Payable by Exchequer,IG1 1NN,"-2,413,968.00",Yes
Communities & Local Government,DCLG,03/01/2013,NNDR Billing Authorities Receipts,Localism,LUTON BC,,,,5000217552,Grant Payable by Exchequer,LU1 1DX,"-3,121,335.00",Yes
Communities & Local Government,DCLG,03/01/2013,NNDR Billing Authorities Receipts,Localism,MANCHESTER CITY CNCL,,,,5000217578,Grant Payable by Exchequer,M60 2JR,"-14,492,040.00",Yes
Communities & Local Government,DCLG,03/01/2013,NNDR Billing Authorities Receipts,Localism,MEDWAY COUNCIL,,,,5000217603,Grant Payable by Exchequer,ME4 4TR,"-3,706,540.00",Yes
Communities & Local Government,DCLG,03/01/2013,NNDR Billing Authorities Receipts,Localism,MIDDLESBROUGH BC,,,,5000217651,Grant Payable by Exchequer,TS1 9GA,"-1,899,817.00",Yes
Communities & Local Government,DCLG,03/01/2013,NNDR Billing Authorities Receipts,Localism,NEWCASTLE UPON TYNE DC,,,,5000217768,Grant Payable by Exchequer,NE99 1RD,"-6,827,411.00",Yes
Communities & Local Government,DCLG,03/01/2013,NNDR Billing Authorities Receipts,Localism,NORTH EAST LINCOLN COUNCIL,,Public Bodies,,5000217787,Grant Payable by Exchequer,DN35 8LN,"-2,956,189.00",Yes
Communities & Local Government,DCLG,03/01/2013,NNDR Billing Authorities Receipts,Localism,NORTH TYNESIDE MBC,,,,5000217802,Grant Payable by Exchequer,NE30 1AE,"-2,673,638.00",Yes
Communities & Local Government,DCLG,03/01/2013,NNDR Billing Authorities Receipts,Localism,NORTHUMBERLAND,,,,5000217882,Grant Payable by Exchequer,NE61 2EF,"-3,410,615.00",Yes
Communities & Local Government,DCLG,03/01/2013,NNDR Billing Authorities Receipts,Localism,NOTTINGHAM CITY COUNCIL,,,,5000217832,Grant Payable by Exchequer,M33 0DJ,"-5,790,411.00",Yes
Communities & Local Government,DCLG,03/01/2013,NNDR Billing Authorities Receipts,Localism,OLDHAM MBC,,,,5000217846,Grant Payable by Exchequer,OL1 1UH,"-2,646,240.00",Yes
Communities & Local Government,DCLG,03/01/2013,NNDR Billing Authorities Receipts,Localism,PLYMOUTH CITY CNCL,,,,5000217382,Grant Payable by Exchequer,PL1 2AA,"-3,964,888.00",Yes
Communities & Local Government,DCLG,03/01/2013,NNDR Billing Authorities Receipts,Localism,PORTSMOUTH CITY COUNCIL,,,,5000217395,Grant Payable by Exchequer,PO1 2AR,"-3,708,066.00",Yes
Communities & Local Government,DCLG,03/01/2013,NNDR Billing Authorities Receipts,Localism,REDCAR & CLEVELAND BOROUGH COUNCIL,,,,5000217429,Grant Payable by Exchequer,TS6 9AR,"-2,331,035.00",Yes
Communities & Local Government,DCLG,03/01/2013,NNDR Billing Authorities Receipts,Localism,ROCHDALE MBC,,,,5000217471,Grant Payable by Exchequer,OL16 1LQ,"-2,913,839.00",Yes
Communities & Local Government,DCLG,03/01/2013,NNDR Billing Authorities Receipts,Localism,ROTHERHAM MBC,,,,5000217496,Grant Payable by Exchequer,S65 1UF,"-3,322,188.00",Yes
Communities & Local Government,DCLG,03/01/2013,NNDR Billing Authorities Receipts,Localism,SALFORD CITY CNCL,,,,5000217542,Grant Payable by Exchequer,M27 5AW,"-3,882,547.00",Yes
Communities & Local Government,DCLG,03/01/2013,NNDR Billing Authorities Receipts,Localism,SANDWELL MBC,,,,5000217548,Grant Payable by Exchequer,B69 3BS,"-4,364,634.00",Yes
Communities & Local Government,DCLG,03/01/2013,NNDR Billing Authorities Receipts,Localism,SEFTON MBC,,,,5000217565,Grant Payable by Exchequer,L20 3NQ,"-3,184,507.00",Yes
Communities & Local Government,DCLG,03/01/2013,NNDR Billing Authorities Receipts,Localism,SHEFFIELD CITY CNCL,,,,5000217581,Grant Payable by Exchequer,S1 1UR,"-9,339,895.00",Yes
Communities & Local Government,DCLG,03/01/2013,NNDR Billing Authorities Receipts,Localism,SHROPSHIRE COUNCIL,,Large,,5000217883,Grant Payable by Exchequer,SY2 6ND,"-3,332,783.00",Yes
Communities & Local Government,DCLG,03/01/2013,NNDR Billing Authorities Receipts,Localism,SOUTH TYNESIDE COUNCIL,,,,5000217751,Grant Payable by Exchequer,NE33 2RL,"-1,372,463.00",Yes
Communities & Local Government,DCLG,03/01/2013,NNDR Billing Authorities Receipts,Localism,SOUTHEND ON SEA BC,,,,5000217759,Grant Payable by Exchequer,SS2 6EP,"-2,055,475.00",Yes
Communities & Local Government,DCLG,03/01/2013,NNDR Billing Authorities Receipts,Localism,SOUTHWARK LB,,,,5000217762,Grant Payable by Exchequer,SE1P 5LX,"-9,017,136.00",Yes
Communities & Local Government,DCLG,03/01/2013,NNDR Billing Authorities Receipts,Localism,ST HELENS MBC,,,,5000217780,Grant Payable by Exchequer,WA10 1HP,"-2,229,274.00",Yes
Communities & Local Government,DCLG,03/01/2013,NNDR Billing Authorities Receipts,Localism,STOKE ON TRENT CITY COUNCIL,,,,5000217807,Grant Payable by Exchequer,ST4 1RJ,"-3,735,031.00",Yes
Communities & Local Government,DCLG,03/01/2013,NNDR Billing Authorities Receipts,Localism,SUNDERLAND DC,,,,5000217825,Grant Payable by Exchequer,SR2 7DN,"-3,912,543.00",Yes
Communities & Local Government,DCLG,03/01/2013,NNDR Billing Authorities Receipts,Localism,SUTTON LB,,,,5000217387,Grant Payable by Exchequer,SM1 1EA,"-2,346,052.00",Yes
Communities & Local Government,DCLG,03/01/2013,NNDR Billing Authorities Receipts,Localism,TAMESIDE MBC,,,,5000217407,Grant Payable by Exchequer,OL6 6DL,"-2,537,914.00",Yes
Communities & Local Government,DCLG,03/01/2013,NNDR Billing Authorities Receipts,Localism,TELFORD & WREKIN DC,,,,5000217444,Grant Payable by Exchequer,TF3 4LF,"-3,044,819.00",Yes
Communities & Local Government,DCLG,03/01/2013,NNDR Billing Authorities Receipts,Localism,TORBAY BC,,,,5000217503,Grant Payable by Exchequer,TQ1 3DR,"-1,689,709.00",Yes
Communities & Local Government,DCLG,03/01/2013,NNDR Billing Authorities Receipts,Localism,WALSALL MBC,,,,5000217559,Grant Payable by Exchequer,WS1 1TW,"-3,135,748.00",Yes
Communities & Local Government,DCLG,03/01/2013,NNDR Billing Authorities Receipts,Localism,WALTHAM FOREST LB,,Large,,5000217566,Grant Payable by Exchequer,E17 4JF,"-2,517,002.00",Yes
Communities & Local Government,DCLG,03/01/2013,NNDR Billing Authorities Receipts,Localism,WANDSWORTH LB,,,,5000217572,Grant Payable by Exchequer,SW18 2PU,"-4,628,798.00",Yes
Communities & Local Government,DCLG,03/01/2013,NNDR Billing Authorities Receipts,Localism,WIGAN MBC,,,,5000217860,Grant Payable by Exchequer,WN1 1YD,"-3,476,627.00",Yes
Communities & Local Government,DCLG,03/01/2013,NNDR Billing Authorities Receipts,Localism,WIRRAL MBC,,,,5000217865,Grant Payable by Exchequer,L41 6BU,"-3,072,413.00",Yes
Communities & Local Government,DCLG,03/01/2013,NNDR Billing Authorities Receipts,Localism,WOLVERHAMPTON MBC,,,,5000217868,Grant Payable by Exchequer,WV1 1RL,"-3,315,816.00",Yes
Communities & Local Government,DCLG,03/01/2013,Printing,Finance & Corporate Services,STATIONERY OFFICE LTD,,Large,,5106187647,Non-Vatable,NR3 1PD,864.24,
Communities & Local Government,DCLG,03/01/2013,Subscriptions,Neighbourhoods,ROYAL TOWN PLANNING INSTITUTE-WM,Yes,Medium,,5106187720,2013 Royal Town Planning Institute (RTPI) subscription,EC3R 8DL,280.00,
Communities & Local Government,DCLG,03/01/2013,Training,Finance & Corporate Services,CAPITA FINANCIAL RESOURCING,,Large,,5106187712,Finance Graduate Schem,SW1P 1LA,"3,385.00",
Communities & Local Government,DCLG,03/01/2013,Training,Finance & Corporate Services,DODS PARLIAMENTARY COMM  LTD,,Large,,5106187714,Professions into Leadership,SW1H 9BP,295.00,
Communities & Local Government,DCLG,04/01/2013,Advertising,Finance & Corporate Services,M4C-DIVISION OF GROUPM UK LTD,,Large,,5106187785,Fire Kills - Media Industry Levy,WC1X 8RX,11.34,
Communities & Local Government,DCLG,04/01/2013,Advertising,Finance & Corporate Services,M4C-DIVISION OF GROUPM UK LTD,,Large,,5106187785,Fire Kills - National Press,WC1X 8RX,"13,606.12",
Communities & Local Government,DCLG,04/01/2013,Advertising,Finance & Corporate Services,M4C-DIVISION OF GROUPM UK LTD,,Large,,5106187786,Fire Kills - BME Radio,WC1X 8RX,"11,157.43",
Communities & Local Government,DCLG,04/01/2013,Advertising,Finance & Corporate Services,M4C-DIVISION OF GROUPM UK LTD,,Large,,5106187786,Fire Kills - Media Industry Levy,WC1X 8RX,9.30,
Communities & Local Government,DCLG,04/01/2013,Advertising,Finance & Corporate Services,M4C-DIVISION OF GROUPM UK LTD,,Large,,5106187787,Fire Kills - Media Industry Levy,WC1X 8RX,-0.48,
Communities & Local Government,DCLG,04/01/2013,Advertising,Finance & Corporate Services,M4C-DIVISION OF GROUPM UK LTD,,Large,,5106187787,Fire Kills - National Press,WC1X 8RX,-570.52,
Communities & Local Government,DCLG,04/01/2013,Agency Staff,Finance & Corporate Services,CAPITA RESOURCING LTD,,Large,,5106187754,Expenses,SL6 1DP,90.00,
Communities & Local Government,DCLG,04/01/2013,Agency Staff,Finance & Corporate Services,CAPITA RESOURCING LTD,,Large,,5106187754,Interim Manager,SL6 1DP,"2,722.14",
Communities & Local Government,DCLG,04/01/2013,Agency Staff,Finance & Corporate Services,CAPITA RESOURCING LTD,,Large,,5106187759,Extension (1),SL6 1DP,"5,412.26",
Communities & Local Government,DCLG,04/01/2013,Agency Staff,Finance & Corporate Services,CAPITA RESOURCING LTD,,Large,,5106187760,Interim manager,SL6 1DP,"1,742.40",
Communities & Local Government,DCLG,04/01/2013,Agency Staff,Finance & Corporate Services,CAPITA RESOURCING LTD,,Large,,5106187762,Interim HR Business Partner,SL6 1DP,"2,305.80",
Communities & Local Government,DCLG,04/01/2013,Agency Staff,Finance & Corporate Services,CAPITA RESOURCING LTD,,Large,,5106187767,Interim Manager,SL6 1DP,"3,300.00",
Communities & Local Government,DCLG,04/01/2013,Agency Staff,Finance & Corporate Services,CAPITA RESOURCING LTD,,Large,,5106187768,Interim manager,SL6 1DP,"1,140.44",
Communities & Local Government,DCLG,04/01/2013,Agency Staff,Finance & Corporate Services,CAPITA RESOURCING LTD,,Large,,5106187771,Extension (1),SL6 1DP,"3,322.38",
Communities & Local Government,DCLG,04/01/2013,Agency Staff,Localism,CAPITA RESOURCING LTD,,Large,,5106187755,Interim manager,SL6 1DP,"1,427.98",
Communities & Local Government,DCLG,04/01/2013,Agency Staff,Localism,CAPITA RESOURCING LTD,,Large,,5106187766,Extension (3),SL6 1DP,"2,075.26",
Communities & Local Government,DCLG,04/01/2013,Agency Staff,Localism,CAPITA RESOURCING LTD,,Large,,5106187770,Expenses,SL6 1DP,11.04,
Communities & Local Government,DCLG,04/01/2013,Agency Staff,Localism,CAPITA RESOURCING LTD,,Large,,5106187770,Interim manager,SL6 1DP,"2,882.28",
Communities & Local Government,DCLG,04/01/2013,Agency Staff,Neighbourhoods,CAPITA RESOURCING LTD,,Large,,5106187751,Contractor ERDF,SL6 1DP,"1,044.00",
Communities & Local Government,DCLG,04/01/2013,Agency Staff,Neighbourhoods,CAPITA RESOURCING LTD,,Large,,5106187751,Contractor ERDF Expenses,SL6 1DP,172.15,
Communities & Local Government,DCLG,04/01/2013,Agency Staff,Neighbourhoods,CAPITA RESOURCING LTD,,Large,,5106187752,Interim manager,SL6 1DP,931.50,
Communities & Local Government,DCLG,04/01/2013,Agency Staff,Neighbourhoods,CAPITA RESOURCING LTD,,Large,,5106187757,DayRate ERREG2 Seas-Territorial,SL6 1DP,313.20,
Communities & Local Government,DCLG,04/01/2013,Agency Staff,Neighbourhoods,CAPITA RESOURCING LTD,,Large,,5106187761,Extension (2),SL6 1DP,576.46,
Communities & Local Government,DCLG,04/01/2013,Agency Staff,Neighbourhoods,CAPITA RESOURCING LTD,,Large,,5106187764,Expenses,SL6 1DP,"1,534.16",
Communities & Local Government,DCLG,04/01/2013,Agency Staff,Neighbourhoods,CAPITA RESOURCING LTD,,Large,,5106187764,Interim Manager,SL6 1DP,"2,086.56",
Communities & Local Government,DCLG,04/01/2013,Cap Grants to Local Authorities (DEL),Strategic Performance Team,GREATER LONDON AUTHORITY,,Large,,2100225566,2012-13 - GLA Capital Grant,SE10 1AP,"35,489,000.00",Yes
Communities & Local Government,DCLG,04/01/2013,Current (non AEF) Grants to Local Authorities,Finance & Corporate Services,DURHAM & DARLINGTON FIRE RESCUE,,Public Bodies,,2100218687,Grant of the Regional Fire Control Centre Jan 2013,DH1 5UE,"123,141.00",Yes
Communities & Local Government,DCLG,04/01/2013,Current (non AEF) Grants to Local Authorities,Finance & Corporate Services,GREATER LONDON AUTHORITY,,Large,,2100218686,Grant of the Regional Fire Control Centre Jan 2013,SE10 1AP,"224,731.00",Yes
Communities & Local Government,DCLG,04/01/2013,Current (non AEF) Grants to Local Authorities,Finance & Corporate Services,GREATER MANCHESTER FIRE & RESCUE,,Public Bodies,,2100218685,Grant of the Regional Fire Control Centre Jan 2013,M27 8US,"146,172.60",Yes
Communities & Local Government,DCLG,04/01/2013,Electricity,Finance & Corporate Services,DEPT FOR WORK & PENSIONS,,Public Bodies,,5106187747,ASHDOWN HASTINGS - UTILITIES,CF14 3UW,456.81,
Communities & Local Government,DCLG,04/01/2013,Electricity,Finance & Corporate Services,DEPT FOR WORK & PENSIONS,,Public Bodies,,5106187788,ASHDOWN HASTINGS - UTILITIES,CF14 3UW,427.62,
Communities & Local Government,DCLG,04/01/2013,Management Consultancy,Neighbourhoods,ROYAL TOWN PLANNING INSTITUTE-NW,,Medium,,5106187789,Epson Contact Point UK 2012-13 costs,EC3R 8DL,"19,191.00",
Communities & Local Government,DCLG,04/01/2013,Office Supplies,Finance & Corporate Services,COMPUTACENTER (UK) LTD,,Large,,5106187708,Maxell 22919500 LTO3 Data Tape,AL10 9TW,590.88,
Communities & Local Government,DCLG,04/01/2013,Publications,Finance & Corporate Services,JONES YARRELL LEADENHALL LTD,,Large,,5106187718,Journal and newspaper supply 2012-13,E3 3JH,298.43,
Communities & Local Government,DCLG,04/01/2013,Publications,Finance & Corporate Services,JONES YARRELL LEADENHALL LTD,,Large,,5106187782,Annual Magazine/Newspaper costs,E3 3JH,907.43,
Communities & Local Government,DCLG,04/01/2013,Research,Finance & Corporate Services,NATIONAL CENTRE FOR SOCIAL RESEARCH,,Large,,5106187732,12/13 budget,EC1V 0AX,"291,152.29",
Communities & Local Government,DCLG,04/01/2013,Research,Neighbourhoods,BUILDING RESEARCH ESTABLISHMENT,,Large,,5106187726,Termite Eradication,WD25 9XX,"2,236.80",
Communities & Local Government,DCLG,04/01/2013,Steady State Service Provision,Finance & Corporate Services,LOGICA (CMG UK LTD),,Large,,5106187725,Payroll Services 2012/13,TW18 4LG,"1,137.18",
Communities & Local Government,DCLG,04/01/2013,Steady State Service Provision,Finance & Corporate Services,LOGICA (CMG UK LTD),,Large,,5106187784,Payroll Services 2012/13,TW18 4LG,"11,877.49",
Communities & Local Government,DCLG,04/01/2013,Training,Finance & Corporate Services,CAPITA BUSINESS SERVICES LTD,,Large,,5106187746,Multi-Agency Information Sharing in the,DL1 9HN,350.00,
Communities & Local Government,DCLG,04/01/2013,Training,Finance & Corporate Services,VISUALISING DATA,,Micro,,5106187749,Introduction to Data Visualisation,HX7 6AB,225.00,
Communities & Local Government,DCLG,04/01/2013,Training,Neighbourhoods,BATH UNIVERSITY,,,,5106187748,Environmental Management & Assessment training course,BA2 7AY,880.00,
Communities & Local Government,DCLG,04/01/2013,Work In Progress Pre-Cert 40373 Spend,Neighbourhoods,CORNWALL COLLEGE,,,,7600004073,ERDF Claim - 13 - P1,TR15 3RD,"27,032.47",
Communities & Local Government,DCLG,04/01/2013,Work In Progress Pre-Cert 40373 Spend,Neighbourhoods,SERCO REGIONAL SERVICES LTD,,,,7600004074,ERDF Claim - 9 - P3,PL6 8BT,"58,042.85",
Communities & Local Government,DCLG,04/01/2013,Work In Progress Pre-Cert 40373 Spend,Neighbourhoods,UNIVERSITY OF THE WEST OF ENGLAND,,,,7600004075,ERDF Claim - 11 - P1,BS16 1QY,"149,333.22",
Communities & Local Government,DCLG,07/01/2013,Advertising,Finance & Corporate Services,RKCR/Y&R,,Micro,,5106187791,Online creative,NW1 7QP,"6,582.50",
Communities & Local Government,DCLG,07/01/2013,Agency Staff,Finance & Corporate Services,PREMIERE EMPLOYMENT GROUP LTD,,Large,,5106187696,Admin clerical support,M3 2JA,516.35,
Communities & Local Government,DCLG,07/01/2013,Agency Staff,Finance & Corporate Services,SQUARE ONE RESOURCES LTD,,Medium,,5106187796,SAPDev 1.4.12-31.3.13,EC2A 2AD,"2,858.82",
Communities & Local Government,DCLG,07/01/2013,Agency Staff,Finance & Corporate Services,SQUARE ONE RESOURCES LTD,,Medium,,5106187798,SAPDev 1.4.12-31.3.13,EC2A 2AD,"1,143.53",
Communities & Local Government,DCLG,07/01/2013,Agency Staff,Localism,CAPITA RESOURCING LTD,,Large,,5106187765,Expenses,SL6 1DP,64.44,
Communities & Local Government,DCLG,07/01/2013,Agency Staff,Localism,CAPITA RESOURCING LTD,,Large,,5106187765,Interim manager,SL6 1DP,"5,990.64",
Communities & Local Government,DCLG,07/01/2013,Agency Staff,Localism,MICHAEL PAGE INTERNATIONAL,,Large,,5106187799,Interim Manager,SL1 3SA,"5,625.00",
Communities & Local Government,DCLG,07/01/2013,Agency Staff,Neighbourhoods,CAPITA RESOURCING LTD,,Large,,5106187756,Interim Manager,SL6 1DP,"2,754.18",
Communities & Local Government,DCLG,07/01/2013,Agency Staff,Neighbourhoods,REED SPECIALIST RECRUITMENT LTD,,Large,,5106187802,Temporary Staff,NN1 1UE,"1,037.18",
Communities & Local Government,DCLG,07/01/2013,Agency Staff,Neighbourhoods,REED SPECIALIST RECRUITMENT LTD,,Large,,5106187815,Agency Staff,NN1 1UE,774.34,
Communities & Local Government,DCLG,07/01/2013,Grant in Aid to NDPBs (non budget),Localism,VALUATION TRIBUNAL SERVICE,,,,2100225741,Claim in respect to Janaury 2013 expenditure.,E1 1DU,"711,301.00",Yes
Communities & Local Government,DCLG,07/01/2013,IT - Software Maintenance,Localism,BYTES SOFTWARE SERVICES,,Medium,,5106187169,Doubletake support,KT17 1TS,752.66,
Communities & Local Government,DCLG,07/01/2013,Legal Fees,Finance & Corporate Services,LANDMARK CHAMBERS,,Medium,,5106187857,Legal advice,EC4A 2HG,"1,944.00",
Communities & Local Government,DCLG,07/01/2013,Printing,Finance & Corporate Services,STATIONERY OFFICE LTD,,Large,,5106187860,Non-Vatable,NR3 1PD,208.00,
Communities & Local Government,DCLG,07/01/2013,Printing,Finance & Corporate Services,STATIONERY OFFICE LTD,,Large,,5106187860,VAT chargeable,NR3 1PD,130.00,
Communities & Local Government,DCLG,07/01/2013,Professional services,Localism,GOVT ACTUARYS DEPARTMENT,,Public Bodies,,5106187808,Provision of Pension Advice LGPS,EC4A 1AB,"34,447.02",
Communities & Local Government,DCLG,07/01/2013,Professional services,Localism,GOVT ACTUARYS DEPARTMENT,,Public Bodies,,5106187811,Provision of Pension Advice LGPS,EC4A 1AB,"36,218.58",
Communities & Local Government,DCLG,07/01/2013,Professional services,Localism,VALUATION OFFICE AGENCY,,Public Bodies,,2100225682,Payment for January work on NNDR and Council Tax,W1B 5BU,"10,416,666.66",
Communities & Local Government,DCLG,07/01/2013,Publicity,Finance & Corporate Services,PRESS ASSOCIATION,,Large,,5106187852,Info for Media point business 12313,DN14 7YH,"1,240.93",
Communities & Local Government,DCLG,07/01/2013,Research,Neighbourhoods,BUILDING RESEARCH ESTABLISHMENT,,Large,,5106187801,Milestone 1-5,WD25 9XX,"26,319.60",
Communities & Local Government,DCLG,07/01/2013,Research,Neighbourhoods,BUILDING RESEARCH ESTABLISHMENT,,Large,,5106187804,Milestone 1-5,WD25 9XX,"26,319.60",
Communities & Local Government,DCLG,07/01/2013,Subscriptions,Neighbourhoods,ROYAL TOWN PLANNING INSTITUTE-WM,Yes,Medium,,5106187844,2013 Royal Town Planning Institute (RTPI) subscription,EC3R 8DL,270.00,
Communities & Local Government,DCLG,07/01/2013,Telecoms equipment (non-capitalised),Finance & Corporate Services,DAMOVO UK LTD,,Large,,5106187733,Telephony - 8 new sites,RH12 4QP,"6,988.44",
Communities & Local Government,DCLG,07/01/2013,Telecoms equipment (non-capitalised),Finance & Corporate Services,DAMOVO UK LTD,,Large,,5106187735,Telephony - 8 new sites,RH12 4QP,"10,056.11",
Communities & Local Government,DCLG,07/01/2013,Telephone call costs,Finance & Corporate Services,DAMOVO UK LTD,,Large,,5106187736,Telephony Charges,RH12 4QP,"82,816.64",
Communities & Local Government,DCLG,07/01/2013,Telephone call costs,Finance & Corporate Services,DAMOVO UK LTD,,Large,,5106187831,Telephony Charges,RH12 4QP,"1,229.63",
Communities & Local Government,DCLG,07/01/2013,Telephone call costs,Finance & Corporate Services,DAMOVO UK LTD,,Large,,5106187834,Telephony Charges,RH12 4QP,"10,507.19",
Communities & Local Government,DCLG,07/01/2013,Training,Finance & Corporate Services,SOCIAL RESEARCH ASSOCIATION,,Micro,,5106187846,QDC: Sampling & Introduction to Weightin,NW1 2HX,250.00,
Communities & Local Government,DCLG,07/01/2013,Training,Finance & Corporate Services,SOCIAL RESEARCH ASSOCIATION,,Micro,,5106187846,QDC: Survey Implementation,NW1 2HX,250.00,
Communities & Local Government,DCLG,08/01/2013,Agency Staff,Localism,MANPOWER UK LTD,,Large,,5106187908,Agency Staff,UB8 1AB,989.33,
Communities & Local Government,DCLG,08/01/2013,Deferred income,Neighbourhoods,EUROPEAN COMMISSION,,,,2100225758,Deferred income-reduction of ERDF,B-1049,"82,697.03",
Communities & Local Government,DCLG,08/01/2013,Fixed Maintenance,Neighbourhoods,E C HARRIS LLP,,Large,,5106187901,ERDF Y&H LDU QS Services to Feb 14,N1 9AB,"2,607.00",
Communities & Local Government,DCLG,08/01/2013,Gas,Finance & Corporate Services,CORONA ENERGY LTD,,Medium,,5106187927,Queens Street Gas 2012-13,WD17 1JW,"1,386.94",
Communities & Local Government,DCLG,08/01/2013,Gas,Finance & Corporate Services,CORONA ENERGY LTD,,Medium,,5106187928,Queens Street Gas 2012-13,WD17 1JW,"1,810.34",
Communities & Local Government,DCLG,08/01/2013,Gas,Finance & Corporate Services,CORONA ENERGY LTD,,Medium,,5106187932,Queens Street Gas 2012-13,WD17 1JW,"1,891.93",
Communities & Local Government,DCLG,08/01/2013,Gas,Finance & Corporate Services,CORONA ENERGY LTD,,Medium,,5106187934,Queens Street Gas 2012-13,WD17 1JW,492.52,
Communities & Local Government,DCLG,08/01/2013,Gas,Finance & Corporate Services,CORONA ENERGY LTD,,Medium,,5106187935,Queens Street Gas 2012-13,WD17 1JW,"1,367.18",
Communities & Local Government,DCLG,08/01/2013,Gas,Finance & Corporate Services,CORONA ENERGY LTD,,Medium,,5106187936,Queens Street Gas 2012-13,WD17 1JW,"1,243.86",
Communities & Local Government,DCLG,08/01/2013,Gas,Finance & Corporate Services,CORONA ENERGY LTD,,Medium,,5106187938,Eland House Gas 2012-13,WD17 1JW,"-7,578.84",
Communities & Local Government,DCLG,08/01/2013,Gas,Finance & Corporate Services,CORONA ENERGY LTD,,Medium,,5106187939,Eland House Gas 2012-13,WD17 1JW,"7,553.89",
Communities & Local Government,DCLG,08/01/2013,Gas,Finance & Corporate Services,CORONA ENERGY LTD,,Medium,,5106187941,Eland House Gas 2012-13,WD17 1JW,"1,173.16",
Communities & Local Government,DCLG,08/01/2013,Gas,Finance & Corporate Services,CORONA ENERGY LTD,,Medium,,5106187942,Eland House Gas 2012-13,WD17 1JW,-424.36,
Communities & Local Government,DCLG,08/01/2013,Gas,Finance & Corporate Services,CORONA ENERGY LTD,,Medium,,5106187944,Bridge House Gas - 5 %,WD17 1JW,308.23,
Communities & Local Government,DCLG,08/01/2013,Gas,Finance & Corporate Services,CORONA ENERGY LTD,,Medium,,5106187945,Eland House Gas 2012-13,WD17 1JW,"2,144.23",
Communities & Local Government,DCLG,08/01/2013,Gas,Finance & Corporate Services,CORONA ENERGY LTD,,Medium,,5106187946,Paradise Circus Gas 2012-13,WD17 1JW,"1,636.03",
Communities & Local Government,DCLG,08/01/2013,Grant in Aid to NDPBs (non budget),Localism,COMMISSION LOCAL ADMINISTRATION,,,,2100225681,CLAE - GIA payment for 2012/13,SW1P 4QP,"1,110,000.00",Yes
Communities & Local Government,DCLG,08/01/2013,"IT - PC, Network & Hardware",Finance & Corporate Services,DCLG GOVERNMENT PROCUREMENT CARD,,,,1000003722,AT213 Read and Write Gold - Assistive tech,TN37 7GA,396.00,
Communities & Local Government,DCLG,08/01/2013,"IT - PC, Network & Hardware",Localism,COMPUTACENTER (UK) LTD,,Large,,5106187716,UPS Network mgt cards,AL10 9TW,646.32,
Communities & Local Government,DCLG,08/01/2013,IT - Service Contracts,Finance & Corporate Services,PROCSERVE SHARED SERVICES LTD,,Large,,5106187797,32mths subscriptions Jul 2011-Jul 2014,SW1W 9SR,"6,176.64",
Communities & Local Government,DCLG,08/01/2013,IT - Service Contracts,Finance & Corporate Services,STERIA LIMITED,,Large,,5106187887,096 096 - TDA Resource Audit Comm,M14 0WN,"5,145.25",
Communities & Local Government,DCLG,08/01/2013,IT - Service Contracts,Finance & Corporate Services,STERIA LIMITED,,Large,,5106187920,SAN Warranty,M14 0WN,"57,406.41",
Communities & Local Government,DCLG,08/01/2013,IT - Service Contracts,Finance & Corporate Services,STERIA LIMITED,,Large,,5106187921,Out of Hours Service Extension - 2012/13,M14 0WN,"9,177.27",
Communities & Local Government,DCLG,08/01/2013,IT - Service Contracts,Finance & Corporate Services,STERIA LIMITED,,Large,,5106187924,CAN 61 MFD (Regional Offices),M14 0WN,"17,675.99",
Communities & Local Government,DCLG,08/01/2013,IT - Service Contracts,Finance & Corporate Services,STERIA LIMITED,,Large,,5106187926,LOGASNet Service March 11 - Feb 13,M14 0WN,"48,586.71",
Communities & Local Government,DCLG,08/01/2013,IT - Service Contracts,Finance & Corporate Services,STERIA LIMITED,,Large,,5106187926,DCLG Link Service Feb 2011 to Feb 2013,M14 0WN,"325,947.38",
Communities & Local Government,DCLG,08/01/2013,IT - Service Contracts,Finance & Corporate Services,STERIA LTD,,Large,,5106187885,SQ014 - Resource Extension Elements,M14 0WN,"12,476.32",
Communities & Local Government,DCLG,08/01/2013,IT - Service Contracts,Finance & Corporate Services,STERIA LTD,,Large,,5106187890,Steria;SQ124  - Leeds Lateral Power Down,M14 0WN,"1,060.10",
Communities & Local Government,DCLG,08/01/2013,IT - Service Contracts,Finance & Corporate Services,STERIA LTD,,Large,,5106187892,SSQ-118 Hastings Power Down,M14 0WN,888.86,
Communities & Local Government,DCLG,08/01/2013,IT - Service Contracts,Finance & Corporate Services,STERIA LTD,,Large,,5106187897,SQ 040 Becrypt re-packaging,M14 0WN,"1,884.62",
Communities & Local Government,DCLG,08/01/2013,IT - Service Contracts,Finance & Corporate Services,STERIA LTD,,Large,,5106187897,SQ 063 Saturday Del. MFDs to Eland House,M14 0WN,"3,589.74",
Communities & Local Government,DCLG,08/01/2013,IT - Service Contracts,Finance & Corporate Services,STERIA LTD,,Large,,5106187897,SQ 071 Disk Replacement to ALTPRTXX1,M14 0WN,498.85,
Communities & Local Government,DCLG,08/01/2013,IT - Service Contracts,Finance & Corporate Services,STERIA LTD,,Large,,5106187897,SQ 089 - Princes Dock Liverpool Powerdwn,M14 0WN,"1,817.31",
Communities & Local Government,DCLG,08/01/2013,IT - Service Contracts,Finance & Corporate Services,STERIA LTD,,Large,,5106187897,SQ 104 Eland House LOBSIS SAN faulty EMC,M14 0WN,903.85,
Communities & Local Government,DCLG,08/01/2013,IT - Service Contracts,Finance & Corporate Services,STERIA LTD,,Large,,5106187897,SQ HP 5550dn paper tray and housing,M14 0WN,625.00,
Communities & Local Government,DCLG,08/01/2013,IT - Service Contracts,Finance & Corporate Services,STERIA LTD,,Large,,5106187897,SQ Wincor Charges File Print Server Fau,M14 0WN,"8,220.56",
Communities & Local Government,DCLG,08/01/2013,IT - Service Contracts,Neighbourhoods,AMOR BUSINESS TECHNOLOGY SOLUTIONS,,Large,,5106187900,Database ERDF(development service)VA,PA4 9LH,"11,592.36",
Communities & Local Government,DCLG,08/01/2013,IT - Service Contracts,Neighbourhoods,AMOR BUSINESS TECHNOLOGY SOLUTIONS,,Large,,5106187903,Database Maintenance-ERDF(support),PA4 9LH,"35,236.85",
Communities & Local Government,DCLG,08/01/2013,IT - Software Maintenance,Finance & Corporate Services,METHODS CONSULTING LTD,,Medium,,5106187925,PIMS Application Support FY 2011/12,WC2H 8AD,"24,000.00",
Communities & Local Government,DCLG,08/01/2013,IT - Software Maintenance,Finance & Corporate Services,SAP (UK) LTD,,Large,,5106187909,SAP on site support services ERP upgrade,TW14 8HD,"8,256.00",
Communities & Local Government,DCLG,08/01/2013,Medals,Neighbourhoods,ROYAL MINT,,Public Bodies,,5106187907,Commemorative Coins,CF72 8YT,"14,400.00",
Communities & Local Government,DCLG,08/01/2013,Printing,Finance & Corporate Services,STATIONERY OFFICE LTD,,Large,,5106187848,Non-Vatable,NR3 1PD,208.00,
Communities & Local Government,DCLG,08/01/2013,Printing,Finance & Corporate Services,STATIONERY OFFICE LTD,,Large,,5106187848,VAT chargeable,NR3 1PD,130.00,
Communities & Local Government,DCLG,08/01/2013,Publications,Finance & Corporate Services,PROFILE GROUP (UK) LTD,,Micro,,5106187922,ForesightNews UK: online Access,WC2B 5LX,"4,284.10",
Communities & Local Government,DCLG,08/01/2013,Services provided by other Govt Orgs,Neighbourhoods,VALUATION OFFICE AGENCY,,Public Bodies,,5106187866,RTB VOA Valuation 12/13,W1B 5BU,"58,213.00",Yes
Communities & Local Government,DCLG,08/01/2013,Steady State Service Provision,Localism,LOCALITY,,Medium,,5106187559,Community Ownership of Assets  - year 1,N1 6DR,"150,197.25",
Communities & Local Government,DCLG,08/01/2013,Telephone call costs,Finance & Corporate Services,B T PAYMENT SERVICES LTD,,Large,,5106187906,20% PROV IN 11/12 BT ISDN 2E (WAN) & BB,DH98 1BT,318.50,
Communities & Local Government,DCLG,08/01/2013,Training,Finance & Corporate Services,I B M UK LTD,,Large,,5106187898,IBM Cognos 8 BI Report (V8.4),PO6 3AE,"3,564.00",
Communities & Local Government,DCLG,08/01/2013,Travel and Subsistence Account,Neighbourhoods,MISS NICHOLA ELLARD,,,,2100225794,T& S EXPENSES,,743.70,
Communities & Local Government,DCLG,08/01/2013,Vehicle hire,Finance & Corporate Services,CYCLESCHEME LTD,,Large,,5106187814,Salaried Cycle to work scheme,BA1 2LN,494.99,
Communities & Local Government,DCLG,08/01/2013,Water,Finance & Corporate Services,BRISTOL WATER,,Large,,5106187870,2012/13 Rivergate Annual Water Charge,BS48 1WA,525.37,
Communities & Local Government,DCLG,09/01/2013,Agency Staff,Finance & Corporate Services,CAPITA RESOURCING LTD,,Large,,5106187949,Interim HR Business Partner,SL6 1DP,"1,383.48",
Communities & Local Government,DCLG,09/01/2013,Agency Staff,Finance & Corporate Services,CAPITA RESOURCING LTD,,Large,,5106187957,Interim Manager,SL6 1DP,"11,220.00",
Communities & Local Government,DCLG,09/01/2013,Agency Staff,Finance & Corporate Services,CAPITA RESOURCING LTD,,Large,,5106187959,Interim Manager,SL6 1DP,"1,320.00",
Communities & Local Government,DCLG,09/01/2013,Agency Staff,Finance & Corporate Services,CAPITA RESOURCING LTD,,Large,,5106187961,Interim Manager,SL6 1DP,"3,058.34",
Communities & Local Government,DCLG,09/01/2013,Agency Staff,Finance & Corporate Services,CERTES COMPUTING LTD,,Medium,,5106188010,Temp Staff start date 26th Nov 2012,B46 1HQ,736.56,
Communities & Local Government,DCLG,09/01/2013,Agency Staff,Finance & Corporate Services,PREMIER LONDON LTD,,Medium,,5106188001,Supplyof 1 AO - 6 months - per day,EC2R 7HJ,782.10,
Communities & Local Government,DCLG,09/01/2013,Agency Staff,Finance & Corporate Services,PREMIER LONDON LTD,,Medium,,5106188004,Supplyof 1 AO - 6 months - per day,EC2R 7HJ,782.10,
Communities & Local Government,DCLG,09/01/2013,Agency Staff,Finance & Corporate Services,PREMIER LONDON LTD,,Medium,,5106188008,Supply of 1 AO - 6 months - per day,EC2R 7HJ,782.10,
Communities & Local Government,DCLG,09/01/2013,Agency Staff,Finance & Corporate Services,PREMIER LONDON LTD,,Medium,,5106188009,Supply of 1 AO - 6 months - per day,EC2R 7HJ,782.10,
Communities & Local Government,DCLG,09/01/2013,Agency Staff,Neighbourhoods,CAPITA RESOURCING LTD,,Large,,5106187955,CPD 0492030 Capita MSP,SL6 1DP,19.62,
Communities & Local Government,DCLG,09/01/2013,Agency Staff,Neighbourhoods,CAPITA RESOURCING LTD,,Large,,5106187955,DayRate ERREG2 Seas-Territorial,SL6 1DP,522.00,
Communities & Local Government,DCLG,09/01/2013,Agency Staff,Neighbourhoods,CAPITA RESOURCING LTD,,Large,,5106187971,Expenses,SL6 1DP,32.04,
Communities & Local Government,DCLG,09/01/2013,Agency Staff,Neighbourhoods,CAPITA RESOURCING LTD,,Large,,5106187971,Interim Manager,SL6 1DP,347.76,
Communities & Local Government,DCLG,09/01/2013,Agency Staff,Neighbourhoods,CAPITA RESOURCING LTD,,Large,,5106187973,Interim Manager,SL6 1DP,"1,101.67",
Communities & Local Government,DCLG,09/01/2013,Agency Staff,Neighbourhoods,CAPITA RESOURCING LTD,,Large,,5106187974,Expenses,SL6 1DP,"1,124.83",
Communities & Local Government,DCLG,09/01/2013,Agency Staff,Neighbourhoods,CAPITA RESOURCING LTD,,Large,,5106187974,Interim Manager,SL6 1DP,"5,765.86",
Communities & Local Government,DCLG,09/01/2013,Building Renovations,Finance & Corporate Services,E C HARRIS LLP,,Large,,5106187657,Cond feasability study Grd FLR&BASE - 66,N1 9AB,"2,415.00",
Communities & Local Government,DCLG,09/01/2013,Building Renovations,Finance & Corporate Services,E C HARRIS LLP,,Large,,5106187663,"Pilot Proj reloc of CPS,CAS,VOA - com 64",N1 9AB,"11,925.00",
Communities & Local Government,DCLG,09/01/2013,Current (non AEF) Grants to Local Authorities,Neighbourhoods,BUCKINGHAMSHIRE CC (REVENUE),,,,2100225827,Refund of Pensions Liabilites-12- INV-2207017610,HP20 1UD,449.88,Yes
Communities & Local Government,DCLG,09/01/2013,Current (non AEF) Grants to Local Authorities,Neighbourhoods,SHROPSHIRE COUNTY COUNCIL,,Large,,2100225825,2012-13 Town Team Partners Grant,SY2 6ND,"10,000.00",Yes
Communities & Local Government,DCLG,09/01/2013,Current Grants to Non Profit Bodies,Neighbourhoods,VALUATION OFFICE AGENCY,,Public Bodies,,2100225828,VOA payment for statutory registration- fair rents,W1B 5BU,"610,000.00",Yes
Communities & Local Government,DCLG,09/01/2013,Electricity,Finance & Corporate Services,EDF ENERGY 1 LIMITED,,Large,,5106187389,SE Fareham Electricity 2012-13,PL3 5XQ,"-8,284.80",
Communities & Local Government,DCLG,09/01/2013,Electricity,Finance & Corporate Services,EDF ENERGY 1 LIMITED,,Large,,5106187940,St Philips Place Electricity Oct 12-13,PL3 5XQ,"7,287.04",
Communities & Local Government,DCLG,09/01/2013,Electricity,Finance & Corporate Services,EDF ENERGY 1 LIMITED,,Large,,5106187985,Queen St Electricity 2012-13,PL3 5XQ,"1,430.17",
Communities & Local Government,DCLG,09/01/2013,Electricity,Finance & Corporate Services,EDF ENERGY 1 LIMITED,,Large,,5106187986,Paradise Circus Electricity 2012-13,PL3 5XQ,"2,216.66",
Communities & Local Government,DCLG,09/01/2013,Electricity,Finance & Corporate Services,EDF ENERGY 1 LIMITED,,Large,,5106187989,Bridge House Electricity 2012-13,PL3 5XQ,"3,580.85",
Communities & Local Government,DCLG,09/01/2013,Electricity,Finance & Corporate Services,EDF ENERGY 1 LIMITED,,Large,,5106188020,Bridge House Electricity 2012-13,PL3 5XQ,"3,281.94",
Communities & Local Government,DCLG,09/01/2013,Fixed Maintenance,Finance & Corporate Services,E C HARRIS LLP,,Large,,5106187665,St Philips Place - PM Building Survey,N1 9AB,"8,735.55",
Communities & Local Government,DCLG,09/01/2013,Gas,Finance & Corporate Services,CORONA ENERGY LTD,,Medium,,5106188013,Queens Street Gas 2012-13,WD17 1JW,558.80,
Communities & Local Government,DCLG,09/01/2013,Gas,Finance & Corporate Services,CORONA ENERGY LTD,,Medium,,5106188014,St Phillips Place Gas 2012-13,WD17 1JW,"2,463.86",
Communities & Local Government,DCLG,09/01/2013,Grant in Aid to NDPBs (non budget),Neighbourhoods,HOMES & COMMUNITIES AGENCY,,Public Bodies,,2100225824,HCA Grant in Aid Claim,NE11 0NA,"4,507,468.00",Yes
Communities & Local Government,DCLG,09/01/2013,Grant in Aid to NDPBs (non budget),Neighbourhoods,LEASEHOLD ADVISORY SERVICE,,Public Bodies,,2100225826,GIA - Claim for Qtr 4 ( Jan to March 2013),EC2A 2DX,"321,258.00",Yes
Communities & Local Government,DCLG,09/01/2013,IT - Service Contracts,Localism,AIRWAVE SOLUTIONS LTD,,Large,,5106187979,Phase A Scotland 2012/13,SL1 2EJ,"258,902.87",
Communities & Local Government,DCLG,09/01/2013,IT - Service Contracts,Localism,AIRWAVE SOLUTIONS LTD,,Large,,5106187984,Phase A Wales 2012/13,SL1 2EJ,"133,216.00",
Communities & Local Government,DCLG,09/01/2013,IT - Service Contracts,Localism,AIRWAVE SOLUTIONS LTD,,Large,,5106188011,Phase B England 2012/13,SL1 2EJ,"255,267.13",
Communities & Local Government,DCLG,09/01/2013,IT - Service Contracts,Localism,AIRWAVE SOLUTIONS LTD,,Large,,5106188015,Phase A England 2012/13,SL1 2EJ,"977,688.25",
Communities & Local Government,DCLG,09/01/2013,IT - Service Contracts,Localism,AIRWAVE SOLUTIONS LTD,,Large,,5106188016,Phase B Scotland 2012/13,SL1 2EJ,"24,198.20",
Communities & Local Government,DCLG,09/01/2013,IT - Service Contracts,Localism,AIRWAVE SOLUTIONS LTD,,Large,,5106188021,Phase A England 2012/13,SL1 2EJ,"7,314.92",
Communities & Local Government,DCLG,09/01/2013,IT - Service Contracts,Localism,AIRWAVE SOLUTIONS LTD,,Large,,5106188022,Phase B Wales 2012/13,SL1 2EJ,"30,497.35",
Communities & Local Government,DCLG,09/01/2013,IT - Service Contracts,Localism,CIVICA UK LTD,,Medium,,5106187976,FSEC Dev 2011 (See H1177),DY1 4TD,"40,652.50",
Communities & Local Government,DCLG,09/01/2013,IT - Service Contracts,Neighbourhoods,AMOR BUSINESS TECHNOLOGY SOLUTIONS,,Large,,5106187963,Database ERDF(development service)VA,PA4 9LH,"1,324.80",
Communities & Local Government,DCLG,09/01/2013,IT - Service Contracts,Neighbourhoods,AMOR BUSINESS TECHNOLOGY SOLUTIONS,,Large,,5106187965,Database ERDF(development service)VA,PA4 9LH,"20,160.00",
Communities & Local Government,DCLG,09/01/2013,Legal Fees,Localism,SIMMONS & SIMMONS,,Large,,5106187738,LegalAdvise-Fire.SColl[Extn 10/12-10/13],EC2Y 9SS,"23,186.45",
Communities & Local Government,DCLG,09/01/2013,Legal Fees,Localism,SIMMONS & SIMMONS,,Large,,5106187738,non vat charges,EC2Y 9SS,4.00,
Communities & Local Government,DCLG,09/01/2013,Mobile phone costs,Finance & Corporate Services,ORANGE (AIRTIME/LINE RENTAL),,Large,,2100225829,Monthly Consolidated telephone Cost November 2012,S99 6LU,55.80,
Communities & Local Government,DCLG,09/01/2013,Mobile phone costs,Finance & Corporate Services,ORANGE (AIRTIME/LINE RENTAL),,Large,,2100225829,Monthly Consolidated telephone Cost November 2012,S99 6LU,71.40,
Communities & Local Government,DCLG,09/01/2013,Mobile phone costs,Finance & Corporate Services,ORANGE (AIRTIME/LINE RENTAL),,Large,,2100225829,Monthly Consolidated telephone Cost November 2012,S99 6LU,53.56,
Communities & Local Government,DCLG,09/01/2013,Mobile phone costs,Finance & Corporate Services,ORANGE (AIRTIME/LINE RENTAL),,Large,,2100225829,Monthly Consolidated telephone Cost November 2012,S99 6LU,35.11,
Communities & Local Government,DCLG,09/01/2013,Mobile phone costs,Finance & Corporate Services,ORANGE (AIRTIME/LINE RENTAL),,Large,,2100225829,Monthly Consolidated telephone Cost November 2012,S99 6LU,52.88,
Communities & Local Government,DCLG,09/01/2013,Mobile phone costs,Finance & Corporate Services,ORANGE (AIRTIME/LINE RENTAL),,Large,,2100225829,Monthly Consolidated telephone Cost November 2012,S99 6LU,42.41,
Communities & Local Government,DCLG,09/01/2013,Mobile phone costs,Finance & Corporate Services,ORANGE (AIRTIME/LINE RENTAL),,Large,,2100225829,Monthly Consolidated telephone Cost November 2012,S99 6LU,45.38,
Communities & Local Government,DCLG,09/01/2013,Mobile phone costs,Finance & Corporate Services,ORANGE (AIRTIME/LINE RENTAL),,Large,,2100225829,Monthly Consolidated telephone Cost November 2012,S99 6LU,18.00,
Communities & Local Government,DCLG,09/01/2013,Mobile phone costs,Finance & Corporate Services,ORANGE (AIRTIME/LINE RENTAL),,Large,,2100225829,Monthly Consolidated telephone Cost November 2012,S99 6LU,17.40,
Communities & Local Government,DCLG,09/01/2013,Mobile phone costs,Finance & Corporate Services,ORANGE (AIRTIME/LINE RENTAL),,Large,,2100225829,Monthly Consolidated telephone Cost November 2012,S99 6LU,22.00,
Communities & Local Government,DCLG,09/01/2013,Mobile phone costs,Finance & Corporate Services,ORANGE (AIRTIME/LINE RENTAL),,Large,,2100225829,Monthly Consolidated telephone Cost November 2012,S99 6LU,-27.60,
Communities & Local Government,DCLG,09/01/2013,Mobile phone costs,Finance & Corporate Services,ORANGE (AIRTIME/LINE RENTAL),,Large,,2100225829,Monthly Consolidated telephone Cost November 2012,S99 6LU,0.78,
Communities & Local Government,DCLG,09/01/2013,Mobile phone costs,Finance & Corporate Services,ORANGE (AIRTIME/LINE RENTAL),,Large,,2100225829,Monthly Consolidated telephone Cost November 2012,S99 6LU,17.40,
Communities & Local Government,DCLG,09/01/2013,Mobile phone costs,Finance & Corporate Services,ORANGE (AIRTIME/LINE RENTAL),,Large,,2100225829,Monthly Consolidated telephone Cost November 2012,S99 6LU,17.40,
Communities & Local Government,DCLG,09/01/2013,Mobile phone costs,Finance & Corporate Services,ORANGE (AIRTIME/LINE RENTAL),,Large,,2100225829,Monthly Consolidated telephone Cost November 2012,S99 6LU,17.40,
Communities & Local Government,DCLG,09/01/2013,Mobile phone costs,Finance & Corporate Services,ORANGE (AIRTIME/LINE RENTAL),,Large,,2100225829,Monthly Consolidated telephone Cost November 2012,S99 6LU,36.00,
Communities & Local Government,DCLG,09/01/2013,Mobile phone costs,Finance & Corporate Services,ORANGE (AIRTIME/LINE RENTAL),,Large,,2100225829,Monthly Consolidated telephone Cost November 2012,S99 6LU,44.93,
Communities & Local Government,DCLG,09/01/2013,Mobile phone costs,Finance & Corporate Services,ORANGE (AIRTIME/LINE RENTAL),,Large,,2100225829,Monthly Consolidated telephone Cost November 2012,S99 6LU,17.40,
Communities & Local Government,DCLG,09/01/2013,Mobile phone costs,Finance & Corporate Services,ORANGE (AIRTIME/LINE RENTAL),,Large,,2100225829,Monthly Consolidated telephone Cost November 2012,S99 6LU,28.33,
Communities & Local Government,DCLG,09/01/2013,Mobile phone costs,Finance & Corporate Services,ORANGE (AIRTIME/LINE RENTAL),,Large,,2100225829,Monthly Consolidated telephone Cost November 2012,S99 6LU,36.00,
Communities & Local Government,DCLG,09/01/2013,Mobile phone costs,Localism,ORANGE (AIRTIME/LINE RENTAL),,Large,,2100225829,Monthly Consolidated telephone Cost November 2012,S99 6LU,11.03,
Communities & Local Government,DCLG,09/01/2013,Mobile phone costs,Localism,ORANGE (AIRTIME/LINE RENTAL),,Large,,2100225829,Monthly Consolidated telephone Cost November 2012,S99 6LU,29.78,
Communities & Local Government,DCLG,09/01/2013,Mobile phone costs,Localism,ORANGE (AIRTIME/LINE RENTAL),,Large,,2100225829,Monthly Consolidated telephone Cost November 2012,S99 6LU,36.00,
Communities & Local Government,DCLG,09/01/2013,Mobile phone costs,Localism,ORANGE (AIRTIME/LINE RENTAL),,Large,,2100225829,Monthly Consolidated telephone Cost November 2012,S99 6LU,99.13,
Communities & Local Government,DCLG,09/01/2013,Mobile phone costs,Localism,ORANGE (AIRTIME/LINE RENTAL),,Large,,2100225829,Monthly Consolidated telephone Cost November 2012,S99 6LU,0.27,
Communities & Local Government,DCLG,09/01/2013,Mobile phone costs,Localism,ORANGE (AIRTIME/LINE RENTAL),,Large,,2100225829,Monthly Consolidated telephone Cost November 2012,S99 6LU,24.60,
Communities & Local Government,DCLG,09/01/2013,Mobile phone costs,Neighbourhoods,ORANGE (AIRTIME/LINE RENTAL),,Large,,2100225829,Monthly Consolidated telephone Cost November 2012,S99 6LU,17.40,
Communities & Local Government,DCLG,09/01/2013,Mobile phone costs,Neighbourhoods,ORANGE (AIRTIME/LINE RENTAL),,Large,,2100225829,Monthly Consolidated telephone Cost November 2012,S99 6LU,22.42,
Communities & Local Government,DCLG,09/01/2013,Mobile phone costs,Neighbourhoods,ORANGE (AIRTIME/LINE RENTAL),,Large,,2100225829,Monthly Consolidated telephone Cost November 2012,S99 6LU,34.94,
Communities & Local Government,DCLG,09/01/2013,Mobile phone costs,Neighbourhoods,ORANGE (AIRTIME/LINE RENTAL),,Large,,2100225829,Monthly Consolidated telephone Cost November 2012,S99 6LU,3.35,
Communities & Local Government,DCLG,09/01/2013,Mobile phone costs,Neighbourhoods,ORANGE (AIRTIME/LINE RENTAL),,Large,,2100225829,Monthly Consolidated telephone Cost November 2012,S99 6LU,73.48,
Communities & Local Government,DCLG,09/01/2013,Mobile phone costs,Neighbourhoods,ORANGE (AIRTIME/LINE RENTAL),,Large,,2100225829,Monthly Consolidated telephone Cost November 2012,S99 6LU,131.93,
Communities & Local Government,DCLG,09/01/2013,Mobile phone costs,Neighbourhoods,ORANGE (AIRTIME/LINE RENTAL),,Large,,2100225829,Monthly Consolidated telephone Cost November 2012,S99 6LU,36.83,
Communities & Local Government,DCLG,09/01/2013,Mobile phone costs,Neighbourhoods,ORANGE (AIRTIME/LINE RENTAL),,Large,,2100225829,Monthly Consolidated telephone Cost November 2012,S99 6LU,21.17,
Communities & Local Government,DCLG,09/01/2013,Mobile phone costs,Neighbourhoods,ORANGE (AIRTIME/LINE RENTAL),,Large,,2100225829,Monthly Consolidated telephone Cost November 2012,S99 6LU,29.87,
Communities & Local Government,DCLG,09/01/2013,Mobile phone costs,Neighbourhoods,ORANGE (AIRTIME/LINE RENTAL),,Large,,2100225829,Monthly Consolidated telephone Cost November 2012,S99 6LU,6.44,
Communities & Local Government,DCLG,09/01/2013,Mobile phone costs,Neighbourhoods,ORANGE (AIRTIME/LINE RENTAL),,Large,,2100225829,Monthly Consolidated telephone Cost November 2012,S99 6LU,17.40,
Communities & Local Government,DCLG,09/01/2013,Mobile phone costs,Strategic Performance Team,ORANGE (AIRTIME/LINE RENTAL),,Large,,2100225829,Monthly Consolidated telephone Cost November 2012,S99 6LU,19.88,
Communities & Local Government,DCLG,09/01/2013,Physical Storage,Finance & Corporate Services,INXTERIORS REFURBISHMENTS LTD,,Micro,,5106187560,Storage,TN8 6EL,"1,015.00",
Communities & Local Government,DCLG,09/01/2013,Printing,Finance & Corporate Services,WILLIAMS LEA LIMITED,,Large,,5106187972,Year 1 Print Services,W2 6LG,"36,427.88",
Communities & Local Government,DCLG,09/01/2013,Printing,Finance & Corporate Services,WILLIAMS LEA LIMITED,,Large,,5106187972,Year 1 Print Services (0% VAT),W2 6LG,993.03,
Communities & Local Government,DCLG,09/01/2013,Professional services,Neighbourhoods,BRITISH BOARD AGREMENT,,Medium,,5106187947,Memberships 0% Vat,WD2 7NG,"1,500.00",
Communities & Local Government,DCLG,09/01/2013,Recruitment,Finance & Corporate Services,PENNA PLC,,Large,,5106187975,Delivering assessment centre,EC4M 7RD,"27,004.73",
Communities & Local Government,DCLG,09/01/2013,Research,Neighbourhoods,BRITISH BOARD AGREMENT,,Medium,,5106187947,Quartely Report,WD2 7NG,"8,690.40",
Communities & Local Government,DCLG,09/01/2013,Travel and Subsistence Account,Finance & Corporate Services,REDFERN TRAVEL LIMITED,,Small,,2100225834,Monthly Consolidated travel Costs December 2012,BD1 3AZ,319.12,
Communities & Local Government,DCLG,09/01/2013,Travel and Subsistence Account,Finance & Corporate Services,REDFERN TRAVEL LIMITED,,Small,,2100225834,Monthly Consolidated travel Costs December 2012,BD1 3AZ,713.62,
Communities & Local Government,DCLG,09/01/2013,Travel and Subsistence Account,Finance & Corporate Services,REDFERN TRAVEL LIMITED,,Small,,2100225834,Monthly Consolidated travel Costs December 2012,BD1 3AZ,"4,862.75",
Communities & Local Government,DCLG,09/01/2013,Travel and Subsistence Account,Finance & Corporate Services,REDFERN TRAVEL LIMITED,,Small,,2100225834,Monthly Consolidated travel Costs December 2012,BD1 3AZ,576.36,
Communities & Local Government,DCLG,09/01/2013,Travel and Subsistence Account,Finance & Corporate Services,REDFERN TRAVEL LIMITED,,Small,,2100225834,Monthly Consolidated travel Costs December 2012,BD1 3AZ,"1,710.85",
Communities & Local Government,DCLG,09/01/2013,Travel and Subsistence Account,Finance & Corporate Services,REDFERN TRAVEL LIMITED,,Small,,2100225834,Monthly Consolidated travel Costs December 2012,BD1 3AZ,444.94,
Communities & Local Government,DCLG,09/01/2013,Travel and Subsistence Account,Finance & Corporate Services,REDFERN TRAVEL LIMITED,,Small,,2100225834,Monthly Consolidated travel Costs December 2012,BD1 3AZ,"3,495.14",
Communities & Local Government,DCLG,09/01/2013,Travel and Subsistence Account,Finance & Corporate Services,REDFERN TRAVEL LIMITED,,Small,,2100225834,Monthly Consolidated travel Costs December 2012,BD1 3AZ,"1,040.59",
Communities & Local Government,DCLG,09/01/2013,Travel and Subsistence Account,Finance & Corporate Services,REDFERN TRAVEL LIMITED,,Small,,2100225834,Monthly Consolidated travel Costs December 2012,BD1 3AZ,303.50,
Communities & Local Government,DCLG,09/01/2013,Travel and Subsistence Account,Finance & Corporate Services,REDFERN TRAVEL LIMITED,,Small,,2100225834,Monthly Consolidated travel Costs December 2012,BD1 3AZ,824.42,
Communities & Local Government,DCLG,09/01/2013,Travel and Subsistence Account,Finance & Corporate Services,REDFERN TRAVEL LIMITED,,Small,,2100225834,Monthly Consolidated travel Costs December 2012,BD1 3AZ,465.12,
Communities & Local Government,DCLG,09/01/2013,Travel and Subsistence Account,Finance & Corporate Services,REDFERN TRAVEL LIMITED,,Small,,2100225834,Monthly Consolidated travel Costs December 2012,BD1 3AZ,625.22,
Communities & Local Government,DCLG,09/01/2013,Travel and Subsistence Account,Localism,REDFERN TRAVEL LIMITED,,Small,,2100225834,Monthly Consolidated travel Costs December 2012,BD1 3AZ,407.02,
Communities & Local Government,DCLG,09/01/2013,Travel and Subsistence Account,Localism,REDFERN TRAVEL LIMITED,,Small,,2100225834,Monthly Consolidated travel Costs December 2012,BD1 3AZ,805.62,
Communities & Local Government,DCLG,09/01/2013,Travel and Subsistence Account,Localism,REDFERN TRAVEL LIMITED,,Small,,2100225834,Monthly Consolidated travel Costs December 2012,BD1 3AZ,"1,635.73",
Communities & Local Government,DCLG,09/01/2013,Travel and Subsistence Account,Localism,REDFERN TRAVEL LIMITED,,Small,,2100225834,Monthly Consolidated travel Costs December 2012,BD1 3AZ,714.18,
Communities & Local Government,DCLG,09/01/2013,Travel and Subsistence Account,Localism,REDFERN TRAVEL LIMITED,,Small,,2100225834,Monthly Consolidated travel Costs December 2012,BD1 3AZ,789.50,
Communities & Local Government,DCLG,09/01/2013,Travel and Subsistence Account,Localism,REDFERN TRAVEL LIMITED,,Small,,2100225834,Monthly Consolidated travel Costs December 2012,BD1 3AZ,263.84,
Communities & Local Government,DCLG,09/01/2013,Travel and Subsistence Account,Localism,REDFERN TRAVEL LIMITED,,Small,,2100225834,Monthly Consolidated travel Costs December 2012,BD1 3AZ,270.60,
Communities & Local Government,DCLG,09/01/2013,Travel and Subsistence Account,Localism,REDFERN TRAVEL LIMITED,,Small,,2100225834,Monthly Consolidated travel Costs December 2012,BD1 3AZ,"1,706.61",
Communities & Local Government,DCLG,09/01/2013,Travel and Subsistence Account,Localism,REDFERN TRAVEL LIMITED,,Small,,2100225834,Monthly Consolidated travel Costs December 2012,BD1 3AZ,615.00,
Communities & Local Government,DCLG,09/01/2013,Travel and Subsistence Account,Localism,REDFERN TRAVEL LIMITED,,Small,,2100225834,Monthly Consolidated travel Costs December 2012,BD1 3AZ,"1,513.96",
Communities & Local Government,DCLG,09/01/2013,Travel and Subsistence Account,Localism,REDFERN TRAVEL LIMITED,,Small,,2100225834,Monthly Consolidated travel Costs December 2012,BD1 3AZ,"1,477.21",
Communities & Local Government,DCLG,09/01/2013,Travel and Subsistence Account,Localism,REDFERN TRAVEL LIMITED,,Small,,2100225834,Monthly Consolidated travel Costs December 2012,BD1 3AZ,"1,184.72",
Communities & Local Government,DCLG,09/01/2013,Travel and Subsistence Account,Localism,REDFERN TRAVEL LIMITED,,Small,,2100225834,Monthly Consolidated travel Costs December 2012,BD1 3AZ,-257.72,
Communities & Local Government,DCLG,09/01/2013,Travel and Subsistence Account,Localism,REDFERN TRAVEL LIMITED,,Small,,2100225834,Monthly Consolidated travel Costs December 2012,BD1 3AZ,"1,095.90",
Communities & Local Government,DCLG,09/01/2013,Travel and Subsistence Account,Localism,REDFERN TRAVEL LIMITED,,Small,,2100225834,Monthly Consolidated travel Costs December 2012,BD1 3AZ,263.92,
Communities & Local Government,DCLG,09/01/2013,Travel and Subsistence Account,Neighbourhoods,CHESHIRE WEST & CHESTER COUNCIL,,Public Bodies,,5106187948,Travelling Expenses,CH1 2NP,408.00,
Communities & Local Government,DCLG,09/01/2013,Travel and Subsistence Account,Neighbourhoods,REDFERN TRAVEL LIMITED,,Small,,2100225834,Monthly Consolidated travel Costs December 2012,BD1 3AZ,331.00,
Communities & Local Government,DCLG,09/01/2013,Travel and Subsistence Account,Neighbourhoods,REDFERN TRAVEL LIMITED,,Small,,2100225834,Monthly Consolidated travel Costs December 2012,BD1 3AZ,"1,478.89",
Communities & Local Government,DCLG,09/01/2013,Travel and Subsistence Account,Neighbourhoods,REDFERN TRAVEL LIMITED,,Small,,2100225834,Monthly Consolidated travel Costs December 2012,BD1 3AZ,"1,786.42",
Communities & Local Government,DCLG,09/01/2013,Travel and Subsistence Account,Neighbourhoods,REDFERN TRAVEL LIMITED,,Small,,2100225834,Monthly Consolidated travel Costs December 2012,BD1 3AZ,362.30,
Communities & Local Government,DCLG,09/01/2013,Travel and Subsistence Account,Neighbourhoods,REDFERN TRAVEL LIMITED,,Small,,2100225834,Monthly Consolidated travel Costs December 2012,BD1 3AZ,"2,507.97",
Communities & Local Government,DCLG,09/01/2013,Travel and Subsistence Account,Neighbourhoods,REDFERN TRAVEL LIMITED,,Small,,2100225834,Monthly Consolidated travel Costs December 2012,BD1 3AZ,"4,260.95",
Communities & Local Government,DCLG,09/01/2013,Travel and Subsistence Account,Neighbourhoods,REDFERN TRAVEL LIMITED,,Small,,2100225834,Monthly Consolidated travel Costs December 2012,BD1 3AZ,"1,805.91",
Communities & Local Government,DCLG,09/01/2013,Travel and Subsistence Account,Neighbourhoods,REDFERN TRAVEL LIMITED,,Small,,2100225834,Monthly Consolidated travel Costs December 2012,BD1 3AZ,"2,750.27",
Communities & Local Government,DCLG,09/01/2013,Travel and Subsistence Account,Neighbourhoods,REDFERN TRAVEL LIMITED,,Small,,2100225834,Monthly Consolidated travel Costs December 2012,BD1 3AZ,"4,144.35",
Communities & Local Government,DCLG,09/01/2013,Travel and Subsistence Account,Neighbourhoods,REDFERN TRAVEL LIMITED,,Small,,2100225834,Monthly Consolidated travel Costs December 2012,BD1 3AZ,928.87,
Communities & Local Government,DCLG,09/01/2013,Travel and Subsistence Account,Neighbourhoods,REDFERN TRAVEL LIMITED,,Small,,2100225834,Monthly Consolidated travel Costs December 2012,BD1 3AZ,408.46,
Communities & Local Government,DCLG,09/01/2013,Travel and Subsistence Account,Neighbourhoods,REDFERN TRAVEL LIMITED,,Small,,2100225834,Monthly Consolidated travel Costs December 2012,BD1 3AZ,327.00,
Communities & Local Government,DCLG,09/01/2013,Travel and Subsistence Account,Neighbourhoods,REDFERN TRAVEL LIMITED,,Small,,2100225834,Monthly Consolidated travel Costs December 2012,BD1 3AZ,"1,999.87",
Communities & Local Government,DCLG,09/01/2013,Travel and Subsistence Account,Neighbourhoods,REDFERN TRAVEL LIMITED,,Small,,2100225834,Monthly Consolidated travel Costs December 2012,BD1 3AZ,597.12,
Communities & Local Government,DCLG,09/01/2013,Travel and Subsistence Account,Neighbourhoods,REDFERN TRAVEL LIMITED,,Small,,2100225834,Monthly Consolidated travel Costs December 2012,BD1 3AZ,"1,376.87",
Communities & Local Government,DCLG,09/01/2013,Travel and Subsistence Account,Neighbourhoods,REDFERN TRAVEL LIMITED,,Small,,2100225834,Monthly Consolidated travel Costs December 2012,BD1 3AZ,906.89,
Communities & Local Government,DCLG,09/01/2013,Travel and Subsistence Account,Neighbourhoods,REDFERN TRAVEL LIMITED,,Small,,2100225834,Monthly Consolidated travel Costs December 2012,BD1 3AZ,"2,043.22",
Communities & Local Government,DCLG,09/01/2013,Travel and Subsistence Account,Neighbourhoods,REDFERN TRAVEL LIMITED,,Small,,2100225834,Monthly Consolidated travel Costs December 2012,BD1 3AZ,"1,536.04",
Communities & Local Government,DCLG,09/01/2013,Travel and Subsistence Account,Strategic Performance Team,REDFERN TRAVEL LIMITED,,Small,,2100225834,Monthly Consolidated travel Costs December 2012,BD1 3AZ,366.73,
Communities & Local Government,DCLG,09/01/2013,Travel and Subsistence Account,Strategic Performance Team,REDFERN TRAVEL LIMITED,,Small,,2100225834,Monthly Consolidated travel Costs December 2012,BD1 3AZ,"2,300.11",
Communities & Local Government,DCLG,09/01/2013,Travel and Subsistence Account,Troubled Families,REDFERN TRAVEL LIMITED,,Small,,2100225834,Monthly Consolidated travel Costs December 2012,BD1 3AZ,"2,224.12",
Communities & Local Government,DCLG,09/01/2013,Vehicle Maintenance,Localism,BABCOCK CRITICAL SERVICES LTD,,Large,,5106187390,Unplanne Maintenance 12/13,NG15 0DR,"-4,616.44",
Communities & Local Government,DCLG,09/01/2013,Vehicle Maintenance,Localism,BABCOCK CRITICAL SERVICES LTD,,Large,,5106187744,Planned Vehicle Maintenance 12/13,NG15 0DR,"629,535.82",
Communities & Local Government,DCLG,09/01/2013,Work In Progress Pre-Cert 40373 Spend,Neighbourhoods,NGAGE SOLUTIONS LTD,,Medium,,7600004076,ERDF Claim - 37 - P1,HP14 4BF,"7,020.63",
Communities & Local Government,DCLG,09/01/2013,Work In Progress Pre-Cert 40467 Spend,Neighbourhoods,PRACTICAL DEVELOPMENTS (SOUTH WEST),,,,7600004077,ERDF Claim - 41 - P4,TR15 1SS,"211,330.68",
Communities & Local Government,DCLG,10/01/2013,Agency Staff,Finance & Corporate Services,MICHAEL PAGE INTERNATIONAL,,Large,,5106188069,Interim contractor,SL1 3SA,"1,929.48",
Communities & Local Government,DCLG,10/01/2013,Agency Staff,Finance & Corporate Services,MICHAEL PAGE INTERNATIONAL,,Large,,5106188073,Interim contractor,SL1 3SA,"1,929.48",
Communities & Local Government,DCLG,10/01/2013,Agency Staff,Finance & Corporate Services,MICHAEL PAGE INTERNATIONAL,,Large,,5106188076,Interim contractor,SL1 3SA,"1,157.69",
Communities & Local Government,DCLG,10/01/2013,Agency Staff,Finance & Corporate Services,MICHAEL PAGE INTERNATIONAL,,Large,,5106188078,Interim contractor,SL1 3SA,"1,929.48",
Communities & Local Government,DCLG,10/01/2013,Agency Staff,Finance & Corporate Services,PREMIERE EMPLOYMENT GROUP LTD,,Large,,5106188077,Admin clerical support,M3 2JA,516.35,
Communities & Local Government,DCLG,10/01/2013,Agency Staff,Finance & Corporate Services,PREMIERE EMPLOYMENT GROUP LTD,,Large,,5106188079,Admin clerical support,M3 2JA,344.23,
Communities & Local Government,DCLG,10/01/2013,Agency Staff,Finance & Corporate Services,SBS GROUP (UK) LTD,,Large,,5106188066,SAP Technical Support,EC1N 8TS,"4,964.40",
Communities & Local Government,DCLG,10/01/2013,Agency Staff,Localism,MICHAEL PAGE INTERNATIONAL,,Large,,5106188070,Interim Manager,SL1 3SA,"4,687.50",
Communities & Local Government,DCLG,10/01/2013,Agency Staff,Localism,MICHAEL PAGE INTERNATIONAL,,Large,,5106188071,Interim Manager,SL1 3SA,"2,812.50",
Communities & Local Government,DCLG,10/01/2013,Agency Staff,Localism,WORKING FIT LTD,,Micro,,5106188057,Chair � Normal Pension Age Report,CT16 BF,"84,000.00",
Communities & Local Government,DCLG,10/01/2013,Agency Staff,Neighbourhoods,REED SPECIALIST RECRUITMENT LTD,,Large,,5106188062,Temporary Staff,NN1 1UE,362.30,
Communities & Local Government,DCLG,10/01/2013,Conferences and Meeting Facilities,Localism,JAIN NETWORK,Yes,Small,,5106188059,National celebration,NW9 5DR,250.00,
Communities & Local Government,DCLG,10/01/2013,Current (non AEF) Grants to Local Authorities,Troubled Families,DEPT FOR EDUCATION,,Public Bodies,,2100225841,To reimburse DfE for Troubled Families-350003469,CF14 3UW,"2,396,000.00",Yes
Communities & Local Government,DCLG,10/01/2013,Gas,Finance & Corporate Services,CORONA ENERGY LTD,,Medium,,5106185938,Eland House Gas 2012-13,WD17 1JW,"4,692.42",
Communities & Local Government,DCLG,10/01/2013,Gas,Finance & Corporate Services,CORONA ENERGY LTD,,Medium,,5106187737,Queens Street Leeds Gas 11-12,WD17 1JW,"1,784.77",
Communities & Local Government,DCLG,10/01/2013,Gas,Finance & Corporate Services,CORONA ENERGY LTD,,Medium,,5106188086,Queens Street Gas 2012-13,WD17 1JW,"1,611.60",
Communities & Local Government,DCLG,10/01/2013,IT - Service Contracts,Finance & Corporate Services,STERIA LIMITED,,Large,,5106188081,DCLG Link Service Feb 2011 to Feb 2013,M14 0WN,"13,492.44",
Communities & Local Government,DCLG,10/01/2013,IT - Service Contracts,Localism,AIRWAVE SOLUTIONS LTD,,Large,,5106188031,Phase C England (MDT1A) 2012/13,SL1 2EJ,"103,004.27",
Communities & Local Government,DCLG,10/01/2013,IT - Software Maintenance,Finance & Corporate Services,FRONTRANGE SOLUTIONS UK LTD,,Medium,,5106187552,HEAT software update,RG14 2PZ,"1,200.00",
Communities & Local Government,DCLG,10/01/2013,Management Consultancy,Neighbourhoods,CEL GROUP,,Medium,,5106187850,Payments for 1/10/12 - 30/09/13,SK13 8HT,"85,415.60",
Communities & Local Government,DCLG,10/01/2013,Physical Storage,Finance & Corporate Services,IRON MOUNTAIN (UK) LIMITED,,Large,,5106188052,Offsite storage - tapes,EH54 7DF,339.18,
Communities & Local Government,DCLG,10/01/2013,Printers,Localism,COMPUTACENTER (UK) LTD,,Large,,5106188051,HP CP5525xh Printer,AL10 9TW,"3,144.00",
Communities & Local Government,DCLG,10/01/2013,Professional services,Finance & Corporate Services,PRICEWATERHOUSECOOPERS,,Large,,5106188064,Payroll calculations,BT1 3LR,936.00,
Communities & Local Government,DCLG,10/01/2013,Professional services,Localism,GOVT ACTUARYS DEPARTMENT,,Public Bodies,,5106188028,TUPE transfer,EC4A 1AB,"1,734.48",
Communities & Local Government,DCLG,10/01/2013,Research,Finance & Corporate Services,NATIONAL CENTRE FOR SOCIAL RESEARCH,,Large,,5106188087,12/13 budget,EC1V 0AX,"291,152.29",
Communities & Local Government,DCLG,10/01/2013,Travel and Subsistence Account,Neighbourhoods,CHESHIRE WEST & CHESTER COUNCIL,,Public Bodies,,5106188060,Travelling Expenses for ,CH1 2NP,576.50,
Communities & Local Government,DCLG,10/01/2013,Work In Progress Pre-Cert 40373 Spend,Neighbourhoods,CASE TRAINING SERVICES LTD,Yes,Small,,7600004089,ERDF Claim - 21 - P3-YH,HU2 8DQ,"1,908.43",
Communities & Local Government,DCLG,10/01/2013,Work In Progress Pre-Cert 40373 Spend,Neighbourhoods,GROUNDWORK SHEFFIELD,Yes,Small,,7600004085,ERDF Claim - 17 - P3-YH,S1 4DP,865.09,
Communities & Local Government,DCLG,10/01/2013,Work In Progress Pre-Cert 40373 Spend,Neighbourhoods,GROUNDWORK SHEFFIELD,Yes,Small,,7600004088,ERDF Claim - 17 - P3-SY,S1 4DP,"14,215.16",
Communities & Local Government,DCLG,10/01/2013,Work In Progress Pre-Cert 40373 Spend,Neighbourhoods,KEY FUND (STH YORKSHIRE) LTD,,,,7600004082,ERDF Claim - 20 - P3-SY,S9 3TY,"2,565.66",
Communities & Local Government,DCLG,10/01/2013,Work In Progress Pre-Cert 40373 Spend,Neighbourhoods,KEY FUND (STH YORKSHIRE) LTD,,,,7600004083,ERDF Claim - 20 - P3-YH,S9 3TY,"3,483.44",
Communities & Local Government,DCLG,10/01/2013,Work In Progress Pre-Cert 40373 Spend,Neighbourhoods,LEICESTER CITY COUNCIL,,Large,,7600004080,ERDF Claim - 4 - P3,LE1 6ZG,"16,309.21",
Communities & Local Government,DCLG,10/01/2013,Work In Progress Pre-Cert 40373 Spend,Neighbourhoods,LEICS AFRICAN CARIBBEAN BUSINESS AS,,Small,,7600004084,ERDF Claim - 18 - P2,LE2 0GU,"6,799.04",
Communities & Local Government,DCLG,10/01/2013,Work In Progress Pre-Cert 40373 Spend,Neighbourhoods,SERCO REGIONAL SERVICES LTD,,,,7600004078,ERDF Claim - 5 - P2,PL6 8BT,"153,458.34",
Communities & Local Government,DCLG,10/01/2013,Work In Progress Pre-Cert 40373 Spend,Neighbourhoods,SOUTH WEST SCREEN,,,,7600004086,ERDF Claim - 11 - P1,BS1 5BT,"56,329.30",
Communities & Local Government,DCLG,10/01/2013,Work In Progress Pre-Cert 40373 Spend,Neighbourhoods,YTKO LIMITED,,,,7600004081,ERDF Claim - 6 - P2,CB4 0WS,"71,465.10",
Communities & Local Government,DCLG,10/01/2013,Work In Progress Pre-Cert 40467 Spend,Neighbourhoods,BRADFORD ENTERPRISE AGENCY LIMITED,,Micro,,7600004091,ERDF Claim - 27 - P2-YH,BD1 0AH,"68,173.38",
Communities & Local Government,DCLG,10/01/2013,Work In Progress Pre-Cert 40467 Spend,Neighbourhoods,CASE TRAINING SERVICES LTD,Yes,Small,,7600004089,ERDF Claim - 21 - P3-YH,HU2 8DQ,"63,269.45",
Communities & Local Government,DCLG,10/01/2013,Work In Progress Pre-Cert 40467 Spend,Neighbourhoods,CORNWALL COUNCIL,,,,7600004090,ERDF Claim - 9 - P1,TR1 3AY,"1,820,080.05",
Communities & Local Government,DCLG,10/01/2013,Work In Progress Pre-Cert 40467 Spend,Neighbourhoods,KINGSTON UPON HULL CITY COUNCIL,,,,7600004087,ERDF Claim - 29 - P3-YH,HU1 3ER,"233,272.35",
Communities & Local Government,DCLG,10/01/2013,Work In Progress Pre-Cert 40467 Spend,Neighbourhoods,TREMOUGH DEVELOPM'T VEHICLE LTD,,,,7600004079,ERDF Claim - 11 - P3,TR10 9EZ,"797,354.79",
Communities & Local Government,DCLG,11/01/2013,Advertising,Finance & Corporate Services,DATA LATERAL LTD,,Medium,,5106188207,Right to Buy Phase 2,NG17 5FB,"79,617.82",
Communities & Local Government,DCLG,11/01/2013,Agency Staff,Finance & Corporate Services,CAPITA RESOURCING LTD,,Large,,5106188182,Interim Manager,SL6 1DP,"1,633.28",
Communities & Local Government,DCLG,11/01/2013,Building Renovations,Finance & Corporate Services,E C HARRIS LLP,,Large,,5106187679,Ground Floor Conference Space Planing 67,N1 9AB,"5,421.00",
Communities & Local Government,DCLG,11/01/2013,Conferences and Meeting Facilities,Localism,FOREIGN & COMMONWEALTH,,Public Bodies,,5106188129,Conf. at Lancaster Hse - C of Europe,MK10 1PX,"9,568.43",
Communities & Local Government,DCLG,11/01/2013,Conferences and Meeting Facilities,Localism,FOREIGN & COMMONWEALTH,,Public Bodies,,5106188171,Conf. at Lancaster Hse - C of Europe,MK10 1PX,"-1,733.69",
Communities & Local Government,DCLG,11/01/2013,Current Grants to Non Profit Bodies,Localism,ARBOUR,,Small,,2100225884,"EIF Match Funding -"" Connecting Mums """,E1 1FG,"29,673.11",Yes
Communities & Local Government,DCLG,11/01/2013,Current Grants to Non Profit Bodies,Localism,SHOW RACISM THE RED CARD,,Small,,2100225863,Reducing young support for the far-right,NE30 2AY,"12,343.00",Yes
Communities & Local Government,DCLG,11/01/2013,Electricity,Finance & Corporate Services,EDF ENERGY 1 LIMITED,,Large,,5106188018,Bridge House Electricity 2012-13,PL3 5XQ,"-3,331.87",
Communities & Local Government,DCLG,11/01/2013,Electricity,Finance & Corporate Services,EDF ENERGY 1 LIMITED,,Large,,5106188143,EoE Waterbeach Electricity 2012-13,PL3 5XQ,"5,014.94",
Communities & Local Government,DCLG,11/01/2013,Electricity,Finance & Corporate Services,EDF ENERGY 1 LIMITED,,Large,,5106188153,WM Wolverhampton Electricity - 2012-13,PL3 5XQ,"4,725.80",
Communities & Local Government,DCLG,11/01/2013,Electricity,Finance & Corporate Services,EDF ENERGY 1 LIMITED,,Large,,5106188165,Y&H Wakefield Electricity - 2012-13,PL3 5XQ,"5,226.49",
Communities & Local Government,DCLG,11/01/2013,Electricity,Finance & Corporate Services,EDF ENERGY 1 LIMITED,,Large,,5106188168,Rivergate Electricity 2012-13,PL3 5XQ,"7,065.23",
Communities & Local Government,DCLG,11/01/2013,Electricity,Finance & Corporate Services,EDF ENERGY 1 LIMITED,,Large,,5106188193,Eland House Electricity 2012-13,PL3 5XQ,"31,269.78",
Communities & Local Government,DCLG,11/01/2013,Electricity,Finance & Corporate Services,EDF ENERGY 1 LIMITED,,Large,,5106188196,SW Taunton Electricity - 2012-13,PL3 5XQ,"5,789.56",
Communities & Local Government,DCLG,11/01/2013,Fixed Maintenance,Finance & Corporate Services,E C HARRIS LLP,,Large,,5106187662,Bridge House - PM Cofely/Gemco Phase 2,N1 9AB,"4,397.31",
Communities & Local Government,DCLG,11/01/2013,Fixed Maintenance,Neighbourhoods,E C HARRIS LLP,,Large,,5106188202,ERDF SWC LDU QS Services to Feb 14,N1 9AB,"1,254.00",
Communities & Local Government,DCLG,11/01/2013,Gas,Finance & Corporate Services,CORONA ENERGY LTD,,Medium,,5106188176,Queens Street Gas 2012-13,WD17 1JW,963.64,
Communities & Local Government,DCLG,11/01/2013,Gas,Finance & Corporate Services,CORONA ENERGY LTD,,Medium,,5106188178,Rivergate Gas 2012-13,WD17 1JW,"1,480.94",
Communities & Local Government,DCLG,11/01/2013,LA General GLA  Grant Payable,Strategic Performance Team,GREATER LONDON AUTHORITY,,Large,,2100225750,2012-13 - General GLA Grant,SE10 1AP,"2,303,125.00",Yes
Communities & Local Government,DCLG,11/01/2013,Legal Fees,Finance & Corporate Services,JONATHAN SWIFT QC,,Micro,Yes,5106188067,Legal advice,,264.00,
Communities & Local Government,DCLG,11/01/2013,Legal Fees,Finance & Corporate Services,SNR DENTON UK  LLP,,Large,,5106188142,(STA) FireContol Litigation & Property,EC4M 7WS,"3,785.88",
Communities & Local Government,DCLG,11/01/2013,Legal Fees,Localism,SIMMONS & SIMMONS,,Large,,5106188179,LegalAdvise-Fire.SColl[Extn 10/12-10/13],EC2Y 9SS,"98,622.00",
Communities & Local Government,DCLG,11/01/2013,Legal Fees,Localism,SIMMONS & SIMMONS,,Large,,5106188179,non vat charges,EC2Y 9SS,40.50,
Communities & Local Government,DCLG,11/01/2013,NNDR Billing Authorities Receipts,Localism,OFFICE OF THE PAYMASTER GENERAL (NN,,,,2100225866,NNDR Billing Authority Receipts,RH10 1UH,"2,026,094,892.00",Yes
Communities & Local Government,DCLG,11/01/2013,NNDR Central List Receipts,Localism,OFFICE OF THE PAYMASTER GENERAL (NN,,,,2100225866,NNDR Central List Receipts,RH10 1UH,"126,826,944.00",Yes
Communities & Local Government,DCLG,11/01/2013,NNDR Outturn Receipts,Localism,OFFICE OF THE PAYMASTER GENERAL (NN,,,,2100225866,NNDR Outturn Receipts,RH10 1UH,101.00,Yes
Communities & Local Government,DCLG,11/01/2013,Printers,Localism,COMPUTACENTER (UK) LTD,,Large,,5106188186,HP CP5525 dn Printer,AL10 9TW,"1,948.16",
Communities & Local Government,DCLG,11/01/2013,Professional services,Neighbourhoods,BUILDING RESEARCH ESTABLISHMENT,,Large,,5106188119,Code for Apr11 - Mar13 - MILESTONES,WD25 9XX,705.60,
Communities & Local Government,DCLG,11/01/2013,Software Licences,Localism,BYTES SOFTWARE SERVICES,,Medium,,5106187994,Visual Studio Ultimate with MSDN,KT17 1TS,"9,349.38",
Communities & Local Government,DCLG,11/01/2013,Telecoms equipment (non-capitalised),Finance & Corporate Services,INFORMATION SECURITY SYSTEMS LTD,,Micro,,5106187993,Brent Quarterly visit,HP12 3RL,"5,040.00",
Communities & Local Government,DCLG,11/01/2013,Training,Finance & Corporate Services,QA  LTD,,Large,,5106188188,(APMP)-5 Training Course - ,LS12 6BD,648.00,
Communities & Local Government,DCLG,11/01/2013,Training,Finance & Corporate Services,QA  LTD,,Large,,5106188189,(APMP)-5 Training Course - ,LS12 6BD,648.00,
Communities & Local Government,DCLG,11/01/2013,Training,Finance & Corporate Services,QA  LTD,,Large,,5106188190,(APMP)-5 Training Course - ,LS12 6BD,648.00,
Communities & Local Government,DCLG,11/01/2013,Training,Finance & Corporate Services,QA  LTD,,Large,,5106188191,(APMP)-5 Training Course - ,LS12 6BD,648.00,
Communities & Local Government,DCLG,11/01/2013,Travel and Subsistence Account,Finance & Corporate Services,GOVERNMENT CAR & DESPATCH AGENCY,,Public Bodies,,5106188149,Ministerial Cars,SW8 5AX,495.78,
Communities & Local Government,DCLG,11/01/2013,Travel and Subsistence Account,Finance & Corporate Services,GOVERNMENT CAR & DESPATCH AGENCY,,Public Bodies,,5106188161,Ministerial Cars,SW8 5AX,528.00,
Communities & Local Government,DCLG,11/01/2013,Water,Finance & Corporate Services,SEVERN TRENT WATER LTD,,Large,,5106188137,West Midlands RCC Water 12-13,CV3 9FJ,520.19,
Communities & Local Government,DCLG,11/01/2013,Water,Finance & Corporate Services,SIEMENS FINANCIAL SERVICES LTD,,Large,,5106188144,rental for water logic machine,SL2 4JS,754.20,
Communities & Local Government,DCLG,11/01/2013,Work In Progress Pre-Cert 40373 Spend,Neighbourhoods,LEEDS CITY COUNCIL,,,,7600004095,ERDF Claim - 24 - P3-YH,LS2 8BB,"17,455.06",
Communities & Local Government,DCLG,11/01/2013,Work In Progress Pre-Cert 40373 Spend,Neighbourhoods,UNIVERSITY OF SHEFFIELD,,,,7600004092,ERDF Claim - 32 - P1-YH,S60 5TZ,"33,381.52",
Communities & Local Government,DCLG,11/01/2013,Work In Progress Pre-Cert 40373 Spend,Neighbourhoods,UNIVERSITY OF SHEFFIELD,,,,7600004093,ERDF Claim - 22 - P1-SY,S60 5TZ,"8,424.32",
Communities & Local Government,DCLG,11/01/2013,Work In Progress Pre-Cert 40373 Spend,Neighbourhoods,UNIVERSITY OF SHEFFIELD,,,,7600004094,ERDF Claim - 22 - P1-YH,S60 5TZ,"7,602.57",
Communities & Local Government,DCLG,11/01/2013,Work In Progress Pre-Cert 40373 Spend,Neighbourhoods,YORK UNIVERSITY,,Large,,7600004096,ERDF Claim - 14 - P1-YH,YO10 5DD,"6,314.29",
Communities & Local Government,DCLG,11/01/2013,Work In Progress Pre-Cert 40467 Spend,Neighbourhoods,YORK UNIVERSITY,,Large,,7600004096,ERDF Claim - 14 - P1-YH,YO10 5DD,671.89,
Communities & Local Government,DCLG,14/01/2013,Accommodation Service Charges,Finance & Corporate Services,HOMES & COMMUNITIES AGENCY,,Public Bodies,,5106188271,Cumberland House - Admin Fee @ 2.5%,NE11 0NA,58.51,
Communities & Local Government,DCLG,14/01/2013,Accommodation Service Charges,Finance & Corporate Services,HOMES & COMMUNITIES AGENCY,,Public Bodies,,5106188271,Cumberland House Service Charge 2012-13,NE11 0NA,"1,950.36",
Communities & Local Government,DCLG,14/01/2013,Building Renovations,Finance & Corporate Services,E C HARRIS LLP,,Large,,5106188266,"As. Disp workspace, prod Block&Stack",N1 9AB,"3,049.00",
Communities & Local Government,DCLG,14/01/2013,Conferences and Meeting Facilities,Localism,FAITH REGEN FOUNDATION LTD,,,,5106188244,national celebration event,N11 2UT,250.00,
Communities & Local Government,DCLG,14/01/2013,Courier Services,Finance & Corporate Services,NATURAL ENGLAND,,Public Bodies,,5106188247,Postage & Stamps Eastbrook 2012,YO1 7PX,744.91,
Communities & Local Government,DCLG,14/01/2013,Current Grants to Non Profit Bodies,Localism,CHURCH URBAN FUND,,Small,,2100225864,Near Neighbours initiative grant payment,SW1P 3AZ,"263,394.00",Yes
Communities & Local Government,DCLG,14/01/2013,Electricity,Finance & Corporate Services,BRITISH GAS TRADING LIMITED,,Large,,5106188259,Mast House Electricity 2012-13,OX4 2JY,"1,566.35",
Communities & Local Government,DCLG,14/01/2013,Electricity,Finance & Corporate Services,BRITISH GAS TRADING LIMITED,,Large,,5106188268,Paradise Circus Electricity 2012.-13,OX4 2JY,"1,408.07",
Communities & Local Government,DCLG,14/01/2013,Fixed Maintenance,Finance & Corporate Services,BABCOCK SUPPORT SERVICES LTD,,Large,,5106188097,EoE Waterbeach Fixed Maintenance 2012-13,G2 5QR,"28,596.41",
Communities & Local Government,DCLG,14/01/2013,Fixed Maintenance,Finance & Corporate Services,BABCOCK SUPPORT SERVICES LTD,,Large,,5106188102,SW Taunton Fixed Maintenance 2012-13,G2 5QR,"28,856.40",
Communities & Local Government,DCLG,14/01/2013,Fixed Maintenance,Finance & Corporate Services,BABCOCK SUPPORT SERVICES LTD,,Large,,5106188114,WM Fixed Maintenance Cost 2012-13,G2 5QR,"29,504.79",
Communities & Local Government,DCLG,14/01/2013,Fixed Maintenance,Finance & Corporate Services,BABCOCK SUPPORT SERVICES LTD,,Large,,5106188116,EM Castle Don Fixed Maintenance 2012-13,G2 5QR,"28,587.96",
Communities & Local Government,DCLG,14/01/2013,Fixed Maintenance,Finance & Corporate Services,BABCOCK SUPPORT SERVICES LTD,,Large,,5106188118,Y&H Wakefield Fixed Maintenance 2012-13,G2 5QR,"29,890.72",
Communities & Local Government,DCLG,14/01/2013,Fixed Maintenance,Finance & Corporate Services,BABCOCK SUPPORT SERVICES LTD,,Large,,5106188121,WM Fixed Maintenance Cost 2012-13,G2 5QR,"29,504.79",
Communities & Local Government,DCLG,14/01/2013,Fixed Maintenance,Finance & Corporate Services,BABCOCK SUPPORT SERVICES LTD,,Large,,5106188123,EoE Waterbeach Fixed Maintenance 2012-13,G2 5QR,"28,596.41",
Communities & Local Government,DCLG,14/01/2013,Fixed Maintenance,Finance & Corporate Services,BABCOCK SUPPORT SERVICES LTD,,Large,,5106188125,SW Taunton Fixed Maintenance 2012-13,G2 5QR,"28,856.40",
Communities & Local Government,DCLG,14/01/2013,Fixed Maintenance,Finance & Corporate Services,BABCOCK SUPPORT SERVICES LTD,,Large,,5106188127,Y&H Wakefield Fixed Maintenance 2012-13,G2 5QR,"29,890.72",
Communities & Local Government,DCLG,14/01/2013,Fixed Maintenance,Finance & Corporate Services,BABCOCK SUPPORT SERVICES LTD,,Large,,5106188128,EM Castle Don Fixed Maintenance 2012-13,G2 5QR,"28,587.96",
Communities & Local Government,DCLG,14/01/2013,Fixed Maintenance,Finance & Corporate Services,E C HARRIS LLP,,Large,,5106188256,PAMU Estates Proj Management to Feb 14,N1 9AB,"5,634.30",
Communities & Local Government,DCLG,14/01/2013,Gas,Finance & Corporate Services,CORONA ENERGY LTD,,Medium,,5106188249,Queens Street Gas 2012-13,WD17 1JW,"1,266.22",
Communities & Local Government,DCLG,14/01/2013,Gas,Finance & Corporate Services,CORONA ENERGY LTD,,Medium,,5106188267,Rivergate Gas 2012-13,WD17 1JW,"2,838.48",
Communities & Local Government,DCLG,14/01/2013,IT - Service Contracts,Finance & Corporate Services,STERIA LIMITED,,Large,,5106186909,IT support service Inf4local,M14 0WN,624.59,
Communities & Local Government,DCLG,14/01/2013,LA PFI special grant payable,Localism,LOCAL PARTNERSHIPS LLP,,,,2600061815,Local Partnerships - PFI- Trading Partner9999,SW1P 3HZ,"278,856.00",Yes
Communities & Local Government,DCLG,14/01/2013,Online Database Information Retrieval,Finance & Corporate Services,OFFICE FOR NATIONAL STATISTICS,,Public Bodies,,5106188265,FUNDING CONTRIBUTION FOR UPDATING URBAN,NP10 8XG,"9,000.00",
Communities & Local Government,DCLG,14/01/2013,Publicity,Finance & Corporate Services,GORKANA GROUP LTD,,Large,,5106188236,Press cuttings,EC1Y 8QE,703.94,
Communities & Local Government,DCLG,14/01/2013,Publicity,Finance & Corporate Services,GORKANA GROUP LTD,,Large,,5106188269,Press Cuttings,EC1Y 8QE,"2,572.98",
Communities & Local Government,DCLG,14/01/2013,Publicity,Finance & Corporate Services,PRESS ASSOCIATION,,Large,,5106188101,Info for Media point business 12313,DN14 7YH,"1,240.93",
Communities & Local Government,DCLG,14/01/2013,Publicity,Neighbourhoods,WILLIAMS LEA LIMITED,,Large,,5106187967,East of England Case Study Booklet,W2 6LG,"2,373.00",
Communities & Local Government,DCLG,14/01/2013,Research,Neighbourhoods,OFFICE FOR NATIONAL STATISTICS,,Public Bodies,,5106187883,Annual Mineral Raised Inquiry Survey 2011,NP10 8XG,"105,176.00",
Communities & Local Government,DCLG,14/01/2013,Services provided by other Govt Orgs,Finance & Corporate Services,DEPARTMENT FOR WORK & PENSIONS,,Public Bodies,,5106188139,DCLG Security Clearances 2012-13,FY5 3TA,"2,297.38",Yes
Communities & Local Government,DCLG,14/01/2013,Telecoms equipment (non-capitalised),Localism,B T PAYMENT SERVICES LTD,,Large,,5106188254,BT OneBill Telephony Charges for FEU,DH98 1BT,370.38,
Communities & Local Government,DCLG,14/01/2013,Telephone call costs,Finance & Corporate Services,B T PAYMENT SERVICES LTD,,Large,,5106188225,20 % Telephone network charges,DH98 1BT,379.81,
Communities & Local Government,DCLG,14/01/2013,Training,Finance & Corporate Services,DODS PARLIAMENTARY COMM  LTD,,Large,,5106188248,Women into Leadership 2012,SW1H 9BP,295.00,
Communities & Local Government,DCLG,14/01/2013,Training,Finance & Corporate Services,EML LEARNING,,Micro,,5106188219,Economics for Non-Economists' Training,SG5 2DJ,650.00,
Communities & Local Government,DCLG,14/01/2013,Training,Finance & Corporate Services,QA  LTD,,Large,,5106188216,(APMP)-5 Training Course - ,LS12 6BD,648.00,
Communities & Local Government,DCLG,14/01/2013,Training,Finance & Corporate Services,QA  LTD,,Large,,5106188217,(APMP)-5 Training Course - ,LS12 6BD,648.00,
Communities & Local Government,DCLG,14/01/2013,Work In Progress Pre-Cert 40373 Spend,Neighbourhoods,NEWCASTLE UNIVERSITY,,,,7600004097,ERDF Claim - 1 - P2,NE1 7RU,766.83,
Communities & Local Government,DCLG,14/01/2013,Work In Progress Pre-Cert 40373 Spend,Neighbourhoods,NORTH EAST FINANCE (HOLDCO),,,,7600004098,ERDF Claim - 12 - P1,NE1 4AD,"452,679.80",
Communities & Local Government,DCLG,15/01/2013,Agency Staff,Finance & Corporate Services,PREMIERE EMPLOYMENT GROUP LTD,,Large,,5106188289,Recuiting temporary PA,M3 2JA,606.11,
Communities & Local Government,DCLG,15/01/2013,Agency Staff,Finance & Corporate Services,PREMIERE EMPLOYMENT GROUP LTD,,Large,,5106188310,Recuiting temporary PA,M3 2JA,606.10,
Communities & Local Government,DCLG,15/01/2013,Agency Staff,Finance & Corporate Services,PREMIERE EMPLOYMENT GROUP LTD,,Large,,5106188313,Recuiting temporary PA,M3 2JA,606.10,
Communities & Local Government,DCLG,15/01/2013,Agency Staff,Finance & Corporate Services,PREMIERE EMPLOYMENT GROUP LTD,,Large,,5106188315,Recuiting temporary PA,M3 2JA,606.10,
Communities & Local Government,DCLG,15/01/2013,Agency Staff,Neighbourhoods,LOCAL PARTNERSHIPS LLP,,,,5106188183,Commercial Advisor,SW1P 3HZ,"6,831.84",
Communities & Local Government,DCLG,15/01/2013,Building Renovations,Finance & Corporate Services,E C HARRIS LLP,,Large,,5106188258,Ground Floor Conference Space Planing 67,N1 9AB,"10,842.00",
Communities & Local Government,DCLG,15/01/2013,"IT - PC, Network & Hardware",Neighbourhoods,COMPUTACENTER (UK) LTD,,Large,,5106188145,:CCR: IronKey 4GB S200 Basic Edition,AL10 9TW,764.64,
Communities & Local Government,DCLG,15/01/2013,IT - Service Contracts,Neighbourhoods,I B M UK LTD,,Large,,5106188311,Contract Extension 2012-2014,PO6 3AE,"165,578.00",
Communities & Local Government,DCLG,15/01/2013,IT - Service Contracts,Neighbourhoods,I B M UK LTD,,Large,,5106188324,Contract Extension 2012-2014,PO6 3AE,"114,000.00",
Communities & Local Government,DCLG,15/01/2013,Legal Fees,Neighbourhoods,MINISTRY OF JUSTICE,,,,5106188300,Review of law: Right to Light,NP10 8ZF,"31,250.00",
Communities & Local Government,DCLG,15/01/2013,Local Services Support Grant,Localism,ADUR DC,,,,5000218243,Grant Payable by Exchequer,BN11 1HB,"4,790.00",
Communities & Local Government,DCLG,15/01/2013,Local Services Support Grant,Localism,ALLERDALE BC,,,,5000218244,Grant Payable by Exchequer,CA14 2RS,"6,541.00",
Communities & Local Government,DCLG,15/01/2013,Local Services Support Grant,Localism,AMBER VALLEY BC,,,,5000218245,Grant Payable by Exchequer,DE5 3WZ,"6,541.00",
Communities & Local Government,DCLG,15/01/2013,Local Services Support Grant,Localism,ARUN DC,,,,5000218099,Grant Payable by Exchequer,BN17 5LF,"8,291.00",
Communities & Local Government,DCLG,15/01/2013,Local Services Support Grant,Localism,ASHFIELD DC,,,,5000218246,Grant Payable by Exchequer,NG17 8DA,"4,168.00",
Communities & Local Government,DCLG,15/01/2013,Local Services Support Grant,Localism,ASHFORD BC,,,,5000218100,Grant Payable by Exchequer,TN23 1PL,"4,168.00",
Communities & Local Government,DCLG,15/01/2013,Local Services Support Grant,Localism,AYLESBURY VALE DC(HSG),,,,5000218101,Grant Payable by Exchequer,HP20 1SD,"6,075.00",
Communities & Local Government,DCLG,15/01/2013,Local Services Support Grant,Localism,BABERGH DC,,,,5000218102,Grant Payable by Exchequer,IP7 6SJ,"4,168.00",
Communities & Local Government,DCLG,15/01/2013,Local Services Support Grant,Localism,BARKING & DAGENHAM LB (HSG),,,,5000218103,Grant Payable by Exchequer,RM10 7BY,"65,152.00",
Communities & Local Government,DCLG,15/01/2013,Local Services Support Grant,Localism,BARNET LBC,,,,5000218247,Grant Payable by Exchequer,NW4 4BG,"80,329.00",
Communities & Local Government,DCLG,15/01/2013,Local Services Support Grant,Localism,BARNSLEY MBC,,,,5000218248,Grant Payable by Exchequer,S70 2AQ,"61,133.00",
Communities & Local Government,DCLG,15/01/2013,Local Services Support Grant,Localism,BARROW BC,,,,5000218249,Grant Payable by Exchequer,LA14 2LD,"183,329.00",
Communities & Local Government,DCLG,15/01/2013,Local Services Support Grant,Localism,BASILDON BOROUGH COUNCIL,,,,5000218250,Grant Payable by Exchequer,SS14 0DF,"28,382.00",
Communities & Local Government,DCLG,15/01/2013,Local Services Support Grant,Localism,BASINGSTOKE & DEANE BC,,,,5000218251,Grant Payable by Exchequer,RG21 2AJ,"10,042.00",
Communities & Local Government,DCLG,15/01/2013,Local Services Support Grant,Localism,BASSETLAW DC (HSG),,,,5000218104,Grant Payable by Exchequer,S80 2AH,"7,708.00",
Communities & Local Government,DCLG,15/01/2013,Local Services Support Grant,Localism,BATH & NE SOMERSET DC (HSG),,,,5000218105,Grant Payable by Exchequer,BA1 5AW,"56,361.00",
Communities & Local Government,DCLG,15/01/2013,Local Services Support Grant,Localism,BEDFORD UNITARY AUTHORITY,,,,5000218448,Grant Payable by Exchequer,MK40 1SJ,"47,918.00",
Communities & Local Government,DCLG,15/01/2013,Local Services Support Grant,Localism,BEXLEY LB (HSG),,,,5000218106,Grant Payable by Exchequer,DA8 1TL,"61,745.00",
Communities & Local Government,DCLG,15/01/2013,Local Services Support Grant,Localism,BIRMINGHAM CITY CNCL,,,,5000218252,Grant Payable by Exchequer,B2 2AJ,"200,802.00",
Communities & Local Government,DCLG,15/01/2013,Local Services Support Grant,Localism,BLABY DC (HSG),,,,5000218107,Grant Payable by Exchequer,LE9 5EP,"4,790.00",
Communities & Local Government,DCLG,15/01/2013,Local Services Support Grant,Localism,BLACKBURN WITH DARWEN BC,,,,5000218253,Grant Payable by Exchequer,BB1 7DY,"48,703.00",
Communities & Local Government,DCLG,15/01/2013,Local Services Support Grant,Localism,BLACKPOOL BC,,,,5000218254,Grant Payable by Exchequer,FY1 1NA,"78,908.00",
Communities & Local Government,DCLG,15/01/2013,Local Services Support Grant,Localism,BOLSOVER DC,,,,5000218255,Grant Payable by Exchequer,S44 6NF,"165,058.00",
Communities & Local Government,DCLG,15/01/2013,Local Services Support Grant,Localism,BOLTON MBC,,,,5000218256,Grant Payable by Exchequer,BL1 1RU,"71,802.00",
Communities & Local Government,DCLG,15/01/2013,Local Services Support Grant,Localism,BOSTON BC,,,,5000218108,Grant Payable by Exchequer,PE21 8QR,"8,291.00",
Communities & Local Government,DCLG,15/01/2013,Local Services Support Grant,Localism,BOURNEMOUTH DC,,,,5000218257,Grant Payable by Exchequer,BH2 6EB,"82,410.00",
Communities & Local Government,DCLG,15/01/2013,Local Services Support Grant,Localism,BRACKNELL FOREST DC,,,,5000218258,Grant Payable by Exchequer,RG12 1AQ,"28,957.00",
Communities & Local Government,DCLG,15/01/2013,Local Services Support Grant,Localism,BRADFORD MBC,,,,5000218259,Grant Payable by Exchequer,BD1 1HX,"85,295.00",
Communities & Local Government,DCLG,15/01/2013,Local Services Support Grant,Localism,BRAINTREE DC,,,,5000218109,Grant Payable by Exchequer,CM7 6HB,"5,958.00",
Communities & Local Government,DCLG,15/01/2013,Local Services Support Grant,Localism,BRECKLAND DC,,,,5000218110,Grant Payable by Exchequer,NR19 1EE,"23,375.00",
Communities & Local Government,DCLG,15/01/2013,Local Services Support Grant,Localism,BRENT LB (HSG),,,,5000218111,Grant Payable by Exchequer,HA9 9HD,"159,173.00",
Communities & Local Government,DCLG,15/01/2013,Local Services Support Grant,Localism,BRENTWOOD BC,,,,5000218260,Grant Payable by Exchequer,CM15 8AY,"4,168.00",
Communities & Local Government,DCLG,15/01/2013,Local Services Support Grant,Localism,BRIGHTON & HOVE CITY COUNCIL,,,,5000218261,Grant Payable by Exchequer,BN3 2SR,"163,035.00",
Communities & Local Government,DCLG,15/01/2013,Local Services Support Grant,Localism,BRISTOL CITY CNCL (HSG),,,,5000218112,Grant Payable by Exchequer,BS99 7BL,"168,015.00",
Communities & Local Government,DCLG,15/01/2013,Local Services Support Grant,Localism,BROADLAND DC,,Large,,5000218113,Grant Payable by Exchequer,NR7 0DU,"9,459.00",
Communities & Local Government,DCLG,15/01/2013,Local Services Support Grant,Localism,BROMLEY LB,,,,5000218262,Grant Payable by Exchequer,BR1 3UH,"68,577.00",
Communities & Local Government,DCLG,15/01/2013,Local Services Support Grant,Localism,BROMSGROVE DC,,,,5000218114,Grant Payable by Exchequer,B60 1AA,"9,459.00",
Communities & Local Government,DCLG,15/01/2013,Local Services Support Grant,Localism,BROXBOURNE BC,,Public Bodies,,5000218263,Grant Payable by Exchequer,EN8 9XG,"5,374.00",
Communities & Local Government,DCLG,15/01/2013,Local Services Support Grant,Localism,BROXTOWE BC,,,,5000218264,Grant Payable by Exchequer,NG9 1AB,"7,358.00",
Communities & Local Government,DCLG,15/01/2013,Local Services Support Grant,Localism,BUCKINGHAMSHIRE CC,,,,5000218265,Grant Payable by Exchequer,HP20 1UD,"109,971.00",
Communities & Local Government,DCLG,15/01/2013,Local Services Support Grant,Localism,BURNLEY BC,,,,5000218266,Grant Payable by Exchequer,BB11 1JA,"280,475.00",
Communities & Local Government,DCLG,15/01/2013,Local Services Support Grant,Localism,CALDERDALE MBC,,,,5000218268,Grant Payable by Exchequer,HX1 1YP,"53,656.00",
Communities & Local Government,DCLG,15/01/2013,Local Services Support Grant,Localism,CAMBRIDGE CITY COUNCIL,,,,5000218269,Grant Payable by Exchequer,CB2 3NA,"47,971.00",
Communities & Local Government,DCLG,15/01/2013,Local Services Support Grant,Localism,CAMBRIDGESHIRE COUNTY CNCL,,,,5000218270,Grant Payable by Exchequer,CB3 0AP,"96,695.00",
Communities & Local Government,DCLG,15/01/2013,Local Services Support Grant,Localism,CAMDEN LB,,,,5000218271,Grant Payable by Exchequer,WC1H 8NG,"204,239.00",
Communities & Local Government,DCLG,15/01/2013,Local Services Support Grant,Localism,CANNOCK CHASE DC,,,,5000218272,Grant Payable by Exchequer,WS11 1BG,"6,191.00",
Communities & Local Government,DCLG,15/01/2013,Local Services Support Grant,Localism,CANTERBURY CITY CNCL,,,,5000218115,Grant Payable by Exchequer,CT1 1YW,"28,715.00",
Communities & Local Government,DCLG,15/01/2013,Local Services Support Grant,Localism,CARLISLE CITY CNCL,,,,5000218116,Grant Payable by Exchequer,CA3 8QG,"7,125.00",
Communities & Local Government,DCLG,15/01/2013,Local Services Support Grant,Localism,CASTLE POINT BC,,,,5000218273,Grant Payable by Exchequer,SS7 1TF,"7,125.00",
Communities & Local Government,DCLG,15/01/2013,Local Services Support Grant,Localism,CENTRAL BEDFORDSHIRE COUNCIL,,,,5000218445,Grant Payable by Exchequer,SG17 5TQ,"47,756.00",
Communities & Local Government,DCLG,15/01/2013,Local Services Support Grant,Localism,CHARNWOOD BC,,,,5000218274,Grant Payable by Exchequer,LE11 2TU,"8,759.00",
Communities & Local Government,DCLG,15/01/2013,Local Services Support Grant,Localism,CHELMSFORD BC,,,,5000218275,Grant Payable by Exchequer,CM1 1JE,"5,374.00",
Communities & Local Government,DCLG,15/01/2013,Local Services Support Grant,Localism,CHELTENHAM BC,,,,5000218276,Grant Payable by Exchequer,GL50 1PW,"7,708.00",
Communities & Local Government,DCLG,15/01/2013,Local Services Support Grant,Localism,CHERWELL DC,,,,5000218117,Grant Payable by Exchequer,OX15 4AA,"10,042.00",
Communities & Local Government,DCLG,15/01/2013,Local Services Support Grant,Localism,CHESHIRE EAST COUNCIL,,,,5000218446,Grant Payable by Exchequer,SK10 1DP,"80,244.00",
Communities & Local Government,DCLG,15/01/2013,Local Services Support Grant,Localism,CHESHIRE WEST & CHESTER COUNCIL,,,,5000218447,Grant Payable by Exchequer,CH1 1SG,"143,075.00",
Communities & Local Government,DCLG,15/01/2013,Local Services Support Grant,Localism,CHESTERFIELD BC,,,,5000218277,Grant Payable by Exchequer,S40 1LP,"75,756.00",
Communities & Local Government,DCLG,15/01/2013,Local Services Support Grant,Localism,CHICHESTER DC,,,,5000218118,Grant Payable by Exchequer,PO19 1TY,"9,459.00",
Communities & Local Government,DCLG,15/01/2013,Local Services Support Grant,Localism,CHILTERN DC (HSG),,,,5000218119,Grant Payable by Exchequer,HP6 5AW,"5,958.00",
Communities & Local Government,DCLG,15/01/2013,Local Services Support Grant,Localism,CHORLEY DC,,,,5000218278,Grant Payable by Exchequer,PR7 1DP,"5,958.00",
Communities & Local Government,DCLG,15/01/2013,Local Services Support Grant,Localism,CHRISTCHURCH BC (HSG),,,,5000218120,Grant Payable by Exchequer,BH23 1AZ,"5,958.00",
Communities & Local Government,DCLG,15/01/2013,Local Services Support Grant,Localism,CITY OF LINCOLN COUNCIL,,,,5000218341,Grant Payable by Exchequer,LN1 1DB,"10,859.00",
Communities & Local Government,DCLG,15/01/2013,Local Services Support Grant,Localism,CITY OF LONDON (HSG),,,,5000218121,Grant Payable by Exchequer,EC2P 2EJ,"47,856.00",
Communities & Local Government,DCLG,15/01/2013,Local Services Support Grant,Localism,CITY OF SUNDERLAND (HSG),,,,5000218122,Grant Payable by Exchequer,SR2 7DN,"61,375.00",
Communities & Local Government,DCLG,15/01/2013,Local Services Support Grant,Localism,CITY OF WAKEFIELD MDC,,,,5000218419,Grant Payable by Exchequer,WF1 2QW,"96,298.00",
Communities & Local Government,DCLG,15/01/2013,Local Services Support Grant,Localism,COLCHESTER BC,,,,5000218279,Grant Payable by Exchequer,CO3 3WG,"16,461.00",
Communities & Local Government,DCLG,15/01/2013,Local Services Support Grant,Localism,COPELAND BC,,,,5000218123,Grant Payable by Exchequer,CA28 7NY,"31,429.00",
Communities & Local Government,DCLG,15/01/2013,Local Services Support Grant,Localism,CORBY BC,,,,5000218124,Grant Payable by Exchequer,NN17 1GD,"5,958.00",
Communities & Local Government,DCLG,15/01/2013,Local Services Support Grant,Localism,CORNWALL UNITARY AUTHORITY,,,,5000218450,Grant Payable by Exchequer,TR1 3AY,"225,812.00",
Communities & Local Government,DCLG,15/01/2013,Local Services Support Grant,Localism,COTSWOLD DC,,,,5000218125,Grant Payable by Exchequer,GL7 1PX,"4,207.00",
Communities & Local Government,DCLG,15/01/2013,Local Services Support Grant,Localism,COVENTRY CITY CNCL,,,,5000218280,Grant Payable by Exchequer,CV1 2QL,"67,358.00",
Communities & Local Government,DCLG,15/01/2013,Local Services Support Grant,Localism,CRAVEN DC (HSG),,,,5000218126,Grant Payable by Exchequer,BD23 1PS,"7,125.00",
Communities & Local Government,DCLG,15/01/2013,Local Services Support Grant,Localism,CRAWLEY BC,,,,5000218127,Grant Payable by Exchequer,RH10 1UZ,"11,910.00",
Communities & Local Government,DCLG,15/01/2013,Local Services Support Grant,Localism,CROYDON LB,,,,5000218281,Grant Payable by Exchequer,CR9 3JS,"118,493.00",
Communities & Local Government,DCLG,15/01/2013,Local Services Support Grant,Localism,CUMBRIA COUNTY CNCL,,,,5000218282,Grant Payable by Exchequer,CA3 8NA,"124,653.00",
Communities & Local Government,DCLG,15/01/2013,Local Services Support Grant,Localism,DACORUM BC,,,,5000218283,Grant Payable by Exchequer,HP1 1HH,"4,168.00",
Communities & Local Government,DCLG,15/01/2013,Local Services Support Grant,Localism,DARLINGTON BC,,,,5000218284,Grant Payable by Exchequer,TS19 1JA,"34,992.00",
Communities & Local Government,DCLG,15/01/2013,Local Services Support Grant,Localism,DARTFORD BC,,,,5000218128,Grant Payable by Exchequer,DA1 1DR,"8,876.00",
Communities & Local Government,DCLG,15/01/2013,Local Services Support Grant,Localism,DAVENTRY DC,,,,5000218129,Grant Payable by Exchequer,NN11 5AF,"4,557.00",
Communities & Local Government,DCLG,15/01/2013,Local Services Support Grant,Localism,DERBY CITY CNCL,,,,5000218285,Grant Payable by Exchequer,DE1 2FS,"77,078.00",
Communities & Local Government,DCLG,15/01/2013,Local Services Support Grant,Localism,DERBYSHIRE COUNTYCOUNCIL,,,,5000218286,Grant Payable by Exchequer,DE4 3AH,"190,622.00",
Communities & Local Government,DCLG,15/01/2013,Local Services Support Grant,Localism,DERBYSHIRE DALES DC,,,,5000218130,Grant Payable by Exchequer,DE4 3NN,"11,793.00",
Communities & Local Government,DCLG,15/01/2013,Local Services Support Grant,Localism,DEVON COUNTY CNCL,,,,5000218287,Grant Payable by Exchequer,EX2 4QJ,"166,243.00",
Communities & Local Government,DCLG,15/01/2013,Local Services Support Grant,Localism,DONCASTER MBC,,,,5000218288,Grant Payable by Exchequer,DN1 3QA,"111,632.00",
Communities & Local Government,DCLG,15/01/2013,Local Services Support Grant,Localism,DORSET COUNTY CNCL,,,,5000218289,Grant Payable by Exchequer,DT1 1XJ,"111,026.00",
Communities & Local Government,DCLG,15/01/2013,Local Services Support Grant,Localism,DOVER DC,,,,5000218131,Grant Payable by Exchequer,CT16 3PD,"13,894.00",
Communities & Local Government,DCLG,15/01/2013,Local Services Support Grant,Localism,DUDLEY MBC,,,,5000218290,Grant Payable by Exchequer,DY1 1HF,"48,335.00",
Communities & Local Government,DCLG,15/01/2013,Local Services Support Grant,Localism,DURHAM UNITARY AUTHORITY,,,,5000218451,Grant Payable by Exchequer,DH1 5UE,"213,245.00",
Communities & Local Government,DCLG,15/01/2013,Local Services Support Grant,Localism,EALING LB,,,,5000218291,Grant Payable by Exchequer,W5 2HL,"119,372.00",
Communities & Local Government,DCLG,15/01/2013,Local Services Support Grant,Localism,EAST CAMBRIDGESHIRE DC,,,,5000218132,Grant Payable by Exchequer,CB7 4PL,"5,608.00",
Communities & Local Government,DCLG,15/01/2013,Local Services Support Grant,Localism,EAST DEVON DC,,,,5000218133,Grant Payable by Exchequer,EX10 8HL,"8,291.00",
Communities & Local Government,DCLG,15/01/2013,Local Services Support Grant,Localism,EAST DORSET DC,,,,5000218292,Grant Payable by Exchequer,BH21 4HN,"5,958.00",
Communities & Local Government,DCLG,15/01/2013,Local Services Support Grant,Localism,EAST HAMPSHIRE DC,,,,5000218134,Grant Payable by Exchequer,GU31 4EX,"8,992.00",
Communities & Local Government,DCLG,15/01/2013,Local Services Support Grant,Localism,EAST HERTFORDSHIRE DC,,,,5000218135,Grant Payable by Exchequer,SG13 8EQ,"4,168.00",
Communities & Local Government,DCLG,15/01/2013,Local Services Support Grant,Localism,EAST LINDSEY DC,,,,5000218136,Grant Payable by Exchequer,LN11 8UP,"8,291.00",
Communities & Local Government,DCLG,15/01/2013,Local Services Support Grant,Localism,EAST NORTHAMPTONSHIRE COUNCIL,,,,5000218137,Grant Payable by Exchequer,NN14 4LZ,"4,168.00",
Communities & Local Government,DCLG,15/01/2013,Local Services Support Grant,Localism,EAST RIDING OF YORKS (HSG),,,,5000218138,Grant Payable by Exchequer,HU17 9BA,"106,998.00",
Communities & Local Government,DCLG,15/01/2013,Local Services Support Grant,Localism,EAST STAFFORDSHIRE BC,,,,5000218139,Grant Payable by Exchequer,DE14 2EB,"4,168.00",
Communities & Local Government,DCLG,15/01/2013,Local Services Support Grant,Localism,EAST SUSSEX COUNTY CNCL,,,,5000218293,Grant Payable by Exchequer,BN7 1SF,"140,355.00",
Communities & Local Government,DCLG,15/01/2013,Local Services Support Grant,Localism,EASTBOURNE BC,,,,5000218294,Grant Payable by Exchequer,BN21 4TW,"15,294.00",
Communities & Local Government,DCLG,15/01/2013,Local Services Support Grant,Localism,EASTLEIGH BOROUGH COUNCIL,,,,5000218295,Grant Payable by Exchequer,SO5 9YN,"4,168.00",
Communities & Local Government,DCLG,15/01/2013,Local Services Support Grant,Localism,EDEN DC (HSG),,,,5000218140,Grant Payable by Exchequer,CA11 7QF,"10,626.00",
Communities & Local Government,DCLG,15/01/2013,Local Services Support Grant,Localism,ELMBRIDGE BC (HSG),,,,5000218141,Grant Payable by Exchequer,KT10 9SD,"7,708.00",
Communities & Local Government,DCLG,15/01/2013,Local Services Support Grant,Localism,ENFIELD LB,,,,5000218296,Grant Payable by Exchequer,EN1 3XF,"74,380.00",
Communities & Local Government,DCLG,15/01/2013,Local Services Support Grant,Localism,EPPING FOREST DC,,,,5000218297,Grant Payable by Exchequer,CM16 4BZ,"9,459.00",
Communities & Local Government,DCLG,15/01/2013,Local Services Support Grant,Localism,EPSOM & EWELL BC,,,,5000218298,Grant Payable by Exchequer,KT18 5BY,"11,210.00",
Communities & Local Government,DCLG,15/01/2013,Local Services Support Grant,Localism,EREWASH BC,,,,5000218299,Grant Payable by Exchequer,DE7 5RP,"8,291.00",
Communities & Local Government,DCLG,15/01/2013,Local Services Support Grant,Localism,ESSEX COUNTY CNCL,,,,5000218300,Grant Payable by Exchequer,CM1 1JZ,"280,828.00",
Communities & Local Government,DCLG,15/01/2013,Local Services Support Grant,Localism,EXETER CITY CNCL,,,,5000218301,Grant Payable by Exchequer,EX1 1JN,"42,136.00",
Communities & Local Government,DCLG,15/01/2013,Local Services Support Grant,Localism,FAREHAM BC,,,,5000218142,Grant Payable by Exchequer,PO16 7PU,"4,790.00",
Communities & Local Government,DCLG,15/01/2013,Local Services Support Grant,Localism,FENLAND DC,,,,5000218143,Grant Payable by Exchequer,PE15 8NQ,"5,958.00",
Communities & Local Government,DCLG,15/01/2013,Local Services Support Grant,Localism,FOREST HEATH DISTRICT COUNCIL,,,,5000218144,Grant Payable by Exchequer,IP28 7EY,"4,168.00",
Communities & Local Government,DCLG,15/01/2013,Local Services Support Grant,Localism,FOREST OF DEAN DC,,,,5000218145,Grant Payable by Exchequer,GL16 8HG,"4,168.00",
Communities & Local Government,DCLG,15/01/2013,Local Services Support Grant,Localism,FYLDE BC,,,,5000218302,Grant Payable by Exchequer,FY8 1LW,"4,168.00",
Communities & Local Government,DCLG,15/01/2013,Local Services Support Grant,Localism,GATESHEAD MBC,,,,5000218303,Grant Payable by Exchequer,NE8 1HH,"46,507.00",
Communities & Local Government,DCLG,15/01/2013,Local Services Support Grant,Localism,GEDLING BC,,,,5000218304,Grant Payable by Exchequer,NG5 6LU,"6,541.00",
Communities & Local Government,DCLG,15/01/2013,Local Services Support Grant,Localism,GLOUCESTER CITY CNCL,,,,5000218305,Grant Payable by Exchequer,GL1 2EQ,"31,633.00",
Communities & Local Government,DCLG,15/01/2013,Local Services Support Grant,Localism,GLOUCESTERSHIRE COUNTY CNCL,,,,5000218306,Grant Payable by Exchequer,GL1 2TG,"114,084.00",
Communities & Local Government,DCLG,15/01/2013,Local Services Support Grant,Localism,GMRB,,,,5000218267,Grant Payable by Exchequer,BL9 0SW,"69,126.00",
Communities & Local Government,DCLG,15/01/2013,Local Services Support Grant,Localism,GOSPORT BOROUGH COUNCIL,,,,5000218307,Grant Payable by Exchequer,PO12 1ED,"7,241.00",
Communities & Local Government,DCLG,15/01/2013,Local Services Support Grant,Localism,GRAVESHAM BC,,,,5000218308,Grant Payable by Exchequer,DA12 1AU,"8,291.00",
Communities & Local Government,DCLG,15/01/2013,Local Services Support Grant,Localism,GREAT YARMOUTH BC,,,,5000218309,Grant Payable by Exchequer,NR30 2QG,"269,920.00",
Communities & Local Government,DCLG,15/01/2013,Local Services Support Grant,Localism,GREATER LONDON AUTHORITY,,,,5000218452,Grant Payable by Exchequer,SE10 1AJ,"446,052.00",
Communities & Local Government,DCLG,15/01/2013,Local Services Support Grant,Localism,GREENWICH LB,,,,5000218310,Grant Payable by Exchequer,SE18 6BU,"71,143.00",
Communities & Local Government,DCLG,15/01/2013,Local Services Support Grant,Localism,GUILDFORD BC,,,,5000218146,Grant Payable by Exchequer,GU2 5BB,"31,049.00",
Communities & Local Government,DCLG,15/01/2013,Local Services Support Grant,Localism,HALTON BC (HSG),,,,5000218147,Grant Payable by Exchequer,WA8 7QF,"34,569.00",
Communities & Local Government,DCLG,15/01/2013,Local Services Support Grant,Localism,HAMBLETON DC (HSG),,,,5000218148,Grant Payable by Exchequer,DL6 2UU,"5,958.00",
Communities & Local Government,DCLG,15/01/2013,Local Services Support Grant,Localism,HAMMERSMITH & FULHAM LB,,,,5000218312,Grant Payable by Exchequer,W6 9JU,"175,862.00",
Communities & Local Government,DCLG,15/01/2013,Local Services Support Grant,Localism,HAMPSHIRE COUNTY COUNCIL,,,,5000218313,Grant Payable by Exchequer,SO23 8UB,"192,003.00",
Communities & Local Government,DCLG,15/01/2013,Local Services Support Grant,Localism,HARBOROUGH DC (HSG),,,,5000218149,Grant Payable by Exchequer,LE16 7AG,"7,708.00",
Communities & Local Government,DCLG,15/01/2013,Local Services Support Grant,Localism,HARINGEY LB,,,,5000218314,Grant Payable by Exchequer,N22 4TR,"96,316.00",
Communities & Local Government,DCLG,15/01/2013,Local Services Support Grant,Localism,HARLOW DISTRICT COUNCIL,,,,5000218315,Grant Payable by Exchequer,CM20 1WG,"14,127.00",
Communities & Local Government,DCLG,15/01/2013,Local Services Support Grant,Localism,HARROGATE BC,,,,5000218150,Grant Payable by Exchequer,HG1 2SG,"8,336.00",
Communities & Local Government,DCLG,15/01/2013,Local Services Support Grant,Localism,HARROW LB,,,,5000218316,Grant Payable by Exchequer,HA1 2UZ,"65,548.00",
Communities & Local Government,DCLG,15/01/2013,Local Services Support Grant,Localism,HART DC,,,,5000218317,Grant Payable by Exchequer,GU13 8AE,"14,944.00",
Communities & Local Government,DCLG,15/01/2013,Local Services Support Grant,Localism,HARTLEPOOL BOROUGH COUNCIL,,,,5000218318,Grant Payable by Exchequer,TS24 7BT,"32,954.00",
Communities & Local Government,DCLG,15/01/2013,Local Services Support Grant,Localism,HASTINGS BC,,,,5000218319,Grant Payable by Exchequer,TN34 3WN,"195,218.00",
Communities & Local Government,DCLG,15/01/2013,Local Services Support Grant,Localism,HAVANT BC,,,,5000218320,Grant Payable by Exchequer,PO9 2AX,"8,409.00",
Communities & Local Government,DCLG,15/01/2013,Local Services Support Grant,Localism,HAVERING LB,,,,5000218321,Grant Payable by Exchequer,RM1 3BB,"63,983.00",
Communities & Local Government,DCLG,15/01/2013,Local Services Support Grant,Localism,HEREFORDSHIRE COUNCIL,,,,5000218151,Grant Payable by Exchequer,HR4 0XH,"87,097.00",
Communities & Local Government,DCLG,15/01/2013,Local Services Support Grant,Localism,HERTFORDSHIRE COUNTY CNCL,,,,5000218322,Grant Payable by Exchequer,SG13 8DQ,"177,829.00",
Communities & Local Government,DCLG,15/01/2013,Local Services Support Grant,Localism,HERTSMERE BC,,,,5000218323,Grant Payable by Exchequer,WD6 1WA,"5,958.00",
Communities & Local Government,DCLG,15/01/2013,Local Services Support Grant,Localism,HIGH PEAK BC,,,,5000218152,Grant Payable by Exchequer,SK17 6EL,"12,377.00",
Communities & Local Government,DCLG,15/01/2013,Local Services Support Grant,Localism,HILLINGDON LB,,,,5000218324,Grant Payable by Exchequer,UB8 1UW,"70,198.00",
Communities & Local Government,DCLG,15/01/2013,Local Services Support Grant,Localism,HINCKLEY & BOSWORTH BC,,,,5000218153,Grant Payable by Exchequer,LE10 1BZ,"4,168.00",
Communities & Local Government,DCLG,15/01/2013,Local Services Support Grant,Localism,HORSHAM DC,,,,5000218154,Grant Payable by Exchequer,RH12 1RL,"8,876.00",
Communities & Local Government,DCLG,15/01/2013,Local Services Support Grant,Localism,HOUNSLOW LB,,Public Bodies,,5000218325,Grant Payable by Exchequer,TW3 4DN,"74,600.00",
Communities & Local Government,DCLG,15/01/2013,Local Services Support Grant,Localism,HULL CITY COUNCIL,,,,5000218334,Grant Payable by Exchequer,HU1 2AA,"99,854.00",
Communities & Local Government,DCLG,15/01/2013,Local Services Support Grant,Localism,HUNTINGDONSHIRE DC,,,,5000218155,Grant Payable by Exchequer,PE18 6TN,"7,125.00",
Communities & Local Government,DCLG,15/01/2013,Local Services Support Grant,Localism,HYNDBURN BC,,,,5000218326,Grant Payable by Exchequer,BB5 1EZ,"187,064.00",
Communities & Local Government,DCLG,15/01/2013,Local Services Support Grant,Localism,IPSWICH BC,,,,5000218327,Grant Payable by Exchequer,IP1 2EE,"10,626.00",
Communities & Local Government,DCLG,15/01/2013,Local Services Support Grant,Localism,ISLE OF WIGHT CNCL,,,,5000218328,Grant Payable by Exchequer,PO30 1UD,"51,302.00",
Communities & Local Government,DCLG,15/01/2013,Local Services Support Grant,Localism,ISLES OF SCILLY COUNCIL,,,,5000218329,Grant Payable by Exchequer,TR21 0LW,"24,536.00",
Communities & Local Government,DCLG,15/01/2013,Local Services Support Grant,Localism,ISLINGTON LB,,,,5000218330,Grant Payable by Exchequer,N1 1XR,"106,014.00",
Communities & Local Government,DCLG,15/01/2013,Local Services Support Grant,Localism,KENT COUNTY CNCL,,,,5000218332,Grant Payable by Exchequer,ME14 1XQ,"286,471.00",
Communities & Local Government,DCLG,15/01/2013,Local Services Support Grant,Localism,KETTERING BC,,,,5000218333,Grant Payable by Exchequer,NN15 7QX,"9,459.00",
Communities & Local Government,DCLG,15/01/2013,Local Services Support Grant,Localism,KINGS LYNN & WEST NORFOLK BC,,,,5000218156,Grant Payable by Exchequer,PE30 1EX,"10,626.00",
Communities & Local Government,DCLG,15/01/2013,Local Services Support Grant,Localism,KINGSTON UPON THAMES  (HSG),,,,5000218157,Grant Payable by Exchequer,KT1 1EU,"56,092.00",
Communities & Local Government,DCLG,15/01/2013,Local Services Support Grant,Localism,KIRKLEES COUNCIL (HSG),,,,5000218158,Grant Payable by Exchequer,HD1 2YU,"65,380.00",
Communities & Local Government,DCLG,15/01/2013,Local Services Support Grant,Localism,KNOWSLEY MBC,,,,5000218335,Grant Payable by Exchequer,L36 9YZ,"30,836.00",
Communities & Local Government,DCLG,15/01/2013,Local Services Support Grant,Localism,LANCASHIRE COUNTY CNCL,,,,5000218337,Grant Payable by Exchequer,PR1 8RD,"262,068.00",
Communities & Local Government,DCLG,15/01/2013,Local Services Support Grant,Localism,LANCASTER CITY CNCL,,,,5000218159,Grant Payable by Exchequer,LA1 1PJ,"7,825.00",
Communities & Local Government,DCLG,15/01/2013,Local Services Support Grant,Localism,LEEDS CITY CNCL,,,,5000218338,Grant Payable by Exchequer,LS1 1JF,"185,134.00",
Communities & Local Government,DCLG,15/01/2013,Local Services Support Grant,Localism,LEICESTER CITY CNCL (HSG),,,,5000218160,Grant Payable by Exchequer,LE1 6ZG,"100,597.00",
Communities & Local Government,DCLG,15/01/2013,Local Services Support Grant,Localism,LEICESTERSHIRE COUNTY CNCL,,,,5000218339,Grant Payable by Exchequer,LE3 8RB,"117,747.00",
Communities & Local Government,DCLG,15/01/2013,Local Services Support Grant,Localism,LEWES DC,,,,5000218161,Grant Payable by Exchequer,BN7 2DQ,"9,459.00",
Communities & Local Government,DCLG,15/01/2013,Local Services Support Grant,Localism,LEWISHAM LB (HSG),,,,5000218162,Grant Payable by Exchequer,SE6 4RU,"79,958.00",
Communities & Local Government,DCLG,15/01/2013,Local Services Support Grant,Localism,LICHFIELD DC,,,,5000218340,Grant Payable by Exchequer,WS13 6YX,"5,958.00",
Communities & Local Government,DCLG,15/01/2013,Local Services Support Grant,Localism,LINCOLNSHIRE COUNTY COUNCIL,,,,5000218342,Grant Payable by Exchequer,LN1 1YT,"166,717.00",
Communities & Local Government,DCLG,15/01/2013,Local Services Support Grant,Localism,LIVERPOOL CITY COUNCIL,,,,5000218343,Grant Payable by Exchequer,L2 2DH,"119,472.00",
Communities & Local Government,DCLG,15/01/2013,Local Services Support Grant,Localism,LONDON BOROUGH OF HACKNEY,,,,5000218311,Grant Payable by Exchequer,E8 4RU,"115,545.00",
Communities & Local Government,DCLG,15/01/2013,Local Services Support Grant,Localism,LONDON BOROUGH OF LAMBETH,,,,5000218336,Grant Payable by Exchequer,SW2 1RL,"273,140.00",
Communities & Local Government,DCLG,15/01/2013,Local Services Support Grant,Localism,LONDON BOROUGH OF NEWHAM,,,,5000218352,Grant Payable by Exchequer,E16 2QU,"97,319.00",
Communities & Local Government,DCLG,15/01/2013,Local Services Support Grant,Localism,LONDON BOROUGH OF REDBRIDGE,,,,5000218374,Grant Payable by Exchequer,IG1 1NN,"60,890.00",
Communities & Local Government,DCLG,15/01/2013,Local Services Support Grant,Localism,LUTON BC,,,,5000218344,Grant Payable by Exchequer,LU1 1DX,"52,399.00",
Communities & Local Government,DCLG,15/01/2013,Local Services Support Grant,Localism,MAIDSTONE BC,,Public Bodies,,5000218163,Grant Payable by Exchequer,ME15 6JQ,"10,042.00",
Communities & Local Government,DCLG,15/01/2013,Local Services Support Grant,Localism,MALDON DC,,,,5000218164,Grant Payable by Exchequer,CM9 7DL,"10,792.00",
Communities & Local Government,DCLG,15/01/2013,Local Services Support Grant,Localism,MALVERN HILLS DC,,,,5000218345,Grant Payable by Exchequer,WR14 3AF,"8,526.00",
Communities & Local Government,DCLG,15/01/2013,Local Services Support Grant,Localism,MANCHESTER CITY CNCL (HSG),,,,5000218165,Grant Payable by Exchequer,M60 2JR,"185,953.00",
Communities & Local Government,DCLG,15/01/2013,Local Services Support Grant,Localism,MANSFIELD DC,,,,5000218346,Grant Payable by Exchequer,NG19 7BH,"11,210.00",
Communities & Local Government,DCLG,15/01/2013,Local Services Support Grant,Localism,MEDWAY TOWNS D C (HSG),,,,5000218166,Grant Payable by Exchequer,ME4 4TR,"62,566.00",
Communities & Local Government,DCLG,15/01/2013,Local Services Support Grant,Localism,MELTON BC,,,,5000218167,Grant Payable by Exchequer,LE13 0UL,"5,958.00",
Communities & Local Government,DCLG,15/01/2013,Local Services Support Grant,Localism,MENDIP DISTRICT COUNCIL,,,,5000218168,Grant Payable by Exchequer,BA4 5BA,"17,045.00",
Communities & Local Government,DCLG,15/01/2013,Local Services Support Grant,Localism,MERTON LB,,,,5000218347,Grant Payable by Exchequer,SM4 5DX,"57,926.00",
Communities & Local Government,DCLG,15/01/2013,Local Services Support Grant,Localism,MID DEVON DC,,,,5000218169,Grant Payable by Exchequer,EX16 6PP,"4,790.00",
Communities & Local Government,DCLG,15/01/2013,Local Services Support Grant,Localism,MID SUFFOLK DC,,,,5000218170,Grant Payable by Exchequer,IP1 2DH,"4,790.00",
Communities & Local Government,DCLG,15/01/2013,Local Services Support Grant,Localism,MID SUSSEX DC,,,,5000218171,Grant Payable by Exchequer,RH16 1SS,"7,125.00",
Communities & Local Government,DCLG,15/01/2013,Local Services Support Grant,Localism,MIDDLESBROUGH BC,,,,5000218348,Grant Payable by Exchequer,TS1 2QQ,"41,729.00",
Communities & Local Government,DCLG,15/01/2013,Local Services Support Grant,Localism,MILTON KEYNES BC,,,,5000218349,Grant Payable by Exchequer,MK9 3WJ,"59,662.00",
Communities & Local Government,DCLG,15/01/2013,Local Services Support Grant,Localism,MOLE VALLEY DC,,,,5000218172,Grant Payable by Exchequer,RH4 1SJ,"4,168.00",
Communities & Local Government,DCLG,15/01/2013,Local Services Support Grant,Localism,NEW FOREST DC,,Public Bodies,,5000218173,Grant Payable by Exchequer,SO43 9ZG,"6,541.00",
Communities & Local Government,DCLG,15/01/2013,Local Services Support Grant,Localism,NEWARK & SHERWOOD DC (HSG),,,,5000218174,Grant Payable by Exchequer,NG23 5QX,"6,541.00",
Communities & Local Government,DCLG,15/01/2013,Local Services Support Grant,Localism,NEWCASTLE UNDER LYME BC,,,,5000218350,Grant Payable by Exchequer,ST5 2AG,"10,626.00",
Communities & Local Government,DCLG,15/01/2013,Local Services Support Grant,Localism,NEWCASTLE UPON TYNE DC,,,,5000218351,Grant Payable by Exchequer,NE99 1RD,"73,279.00",
Communities & Local Government,DCLG,15/01/2013,Local Services Support Grant,Localism,NORFOLK COUNTY COUNCIL,,,,5000218353,Grant Payable by Exchequer,NR1 2DW,"155,292.00",
Communities & Local Government,DCLG,15/01/2013,Local Services Support Grant,Localism,NORTH DEVON DC,,,,5000218175,Grant Payable by Exchequer,EX31 1EA,"11,443.00",
Communities & Local Government,DCLG,15/01/2013,Local Services Support Grant,Localism,NORTH DORSET DC,,,,5000218176,Grant Payable by Exchequer,DT11 7LL,"4,168.00",
Communities & Local Government,DCLG,15/01/2013,Local Services Support Grant,Localism,NORTH EAST DERBYSHIRE DC,,,,5000218354,Grant Payable by Exchequer,S40 1LF,"8,876.00",
Communities & Local Government,DCLG,15/01/2013,Local Services Support Grant,Localism,NORTH EAST LINCOLN DC (HSG),,,,5000218177,Grant Payable by Exchequer,DN35 8LN,"50,690.00",
Communities & Local Government,DCLG,15/01/2013,Local Services Support Grant,Localism,NORTH HERTS DC (HOUSING) (HSG),,,,5000218178,Grant Payable by Exchequer,SG6 3HN,"7,358.00",
Communities & Local Government,DCLG,15/01/2013,Local Services Support Grant,Localism,NORTH KESTEVEN DC,,,,5000218355,Grant Payable by Exchequer,NG34 7EF,"6,541.00",
Communities & Local Government,DCLG,15/01/2013,Local Services Support Grant,Localism,NORTH LINCOLNSHIRE DC (HSG),,Public Bodies,,5000218179,Grant Payable by Exchequer,DN16 1AB,"51,963.00",
Communities & Local Government,DCLG,15/01/2013,Local Services Support Grant,Localism,NORTH NORFOLK DC,,,,5000218180,Grant Payable by Exchequer,NR27 9EJ,"10,042.00",
Communities & Local Government,DCLG,15/01/2013,Local Services Support Grant,Localism,NORTH SOMERSET DC,,,,5000218356,Grant Payable by Exchequer,BS23 1LL,"77,993.00",
Communities & Local Government,DCLG,15/01/2013,Local Services Support Grant,Localism,NORTH TYNESIDE MBC,,,,5000218357,Grant Payable by Exchequer,NE27 0BY,"45,165.00",
Communities & Local Government,DCLG,15/01/2013,Local Services Support Grant,Localism,NORTH WARWICKSHIRE BC,,Large,,5000218181,Grant Payable by Exchequer,CV9 1DE,"4,790.00",
Communities & Local Government,DCLG,15/01/2013,Local Services Support Grant,Localism,NORTH WEST LEICESTER DC,,,,5000218182,Grant Payable by Exchequer,LE67 3FJ,"4,168.00",
Communities & Local Government,DCLG,15/01/2013,Local Services Support Grant,Localism,NORTH YORKSHIRE CC (DL7 8AL),,,,5000218358,Grant Payable by Exchequer,DL7 8AL,"113,899.00",
Communities & Local Government,DCLG,15/01/2013,Local Services Support Grant,Localism,NORTHAMPTON BOROUGH COUNCIL,,,,5000218359,Grant Payable by Exchequer,NN4 7NR,"15,294.00",
Communities & Local Government,DCLG,15/01/2013,Local Services Support Grant,Localism,NORTHAMPTONSHIRE COUNTY COUNCIL,,,,5000218360,Grant Payable by Exchequer,NN4 7BR,"102,154.00",
Communities & Local Government,DCLG,15/01/2013,Local Services Support Grant,Localism,NORTHUMBERLAND COUNTY COUNCIL,,,,5000218444,Grant Payable by Exchequer,NE61 2EF,"92,115.00",
Communities & Local Government,DCLG,15/01/2013,Local Services Support Grant,Localism,NORWICH CITY CNCL,,,,5000218361,Grant Payable by Exchequer,NR2 1NH,"28,132.00",
Communities & Local Government,DCLG,15/01/2013,Local Services Support Grant,Localism,NOTTINGHAM CITY COUNCIL,,,,5000218362,Grant Payable by Exchequer,M33 0DJ,"101,237.00",
Communities & Local Government,DCLG,15/01/2013,Local Services Support Grant,Localism,NOTTINGHAMSHIRE COUNTY CNCL,,,,5000218363,Grant Payable by Exchequer,NG1 4BU,"144,920.00",
Communities & Local Government,DCLG,15/01/2013,Local Services Support Grant,Localism,NUNEATON & BEDWORTH BC,,,,5000218364,Grant Payable by Exchequer,CV11 5AA,"6,541.00",
Communities & Local Government,DCLG,15/01/2013,Local Services Support Grant,Localism,OADBY & WIGSTON BC (HSG),,,,5000218183,Grant Payable by Exchequer,LE8 2DR,"4,168.00",
Communities & Local Government,DCLG,15/01/2013,Local Services Support Grant,Localism,OLDHAM MBC,,,,5000218365,Grant Payable by Exchequer,OL1 1UH,"38,551.00",
Communities & Local Government,DCLG,15/01/2013,Local Services Support Grant,Localism,OXFORD CITY COUNCIL,,,,5000218366,Grant Payable by Exchequer,OX1 1DF,"86,901.00",
Communities & Local Government,DCLG,15/01/2013,Local Services Support Grant,Localism,OXFORDSHIRE CC,,,,5000218367,Grant Payable by Exchequer,OX1 1TH,"116,185.00",
Communities & Local Government,DCLG,15/01/2013,Local Services Support Grant,Localism,PENDLE BC,,,,5000218368,Grant Payable by Exchequer,BB9 OLX,"193,044.00",
Communities & Local Government,DCLG,15/01/2013,Local Services Support Grant,Localism,PETERBOROUGH CITY CNCL,,,,5000218369,Grant Payable by Exchequer,PE1 1HG,"56,029.00",
Communities & Local Government,DCLG,15/01/2013,Local Services Support Grant,Localism,PLYMOUTH CITY CNCL,,,,5000218370,Grant Payable by Exchequer,PL1 2AA,"86,842.00",
Communities & Local Government,DCLG,15/01/2013,Local Services Support Grant,Localism,POOLE BC (HSG),,,,5000218184,Grant Payable by Exchequer,BH15 2RU,"33,524.00",
Communities & Local Government,DCLG,15/01/2013,Local Services Support Grant,Localism,PORTSMOUTH CITY COUNCIL,,,,5000218371,Grant Payable by Exchequer,PO1 2AR,"80,281.00",
Communities & Local Government,DCLG,15/01/2013,Local Services Support Grant,Localism,PRESTON BC,,,,5000218372,Grant Payable by Exchequer,PR1 2RL,"125,850.00",
Communities & Local Government,DCLG,15/01/2013,Local Services Support Grant,Localism,PURBECK DC,,,,5000218185,Grant Payable by Exchequer,DT2 8UP,"4,168.00",
Communities & Local Government,DCLG,15/01/2013,Local Services Support Grant,Localism,READING BC,,,,5000218373,Grant Payable by Exchequer,RG1 7TD,"70,892.00",
Communities & Local Government,DCLG,15/01/2013,Local Services Support Grant,Localism,REDCAR & CLEVELAND BOROUGH COUNCIL,,,,5000218375,Grant Payable by Exchequer,TS10 1RT,"54,149.00",
Communities & Local Government,DCLG,15/01/2013,Local Services Support Grant,Localism,REDDITCH BC,,,,5000218376,Grant Payable by Exchequer,B98 8AH,"8,291.00",
Communities & Local Government,DCLG,15/01/2013,Local Services Support Grant,Localism,REIGATE & BANSTEAD BC,,,,5000218377,Grant Payable by Exchequer,RH2 OSH,"4,790.00",
Communities & Local Government,DCLG,15/01/2013,Local Services Support Grant,Localism,RIBBLE VALLEY BC,,,,5000218186,Grant Payable by Exchequer,BB7 2RA,"4,168.00",
Communities & Local Government,DCLG,15/01/2013,Local Services Support Grant,Localism,RICHMOND UPON THAMES LB,,,,5000218378,Grant Payable by Exchequer,TW1 3BZ,"76,526.00",
Communities & Local Government,DCLG,15/01/2013,Local Services Support Grant,Localism,RICHMONDSHIRE DC,,,,5000218187,Grant Payable by Exchequer,DL10 4JE,"6,550.00",
Communities & Local Government,DCLG,15/01/2013,Local Services Support Grant,Localism,ROCHDALE MBC,,,,5000218379,Grant Payable by Exchequer,OL16 1LQ,"54,669.00",
Communities & Local Government,DCLG,15/01/2013,Local Services Support Grant,Localism,ROCHFORD DISTRICT COUNCIL,,,,5000218380,Grant Payable by Exchequer,SS4 1BW,"4,168.00",
Communities & Local Government,DCLG,15/01/2013,Local Services Support Grant,Localism,ROSSENDALE BC,,,,5000218381,Grant Payable by Exchequer,BB4 7LZ,"7,125.00",
Communities & Local Government,DCLG,15/01/2013,Local Services Support Grant,Localism,ROTHER DC (HSG),,,,5000218188,Grant Payable by Exchequer,TN39 3JX,"8,876.00",
Communities & Local Government,DCLG,15/01/2013,Local Services Support Grant,Localism,ROTHERHAM MBC,,,,5000218382,Grant Payable by Exchequer,S60 1AE,"63,275.00",
Communities & Local Government,DCLG,15/01/2013,Local Services Support Grant,Localism,ROYAL BOROUGH OF KENSINGTON & CHELS,,,,5000218331,Grant Payable by Exchequer,W8 7NX,"237,802.00",
Communities & Local Government,DCLG,15/01/2013,Local Services Support Grant,Localism,RUGBY BC,,,,5000218383,Grant Payable by Exchequer,CV21 2LA,"5,958.00",
Communities & Local Government,DCLG,15/01/2013,Local Services Support Grant,Localism,RUNNYMEDE BOROUGH COUNCIL,,,,5000218384,Grant Payable by Exchequer,KT15 2AH,"7,125.00",
Communities & Local Government,DCLG,15/01/2013,Local Services Support Grant,Localism,RUSHCLIFFE BOROUGH COUNCIL,,,,5000218189,Grant Payable by Exchequer,NG2 5FE,"4,168.00",
Communities & Local Government,DCLG,15/01/2013,Local Services Support Grant,Localism,RUSHMOOR BC,,,,5000218385,Grant Payable by Exchequer,GU14 7JU,"8,291.00",
Communities & Local Government,DCLG,15/01/2013,Local Services Support Grant,Localism,RUTLAND CC,,,,5000218386,Grant Payable by Exchequer,LE15 6HP,"21,647.00",
Communities & Local Government,DCLG,15/01/2013,Local Services Support Grant,Localism,RYEDALE DC,,,,5000218190,Grant Payable by Exchequer,YO17 0HH,"7,125.00",
Communities & Local Government,DCLG,15/01/2013,Local Services Support Grant,Localism,SALFORD CITY CNCL,,,,5000218387,Grant Payable by Exchequer,M27 5AW,"59,098.00",
Communities & Local Government,DCLG,15/01/2013,Local Services Support Grant,Localism,SANDWELL MBC,,,,5000218388,Grant Payable by Exchequer,B69 3BS,"46,210.00",
Communities & Local Government,DCLG,15/01/2013,Local Services Support Grant,Localism,SCARBOROUGH BC,,Large,,5000218191,Grant Payable by Exchequer,YO11 2HG,"5,490.00",
Communities & Local Government,DCLG,15/01/2013,Local Services Support Grant,Localism,SEDGEMOOR DC,,,,5000218192,Grant Payable by Exchequer,TA6 3AR,"10,042.00",
Communities & Local Government,DCLG,15/01/2013,Local Services Support Grant,Localism,SEFTON MBC,,,,5000218389,Grant Payable by Exchequer,L20 3NQ,"43,256.00",
Communities & Local Government,DCLG,15/01/2013,Local Services Support Grant,Localism,SELBY DC,,,,5000218193,Grant Payable by Exchequer,YO8 0SA,"9,459.00",
Communities & Local Government,DCLG,15/01/2013,Local Services Support Grant,Localism,SEVENOAKS DC,,,,5000218194,Grant Payable by Exchequer,TN13 1HG,"7,708.00",
Communities & Local Government,DCLG,15/01/2013,Local Services Support Grant,Localism,SHEFFIELD CITY CNCL,,,,5000218390,Grant Payable by Exchequer,S1 1UR,"114,061.00",
Communities & Local Government,DCLG,15/01/2013,Local Services Support Grant,Localism,SHEPWAY DISTRICT COUNCIL,,,,5000218195,Grant Payable by Exchequer,CT20 2QY,"9,459.00",
Communities & Local Government,DCLG,15/01/2013,Local Services Support Grant,Localism,SHROPSHIRE UNITARY AUTHORITY,,,,5000218449,Grant Payable by Exchequer,SY2 6ND,"92,804.00",
Communities & Local Government,DCLG,15/01/2013,Local Services Support Grant,Localism,SLOUGH BOROUGH COUNCIL,,,,5000218391,Grant Payable by Exchequer,SL1 3UQ,"47,127.00",
Communities & Local Government,DCLG,15/01/2013,Local Services Support Grant,Localism,SOLIHULL MBC,,,,5000218392,Grant Payable by Exchequer,B91 3QR,"41,973.00",
Communities & Local Government,DCLG,15/01/2013,Local Services Support Grant,Localism,SOMERSET COUNTY CNCL,,,,5000218393,Grant Payable by Exchequer,TA1 4DY,"118,743.00",
Communities & Local Government,DCLG,15/01/2013,Local Services Support Grant,Localism,SOUTH BUCKS DC (HSG),,,,5000218196,Grant Payable by Exchequer,UB9 4LH,"4,790.00",
Communities & Local Government,DCLG,15/01/2013,Local Services Support Grant,Localism,SOUTH CAMBRIDGESHIRE DC,,,,5000218197,Grant Payable by Exchequer,CB23 6EA,"4,207.00",
Communities & Local Government,DCLG,15/01/2013,Local Services Support Grant,Localism,SOUTH DERBYSHIRE D C,,,,5000218198,Grant Payable by Exchequer,DE11 0AH,"5,374.00",
Communities & Local Government,DCLG,15/01/2013,Local Services Support Grant,Localism,SOUTH GLOUCESTERSHIRE DC (HSG),,,,5000218199,Grant Payable by Exchequer,BS15 2TR,"59,233.00",
Communities & Local Government,DCLG,15/01/2013,Local Services Support Grant,Localism,SOUTH HAMS DC,,,,5000218200,Grant Payable by Exchequer,TQ9 5NE,"7,125.00",
Communities & Local Government,DCLG,15/01/2013,Local Services Support Grant,Localism,SOUTH HOLLAND,,,,5000218201,Grant Payable by Exchequer,PE11 2XE,"6,541.00",
Communities & Local Government,DCLG,15/01/2013,Local Services Support Grant,Localism,SOUTH KESTEVEN DC (HSG),,,,5000218202,Grant Payable by Exchequer,NG31 6PZ,"8,876.00",
Communities & Local Government,DCLG,15/01/2013,Local Services Support Grant,Localism,SOUTH LAKELAND DC,,,,5000218203,Grant Payable by Exchequer,LA49 4DQ,"7,125.00",
Communities & Local Government,DCLG,15/01/2013,Local Services Support Grant,Localism,SOUTH NORFOLK DC,,,,5000218204,Grant Payable by Exchequer,NR15 2XE,"16,461.00",
Communities & Local Government,DCLG,15/01/2013,Local Services Support Grant,Localism,SOUTH NORTHAMPTONSHIRE DC,,,,5000218205,Grant Payable by Exchequer,NN12 7AE,"5,490.00",
Communities & Local Government,DCLG,15/01/2013,Local Services Support Grant,Localism,SOUTH OXFORDSHIRE DC,,,,5000218206,Grant Payable by Exchequer,OX10 8HQ,"4,168.00",
Communities & Local Government,DCLG,15/01/2013,Local Services Support Grant,Localism,SOUTH RIBBLE BC,,,,5000218394,Grant Payable by Exchequer,PR5 1DH,"4,790.00",
Communities & Local Government,DCLG,15/01/2013,Local Services Support Grant,Localism,SOUTH SOMERSET DC,,,,5000218207,Grant Payable by Exchequer,BA20 2DS,"6,191.00",
Communities & Local Government,DCLG,15/01/2013,Local Services Support Grant,Localism,SOUTH STAFFORDSHIRE DC,,,,5000218208,Grant Payable by Exchequer,WV8 1PX,"4,168.00",
Communities & Local Government,DCLG,15/01/2013,Local Services Support Grant,Localism,SOUTH TYNESIDE COUNCIL,,,,5000218395,Grant Payable by Exchequer,NE33 2RL,"40,714.00",
Communities & Local Government,DCLG,15/01/2013,Local Services Support Grant,Localism,SOUTHAMPTON CITY CNCL,,,,5000218396,Grant Payable by Exchequer,SO14 7LF,"84,823.00",
Communities & Local Government,DCLG,15/01/2013,Local Services Support Grant,Localism,SOUTHEND ON SEA BC,,,,5000218397,Grant Payable by Exchequer,SS2 6EP,"52,222.00",
Communities & Local Government,DCLG,15/01/2013,Local Services Support Grant,Localism,SOUTHWARK LB,,,,5000218398,Grant Payable by Exchequer,SE1 2QH,"181,486.00",
Communities & Local Government,DCLG,15/01/2013,Local Services Support Grant,Localism,SPELTHORNE DC,,,,5000218209,Grant Payable by Exchequer,TW18 1XB,"4,168.00",
Communities & Local Government,DCLG,15/01/2013,Local Services Support Grant,Localism,ST ALBANS CITY COUNCIL,,,,5000218399,Grant Payable by Exchequer,AL1 3JE,"6,541.00",
Communities & Local Government,DCLG,15/01/2013,Local Services Support Grant,Localism,ST EDMUNDSBURY (HSG),,,,5000218210,Grant Payable by Exchequer,IP33 3YS,"4,168.00",
Communities & Local Government,DCLG,15/01/2013,Local Services Support Grant,Localism,ST HELENS MBC,,,,5000218400,Grant Payable by Exchequer,WA10 1HP,"40,261.00",
Communities & Local Government,DCLG,15/01/2013,Local Services Support Grant,Localism,STAFFORD BC,,,,5000218401,Grant Payable by Exchequer,ST16 3AQ,"4,207.00",
Communities & Local Government,DCLG,15/01/2013,Local Services Support Grant,Localism,STAFFORDSHIRE COUNTY CNCL,,,,5000218402,Grant Payable by Exchequer,ST16 2LH,"147,685.00",
Communities & Local Government,DCLG,15/01/2013,Local Services Support Grant,Localism,STAFFORDSHIRE MOORLANDS DC,,,,5000218211,Grant Payable by Exchequer,ST13 6HQ,"4,790.00",
Communities & Local Government,DCLG,15/01/2013,Local Services Support Grant,Localism,STEVENAGE BC,,,,5000218403,Grant Payable by Exchequer,SG1 1HN,"5,958.00",
Communities & Local Government,DCLG,15/01/2013,Local Services Support Grant,Localism,STOCKPORT MBC,,,,5000218404,Grant Payable by Exchequer,SK1 3XE,"51,808.00",
Communities & Local Government,DCLG,15/01/2013,Local Services Support Grant,Localism,STOCKTON-ON-TEES BC (HSG),,,,5000218212,Grant Payable by Exchequer,TS23 2YS,"53,929.00",
Communities & Local Government,DCLG,15/01/2013,Local Services Support Grant,Localism,STOKE ON TRENT CITY COUNCIL,,,,5000218405,Grant Payable by Exchequer,ST4 1RJ,"99,894.00",
Communities & Local Government,DCLG,15/01/2013,Local Services Support Grant,Localism,STRATFORD ON AVON DC,,,,5000218406,Grant Payable by Exchequer,CV37 6HX,"8,291.00",
Communities & Local Government,DCLG,15/01/2013,Local Services Support Grant,Localism,STROUD DC (HSG),,,,5000218213,Grant Payable by Exchequer,GL5 4UB,"5,958.00",
Communities & Local Government,DCLG,15/01/2013,Local Services Support Grant,Localism,SUFFOLK CC (SOCIAL CARE SERV) (H,,,,5000218214,Grant Payable by Exchequer,IP4 1LH,"146,299.00",
Communities & Local Government,DCLG,15/01/2013,Local Services Support Grant,Localism,SUFFOLK COASTAL DC (HSG),,,,5000218215,Grant Payable by Exchequer,IP12 1AU,"5,958.00",
Communities & Local Government,DCLG,15/01/2013,Local Services Support Grant,Localism,SURREY COUNTY CNCL,,,,5000218407,Grant Payable by Exchequer,KT1 2EA,"175,506.00",
Communities & Local Government,DCLG,15/01/2013,Local Services Support Grant,Localism,SURREY HEATH BC,,,,5000218408,Grant Payable by Exchequer,GU15 3HD,"4,168.00",
Communities & Local Government,DCLG,15/01/2013,Local Services Support Grant,Localism,SUTTON LB,,,,5000218409,Grant Payable by Exchequer,SM1 1EA,"57,267.00",
Communities & Local Government,DCLG,15/01/2013,Local Services Support Grant,Localism,SWALE BC,,,,5000218410,Grant Payable by Exchequer,ME10 3HT,"7,708.00",
Communities & Local Government,DCLG,15/01/2013,Local Services Support Grant,Localism,SWINDON BC,,,,5000218411,Grant Payable by Exchequer,SN1 2JH,"46,824.00",
Communities & Local Government,DCLG,15/01/2013,Local Services Support Grant,Localism,TAMESIDE MBC,,,,5000218412,Grant Payable by Exchequer,OL6 6DL,"39,152.00",
Communities & Local Government,DCLG,15/01/2013,Local Services Support Grant,Localism,TAMWORTH BOROUGH COUNCIL,,,,5000218413,Grant Payable by Exchequer,B79 7BZ,"13,610.00",
Communities & Local Government,DCLG,15/01/2013,Local Services Support Grant,Localism,TANDRIDGE DC,,,,5000218216,Grant Payable by Exchequer,RH8 0BT,"4,168.00",
Communities & Local Government,DCLG,15/01/2013,Local Services Support Grant,Localism,TAUNTON DEANE BC,,,,5000218217,Grant Payable by Exchequer,TA1 1HE,"11,793.00",
Communities & Local Government,DCLG,15/01/2013,Local Services Support Grant,Localism,TEIGNBRIDGE DC,,,,5000218218,Grant Payable by Exchequer,TQ12 4XX,"9,459.00",
Communities & Local Government,DCLG,15/01/2013,Local Services Support Grant,Localism,TELFORD & WREKIN DC,,,,5000218414,Grant Payable by Exchequer,TF3 4LF,"49,420.00",
Communities & Local Government,DCLG,15/01/2013,Local Services Support Grant,Localism,TENDRING DC,,,,5000218219,Grant Payable by Exchequer,CO15 1SE,"7,125.00",
Communities & Local Government,DCLG,15/01/2013,Local Services Support Grant,Localism,TEST VALLEY BC,,,,5000218220,Grant Payable by Exchequer,SP10 3AJ,"7,358.00",
Communities & Local Government,DCLG,15/01/2013,Local Services Support Grant,Localism,TEWKESBURY BC,,,,5000218221,Grant Payable by Exchequer,GL20 5TT,"4,168.00",
Communities & Local Government,DCLG,15/01/2013,Local Services Support Grant,Localism,THANET DC,,,,5000218222,Grant Payable by Exchequer,CT8 1XZ,"49,084.00",
Communities & Local Government,DCLG,15/01/2013,Local Services Support Grant,Localism,THREE RIVERS DC,,,,5000218415,Grant Payable by Exchequer,WD3 1RL,"4,790.00",
Communities & Local Government,DCLG,15/01/2013,Local Services Support Grant,Localism,THURROCK  BOROUGH COUNCIL,,,,5000218416,Grant Payable by Exchequer,RM17 6LT,"60,812.00",
Communities & Local Government,DCLG,15/01/2013,Local Services Support Grant,Localism,TONBRIDGE & MALLING BC,,,,5000218223,Grant Payable by Exchequer,ME19 6LZ,"4,790.00",
Communities & Local Government,DCLG,15/01/2013,Local Services Support Grant,Localism,TORBAY BC,,,,5000218417,Grant Payable by Exchequer,TQ1 3DR,"49,236.00",
Communities & Local Government,DCLG,15/01/2013,Local Services Support Grant,Localism,TORRIDGE DC,,,,5000218224,Grant Payable by Exchequer,EX39 2HT,"8,876.00",
Communities & Local Government,DCLG,15/01/2013,Local Services Support Grant,Localism,TOWER HAMLETS LB (HSG),,,,5000218225,Grant Payable by Exchequer,E14 2BG,"183,834.00",
Communities & Local Government,DCLG,15/01/2013,Local Services Support Grant,Localism,TRAFFORD MBC,,,,5000218418,Grant Payable by Exchequer,M32 0YY,"39,912.00",
Communities & Local Government,DCLG,15/01/2013,Local Services Support Grant,Localism,TUNBRIDGE WELLS BC,,,,5000218226,Grant Payable by Exchequer,TN1 1RS,"7,358.00",
Communities & Local Government,DCLG,15/01/2013,Local Services Support Grant,Localism,UTTLESFORD DC,,,,5000218227,Grant Payable by Exchequer,CB11 4ER,"7,125.00",
Communities & Local Government,DCLG,15/01/2013,Local Services Support Grant,Localism,VALE OF WHITE HORSE DC,,,,5000218228,Grant Payable by Exchequer,OX14 3JH,"7,125.00",
Communities & Local Government,DCLG,15/01/2013,Local Services Support Grant,Localism,WALSALL MBC,,,,5000218420,Grant Payable by Exchequer,WS1 1TW,"47,297.00",
Communities & Local Government,DCLG,15/01/2013,Local Services Support Grant,Localism,WALTHAM FOREST LB,,,,5000218421,Grant Payable by Exchequer,E17 4JA,"65,898.00",
Communities & Local Government,DCLG,15/01/2013,Local Services Support Grant,Localism,WANDSWORTH LB,,,,5000218422,Grant Payable by Exchequer,SW18 2PU,"102,399.00",
Communities & Local Government,DCLG,15/01/2013,Local Services Support Grant,Localism,WARRINGTON BC,,,,5000218423,Grant Payable by Exchequer,WA1 1BN,"50,919.00",
Communities & Local Government,DCLG,15/01/2013,Local Services Support Grant,Localism,WARWICK,,,,5000218424,Grant Payable by Exchequer,CV32 4NW,"7,125.00",
Communities & Local Government,DCLG,15/01/2013,Local Services Support Grant,Localism,WARWICKSHIRE COUNTY CNCL,,,,5000218425,Grant Payable by Exchequer,CV34 4RH,"94,844.00",
Communities & Local Government,DCLG,15/01/2013,Local Services Support Grant,Localism,WATFORD COUNCIL,,,,5000218426,Grant Payable by Exchequer,WD17 3EX,"23,463.00",
Communities & Local Government,DCLG,15/01/2013,Local Services Support Grant,Localism,WAVENEY DISTRICT COUNCIL,,Large,,5000218229,Grant Payable by Exchequer,NR32 1HS,"8,291.00",
Communities & Local Government,DCLG,15/01/2013,Local Services Support Grant,Localism,WAVERLEY BC V177,,,,5000218230,Grant Payable by Exchequer,GU7 1HR,"4,168.00",
Communities & Local Government,DCLG,15/01/2013,Local Services Support Grant,Localism,WEALDEN DC,,,,5000218231,Grant Payable by Exchequer,BN22 9LN,"8,876.00",
Communities & Local Government,DCLG,15/01/2013,Local Services Support Grant,Localism,WELLINGBOROUGH,,,,5000218427,Grant Payable by Exchequer,NN8 1BN,"4,790.00",
Communities & Local Government,DCLG,15/01/2013,Local Services Support Grant,Localism,WELWYN HATFIELD COUNCIL,,,,5000218232,Grant Payable by Exchequer,AL8 6AE,"15,711.00",
Communities & Local Government,DCLG,15/01/2013,Local Services Support Grant,Localism,WEST BERKSHIRE COUNCIL,,,,5000218428,Grant Payable by Exchequer,RG14 2AF,"47,931.00",
Communities & Local Government,DCLG,15/01/2013,Local Services Support Grant,Localism,WEST DEVON BC,,,,5000218233,Grant Payable by Exchequer,PL19 0BZ,"4,168.00",
Communities & Local Government,DCLG,15/01/2013,Local Services Support Grant,Localism,WEST DORSET DC,,,,5000218234,Grant Payable by Exchequer,DT1 1UZ,"8,175.00",
Communities & Local Government,DCLG,15/01/2013,Local Services Support Grant,Localism,WEST LANCASHIRE BC,,,,5000218429,Grant Payable by Exchequer,L39 2DF,"4,168.00",
Communities & Local Government,DCLG,15/01/2013,Local Services Support Grant,Localism,WEST LINDSEY DC,,,,5000218235,Grant Payable by Exchequer,DN21 2NA,"5,374.00",
Communities & Local Government,DCLG,15/01/2013,Local Services Support Grant,Localism,WEST OXFORDSHIRE DC,,,,5000218236,Grant Payable by Exchequer,OX28 1NB,"11,210.00",
Communities & Local Government,DCLG,15/01/2013,Local Services Support Grant,Localism,WEST SOMERSET DC,,,,5000218237,Grant Payable by Exchequer,TA4 4QA,"4,168.00",
Communities & Local Government,DCLG,15/01/2013,Local Services Support Grant,Localism,WEST SUSSEX CC,,,,5000218430,Grant Payable by Exchequer,PO19 1RG,"129,112.00",
Communities & Local Government,DCLG,15/01/2013,Local Services Support Grant,Localism,WESTMINSTER CITY CNCL,,,,5000218431,Grant Payable by Exchequer,SW1E 6QP,"723,334.00",
Communities & Local Government,DCLG,15/01/2013,Local Services Support Grant,Localism,WEYMOUTH & PORTLAND BC,,,,5000218432,Grant Payable by Exchequer,DT4 8TA,"13,543.00",
Communities & Local Government,DCLG,15/01/2013,Local Services Support Grant,Localism,WIGAN MBC,,,,5000218433,Grant Payable by Exchequer,WN1 1YD,"71,883.00",
Communities & Local Government,DCLG,15/01/2013,Local Services Support Grant,Localism,WILTSHIRE COUNCIL,,,,5000218443,Grant Payable by Exchequer,BA14 4DS,"143,602.00",
Communities & Local Government,DCLG,15/01/2013,Local Services Support Grant,Localism,WINCHESTER CITY CNCL,,,,5000218238,Grant Payable by Exchequer,SO23 9LJ,"15,877.00",
Communities & Local Government,DCLG,15/01/2013,Local Services Support Grant,Localism,WINDSOR & MAIDENHEAD (HSG),,,,5000218239,Grant Payable by Exchequer,SL6 1RF,"36,969.00",
Communities & Local Government,DCLG,15/01/2013,Local Services Support Grant,Localism,WIRRAL MBC,,,,5000218434,Grant Payable by Exchequer,CH41 6BU,"67,714.00",
Communities & Local Government,DCLG,15/01/2013,Local Services Support Grant,Localism,WOKING BC,,,,5000218435,Grant Payable by Exchequer,GU21 1YL,"5,958.00",
Communities & Local Government,DCLG,15/01/2013,Local Services Support Grant,Localism,WOKINGHAM DC,,,,5000218436,Grant Payable by Exchequer,RG11 1WJ,"37,985.00",
Communities & Local Government,DCLG,15/01/2013,Local Services Support Grant,Localism,WOLVERHAMPTON MBC,,,,5000218437,Grant Payable by Exchequer,WV1 1RL,"51,241.00",
Communities & Local Government,DCLG,15/01/2013,Local Services Support Grant,Localism,WORCESTER CITY CNCL,,,,5000218438,Grant Payable by Exchequer,WR1 2EZ,"13,543.00",
Communities & Local Government,DCLG,15/01/2013,Local Services Support Grant,Localism,WORCESTERSHIRE COUNTY COUNCIL,,,,5000218439,Grant Payable by Exchequer,WR5 2NP,"93,512.00",
Communities & Local Government,DCLG,15/01/2013,Local Services Support Grant,Localism,WORTHING BC,,,,5000218440,Grant Payable by Exchequer,BN11 1HB,"12,493.00",
Communities & Local Government,DCLG,15/01/2013,Local Services Support Grant,Localism,WYCHAVON DISTRICT COUNCIL,,,,5000218240,Grant Payable by Exchequer,WR10 1PT,"7,358.00",
Communities & Local Government,DCLG,15/01/2013,Local Services Support Grant,Localism,WYCOMBE DC,,Medium,,5000218241,Grant Payable by Exchequer,HP11 1BB,"8,291.00",
Communities & Local Government,DCLG,15/01/2013,Local Services Support Grant,Localism,WYRE BC,,,,5000218242,Grant Payable by Exchequer,FY6 7PU,"5,725.00",
Communities & Local Government,DCLG,15/01/2013,Local Services Support Grant,Localism,WYRE FOREST DISTRICT COUNCIL,,,,5000218441,Grant Payable by Exchequer,DY10 1DA,"9,109.00",
Communities & Local Government,DCLG,15/01/2013,Local Services Support Grant,Localism,YORK CITY CNCL,,,,5000218442,Grant Payable by Exchequer,YO1 0EG,"61,859.00",
Communities & Local Government,DCLG,15/01/2013,Medals,Localism,ROYAL MINT,,Public Bodies,,5106187853,20% Long service medal,CF72 8YT,742.50,
Communities & Local Government,DCLG,15/01/2013,Medals,Localism,ROYAL MINT,,Public Bodies,,5106188184,20% Long service medal,CF72 8YT,683.10,
Communities & Local Government,DCLG,15/01/2013,Physical Storage,Finance & Corporate Services,CAMBERTOWN LTD,,Small,,5106188321,storage and fullfillment 11-12,S63 9BL,573.66,
Communities & Local Government,DCLG,15/01/2013,Printers,Neighbourhoods,DANWOOD FINANCIAL SERVICES LTD,,Large,,2300001953,Payment returned for document 5106187494,BS32 4GQ,-462.17,
Communities & Local Government,DCLG,15/01/2013,Professional services,Localism,GOVT ACTUARYS DEPARTMENT,,Public Bodies,,5106188297,Provision of Pension Advice LGPS,EC4A 1AB,"29,977.12",
Communities & Local Government,DCLG,15/01/2013,Professional services,Neighbourhoods,BUILDING RESEARCH ESTABLISHMENT,,Large,,5106188292,Code for Apr11 - Mar13 - CALLOFF ELEMENT,WD25 9XX,"2,025.10",
Communities & Local Government,DCLG,15/01/2013,Professional services,Neighbourhoods,BUILDING RESEARCH ESTABLISHMENT,,Large,,5106188293,Code for Apr11 - Mar13 - MILESTONES,WD25 9XX,705.60,
Communities & Local Government,DCLG,15/01/2013,Publicity,Neighbourhoods,ED EDITORIAL AND DESIGN LTD,,Micro,,5106188280,CASE STUDY BOOKLET ON LOW CARBON PRODUCT,CV5 9EA,"2,964.00",
Communities & Local Government,DCLG,15/01/2013,Research,Neighbourhoods,BUILDING RESEARCH ESTABLISHMENT,,Large,,5106188278,Technical Support on the Constructive Pr,WD25 9XX,"31,821.22",
Communities & Local Government,DCLG,15/01/2013,Steady State Service Provision,Finance & Corporate Services,ALLPAY LIMITED,,Medium,,5106188235,DC/DC Transaction Charges,HR1 3SE,510.85,
Communities & Local Government,DCLG,15/01/2013,Steady State Service Provision,Finance & Corporate Services,ALLPAY LIMITED,,Medium,,5106188235,Monthly Management Fee Payments,HR1 3SE,500.00,
Communities & Local Government,DCLG,15/01/2013,Subsidies to Public Corporations & Trading Fund,Neighbourhoods,HARINGEY LB,,,,5000218625,Grant Payable by Exchequer,N22 4TR,"56,139.00",Yes
Communities & Local Government,DCLG,15/01/2013,Training,Finance & Corporate Services,QA  LTD,,Large,,5106188276,PRINCE2� Re-registration & 2009 Conversi,LS12 6BD,247.00,
Communities & Local Government,DCLG,15/01/2013,Vehicle hire,Finance & Corporate Services,CYCLESCHEME LTD,,Large,,5106188317,Salaried Cycle to work scheme,BA1 2LN,643.97,
Communities & Local Government,DCLG,15/01/2013,Vehicle hire,Finance & Corporate Services,GOVERNMENT CAR & DESPATCH AGENCY,,Public Bodies,,5106188185,Ministerial Cars,SW8 5AX,915.40,
Communities & Local Government,DCLG,15/01/2013,Work In Progress Pre-Cert 40373 Spend,Neighbourhoods,ASTON UNIVERSITY,,Large,,7600004127,ERDF Claim - 7 - P1,B4 7ET,"4,865.05",
Communities & Local Government,DCLG,15/01/2013,Work In Progress Pre-Cert 40373 Spend,Neighbourhoods,BIRMINGHAM CITY COUNCIL (NOT RATES),,Large,,7600004131,ERDF Claim - 3 - P2,B1 1BB,"5,430.14",
Communities & Local Government,DCLG,15/01/2013,Work In Progress Pre-Cert 40373 Spend,Neighbourhoods,BIRMINGHAM SCIENCE PARK ASTON,,Small,,7600004120,ERDF Claim - 17 - P2,B7 4BB,"7,019.78",
Communities & Local Government,DCLG,15/01/2013,Work In Progress Pre-Cert 40373 Spend,Neighbourhoods,CITY OF BRISTOL COLLEGE,,,,7600004103,ERDF Claim - 13 - P1,BS2 2BB,"16,875.86",
Communities & Local Government,DCLG,15/01/2013,Work In Progress Pre-Cert 40373 Spend,Neighbourhoods,COVENTRY CITY COUNCIL,,Large,,7600004126,ERDF Claim - 2 - P5,CV1 5RR,"15,898.50",
Communities & Local Government,DCLG,15/01/2013,Work In Progress Pre-Cert 40373 Spend,Neighbourhoods,COVENTRY UNIVERSITY,,Large,,7600004105,ERDF Claim - 16 - P1,CV1 5FB,"27,332.22",
Communities & Local Government,DCLG,15/01/2013,Work In Progress Pre-Cert 40373 Spend,Neighbourhoods,COVENTRY UNIVERSITY,,Large,,7600004108,ERDF Claim - 14 - P1,CV1 5FB,"17,364.20",
Communities & Local Government,DCLG,15/01/2013,Work In Progress Pre-Cert 40373 Spend,Neighbourhoods,COVENTRY UNIVERSITY,,Large,,7600004109,ERDF Claim - 15 - P1,CV1 5FB,"32,495.25",
Communities & Local Government,DCLG,15/01/2013,Work In Progress Pre-Cert 40373 Spend,Neighbourhoods,COVENTRY UNIVERSITY ENTERPRISES LTD,,Medium,,7600004104,ERDF Claim - 21 - P1,CV1 2TT,"19,366.86",
Communities & Local Government,DCLG,15/01/2013,Work In Progress Pre-Cert 40373 Spend,Neighbourhoods,COVENTRY UNIVERSITY ENTERPRISES LTD,,Medium,,7600004107,ERDF Claim - 13 - P2,CV1 2TT,"15,910.08",
Communities & Local Government,DCLG,15/01/2013,Work In Progress Pre-Cert 40373 Spend,Neighbourhoods,COVENTRY UNIVERSITY ENTERPRISES LTD,,Medium,,7600004113,ERDF Claim - 23 - P1,CV1 2TT,"10,153.21",
Communities & Local Government,DCLG,15/01/2013,Work In Progress Pre-Cert 40373 Spend,Neighbourhoods,COVENTRY UNIVERSITY ENTERPRISES LTD,,Medium,,7600004119,ERDF Claim - 6 - P2,CV1 2TT,"21,206.90",
Communities & Local Government,DCLG,15/01/2013,Work In Progress Pre-Cert 40373 Spend,Neighbourhoods,COVENTRY UNIVERSITY ENTERPRISES LTD,,Medium,,7600004123,ERDF Claim - 10 - P2,CV1 2TT,"28,111.96",
Communities & Local Government,DCLG,15/01/2013,Work In Progress Pre-Cert 40373 Spend,Neighbourhoods,COVENTRY UNIVERSITY ENTERPRISES LTD,,Medium,,7600004128,ERDF Claim - 6 - P1,CV1 2TT,"9,957.86",
Communities & Local Government,DCLG,15/01/2013,Work In Progress Pre-Cert 40373 Spend,Neighbourhoods,ECONOMIC SOLUTIONS LIMITED,,Large,,7600004099,ERDF Claim - 27 - P1-MS,M1 5JW,"9,167.18",
Communities & Local Government,DCLG,15/01/2013,Work In Progress Pre-Cert 40373 Spend,Neighbourhoods,ECONOMIC SOLUTIONS LIMITED,,Large,,7600004100,ERDF Claim - 27 - P1-NW,M1 5JW,"75,890.36",
Communities & Local Government,DCLG,15/01/2013,Work In Progress Pre-Cert 40373 Spend,Neighbourhoods,ECONOMIC SOLUTIONS LIMITED,,Large,,7600004101,ERDF Claim - 28 - P1-MS,M1 5JW,"9,507.59",
Communities & Local Government,DCLG,15/01/2013,Work In Progress Pre-Cert 40373 Spend,Neighbourhoods,ECONOMIC SOLUTIONS LIMITED,,Large,,7600004102,ERDF Claim - 28 - P1-NW,M1 5JW,"39,575.27",
Communities & Local Government,DCLG,15/01/2013,Work In Progress Pre-Cert 40373 Spend,Neighbourhoods,GWE BUSINESS WEST LTD,,,,7600004129,ERDF Claim - 34 - P2,BS8 3RA,"90,470.04",
Communities & Local Government,DCLG,15/01/2013,Work In Progress Pre-Cert 40373 Spend,Neighbourhoods,HEART OF ENGLAND FINE FOODS,,Small,,7600004122,ERDF Claim - 8 - P2,SY1 3TG,"23,155.77",
Communities & Local Government,DCLG,15/01/2013,Work In Progress Pre-Cert 40373 Spend,Neighbourhoods,LINCONSHIRE COUNTY COUNCIL,,Large,,7600004124,ERDF Claim - 13 - P1,LN1 1YT,"24,232.15",
Communities & Local Government,DCLG,15/01/2013,Work In Progress Pre-Cert 40373 Spend,Neighbourhoods,NTH STAFFS CHAMBER OF COMM & IND,,Small,,7600004130,ERDF Claim - 24 - P2,ST1 5BE,"20,009.10",
Communities & Local Government,DCLG,15/01/2013,Work In Progress Pre-Cert 40373 Spend,Neighbourhoods,SANDWELL MBC,,Large,,7600004110,ERDF Claim - 8 - P3,B69 3BS,"24,134.88",
Communities & Local Government,DCLG,15/01/2013,Work In Progress Pre-Cert 40373 Spend,Neighbourhoods,SKILLS FOR ENTERPRISE LTD,,Small,,7600004136,ERDF Claim - 17 - P2,LE1 1QA,"9,927.05",
Communities & Local Government,DCLG,15/01/2013,Work In Progress Pre-Cert 40373 Spend,Neighbourhoods,SOLIHULL METROPOLITAN BC,,Large,,7600004111,ERDF Claim - 32 - P3,B91 3QS,"8,309.95",
Communities & Local Government,DCLG,15/01/2013,Work In Progress Pre-Cert 40373 Spend,Neighbourhoods,SOLIHULL METROPOLITAN BC,,Large,,7600004112,ERDF Claim - 4 - P5,B91 3QS,"7,886.60",
Communities & Local Government,DCLG,15/01/2013,Work In Progress Pre-Cert 40373 Spend,Neighbourhoods,SOLIHULL METROPOLITAN BC,,Large,,7600004121,ERDF Claim - 17 - P3,B91 3QS,"5,120.26",
Communities & Local Government,DCLG,15/01/2013,Work In Progress Pre-Cert 40373 Spend,Neighbourhoods,UNIVERSITY OF BIRMINGHAM,,Large,,7600004125,ERDF Claim - 9 - P1,B15 2TT,"21,505.08",
Communities & Local Government,DCLG,15/01/2013,Work In Progress Pre-Cert 40373 Spend,Neighbourhoods,UNIVERSITY OF WOLVERHAMPTON,,Large,,7600004106,ERDF Claim - 4 - P1,WV1 1SB,"99,299.37",
Communities & Local Government,DCLG,15/01/2013,Work In Progress Pre-Cert 40373 Spend,Neighbourhoods,UNIVERSITY OF WOLVERHAMPTON,,Large,,7600004115,ERDF Claim - 5 - P1,WV1 1SB,"38,507.78",
Communities & Local Government,DCLG,15/01/2013,Work In Progress Pre-Cert 40467 Spend,Neighbourhoods,COVENTRY UNIVERSITY,,Large,,7600004105,ERDF Claim - 16 - P1,CV1 5FB,"44,551.08",
Communities & Local Government,DCLG,15/01/2013,Work In Progress Pre-Cert 40467 Spend,Neighbourhoods,LIVERPOOL CITY COUNCIL,,,,7600004132,ERDF Claim - 2 - P3-MS,L2 2DH,"5,434.25",
Communities & Local Government,DCLG,15/01/2013,Work In Progress Pre-Cert 40467 Spend,Neighbourhoods,LIVERPOOL CITY COUNCIL,,,,7600004133,ERDF Claim - 3 - P3-MS,L2 2DH,"84,755.00",
Communities & Local Government,DCLG,15/01/2013,Work In Progress Pre-Cert 40467 Spend,Neighbourhoods,LIVERPOOL CITY COUNCIL,,,,7600004134,ERDF Claim - 4 - P3-MS,L2 2DH,"34,520.00",
Communities & Local Government,DCLG,15/01/2013,Work In Progress Pre-Cert 40467 Spend,Neighbourhoods,LIVERPOOL CITY COUNCIL,,,,7600004135,ERDF Claim - 5 - P3-MS,L2 2DH,"40,965.00",
Communities & Local Government,DCLG,15/01/2013,Work In Progress Pre-Cert 40467 Spend,Neighbourhoods,SHAWBROOK DEVELOPMENTS LTD,,Small,,7600004114,ERDF Claim - 6 - P4-NW,LS20 9AA,966.15,
Communities & Local Government,DCLG,15/01/2013,Work In Progress Pre-Cert 40467 Spend,Neighbourhoods,SHAWBROOK DEVELOPMENTS LTD,,Small,,7600004116,ERDF Claim - 7 - P4-NW,LS20 9AA,"1,117.47",
Communities & Local Government,DCLG,15/01/2013,Work In Progress Pre-Cert 40467 Spend,Neighbourhoods,SHAWBROOK DEVELOPMENTS LTD,,Small,,7600004117,ERDF Claim - 8 - P4-NW,LS20 9AA,"9,637.50",
Communities & Local Government,DCLG,15/01/2013,Work In Progress Pre-Cert 40467 Spend,Neighbourhoods,SHAWBROOK DEVELOPMENTS LTD,,Small,,7600004118,ERDF Claim - 9 - P4-NW,LS20 9AA,"2,500.00",
Communities & Local Government,DCLG,15/01/2013,Work In Progress Pre-Cert 40467 Spend,Neighbourhoods,SOLIHULL METROPOLITAN BC,,Large,,7600004121,ERDF Claim - 17 - P3,B91 3QS,"37,903.67",
Communities & Local Government,DCLG,15/01/2013,Work In Progress Pre-Cert 40467 Spend,Neighbourhoods,UNIVERSITY OF BIRMINGHAM,,Large,,7600004125,ERDF Claim - 9 - P1,B15 2TT,"541,939.43",
Communities & Local Government,DCLG,16/01/2013,Accommodation Service Charges,Finance & Corporate Services,HOMES & COMMUNITIES AGENCY,,Public Bodies,,5106188360,Cumberland House - Admin Fee @ 2.5%,NE11 0NA,"3,707.10",
Communities & Local Government,DCLG,16/01/2013,Accommodation Service Charges,Finance & Corporate Services,HOMES & COMMUNITIES AGENCY,,Public Bodies,,5106188360,Cumberland House Service Charge 2012-13,NE11 0NA,"17,011.96",
Communities & Local Government,DCLG,16/01/2013,Agency Staff,Finance & Corporate Services,CAPITA RESOURCING LTD,,Large,,5106188381,Interim Manager,SL6 1DP,"2,177.71",
Communities & Local Government,DCLG,16/01/2013,Agency Staff,Finance & Corporate Services,CAPITA RESOURCING LTD,,Large,,5106188383,CPD 0492030 Capita MSP,SL6 1DP,"4,825.21",
Communities & Local Government,DCLG,16/01/2013,Agency Staff,Finance & Corporate Services,CAPITA RESOURCING LTD,,Large,,5106188388,Interim Manager,SL6 1DP,"1,529.17",
Communities & Local Government,DCLG,16/01/2013,Agency Staff,Finance & Corporate Services,CAPITA RESOURCING LTD,,Large,,5106188393,Interim manager,SL6 1DP,760.30,
Communities & Local Government,DCLG,16/01/2013,Agency Staff,Finance & Corporate Services,CAPITA RESOURCING LTD,,Large,,5106188394,Interim Manager,SL6 1DP,"1,980.00",
Communities & Local Government,DCLG,16/01/2013,Agency Staff,Finance & Corporate Services,CAPITA RESOURCING LTD,,Large,,5106188396,Interim manager,SL6 1DP,"1,019.45",
Communities & Local Government,DCLG,16/01/2013,Agency Staff,Finance & Corporate Services,CAPITA RESOURCING LTD,,Large,,5106188397,Expenses,SL6 1DP,95.40,
Communities & Local Government,DCLG,16/01/2013,Agency Staff,Finance & Corporate Services,CAPITA RESOURCING LTD,,Large,,5106188397,Extension (1),SL6 1DP,664.48,
Communities & Local Government,DCLG,16/01/2013,Agency Staff,Finance & Corporate Services,OFFICE ANGELS LTD,,Large,,5106188295,Temporary HR Admin Resource,B37 7YE,305.29,
Communities & Local Government,DCLG,16/01/2013,Agency Staff,Finance & Corporate Services,OFFICE ANGELS LTD,,Large,,5106188299,Temporary HR Admin Resource,B37 7YE,305.28,
Communities & Local Government,DCLG,16/01/2013,Agency Staff,Finance & Corporate Services,PREMIER LONDON LTD,,Medium,,5106188338,Supply of 1 AO - 6 months - per day,EC2R 7HJ,782.10,
Communities & Local Government,DCLG,16/01/2013,Agency Staff,Finance & Corporate Services,PREMIER LONDON LTD,,Medium,,5106188343,Supplyof 1 AO - 6 months - per day,EC2R 7HJ,782.10,
Communities & Local Government,DCLG,16/01/2013,Agency Staff,Finance & Corporate Services,PREMIER LONDON LTD,,Medium,,5106188358,Supply of 1 AO - 6 months - per day,EC2R 7HJ,312.84,
Communities & Local Government,DCLG,16/01/2013,Agency Staff,Finance & Corporate Services,PREMIERE EMPLOYMENT GROUP LTD,,Large,,5106188357,Recuiting temporary PA,M3 2JA,252.54,
Communities & Local Government,DCLG,16/01/2013,Agency Staff,Finance & Corporate Services,SQUARE ONE RESOURCES LTD,,Medium,,5106188374,SAPDev 1.4.12-31.3.13,EC2A 2AD,"2,286.46",
Communities & Local Government,DCLG,16/01/2013,Agency Staff,Localism,CAPITA RESOURCING LTD,,Large,,5106188379,Extension (3),SL6 1DP,"3,112.88",
Communities & Local Government,DCLG,16/01/2013,Agency Staff,Localism,CAPITA RESOURCING LTD,,Large,,5106188390,Interim manager,SL6 1DP,475.99,
Communities & Local Government,DCLG,16/01/2013,Agency Staff,Localism,CAPITA RESOURCING LTD,,Large,,5106188391,Interim manager,SL6 1DP,"1,729.37",
Communities & Local Government,DCLG,16/01/2013,Agency Staff,Localism,MANPOWER UK LTD,,Large,,5106188362,Agency Staff,UB8 1AB,462.14,
Communities & Local Government,DCLG,16/01/2013,Agency Staff,Neighbourhoods,CAPITA RESOURCING LTD,,Large,,5106188376,Contractor ERDF,SL6 1DP,"1,044.00",
Communities & Local Government,DCLG,16/01/2013,Agency Staff,Neighbourhoods,CAPITA RESOURCING LTD,,Large,,5106188378,Extension (3),SL6 1DP,916.99,
Communities & Local Government,DCLG,16/01/2013,Agency Staff,Neighbourhoods,CAPITA RESOURCING LTD,,Large,,5106188380,Extension (3),SL6 1DP,"5,124.00",
Communities & Local Government,DCLG,16/01/2013,Agency Staff,Neighbourhoods,CAPITA RESOURCING LTD,,Large,,5106188382,Extension (2),SL6 1DP,"6,917.47",
Communities & Local Government,DCLG,16/01/2013,Agency Staff,Neighbourhoods,CAPITA RESOURCING LTD,,Large,,5106188384,Extension,SL6 1DP,"3,189.90",
Communities & Local Government,DCLG,16/01/2013,Agency Staff,Neighbourhoods,CAPITA RESOURCING LTD,,Large,,5106188385,Extension (2),SL6 1DP,"5,476.33",
Communities & Local Government,DCLG,16/01/2013,Agency Staff,Neighbourhoods,CAPITA RESOURCING LTD,,Large,,5106188389,Interim Manager,SL6 1DP,"2,203.34",
Communities & Local Government,DCLG,16/01/2013,Agency Staff,Neighbourhoods,CAPITA RESOURCING LTD,,Large,,5106188392,Interim Manager (Ext.1),SL6 1DP,"1,729.37",
Communities & Local Government,DCLG,16/01/2013,Current Grants to Non Profit Bodies,Neighbourhoods,CAMPAIGN TO PROTECT RURAL ENGLAND,,Medium,,2100226001,Neighbourhood Planning Community Support,SE1 0SW,"37,360.84",Yes
Communities & Local Government,DCLG,16/01/2013,Current Grants to Non Profit Bodies,Neighbourhoods,PRINCES FOUNDATION,,,,2100226002,Neighbourhood Planning Community Support,EC2A 3SG,"227,082.22",Yes
Communities & Local Government,DCLG,16/01/2013,Electricity,Finance & Corporate Services,BRITISH GAS TRADING LIMITED,,Large,,5106188329,Hempstead House Electricity,OX4 2JY,"4,485.82",
Communities & Local Government,DCLG,16/01/2013,Gas,Finance & Corporate Services,CORONA ENERGY LTD,,Medium,,5106188348,St Phillips Place Gas 2012-13,WD17 1JW,"2,791.85",
Communities & Local Government,DCLG,16/01/2013,Gas,Finance & Corporate Services,CORONA ENERGY LTD,,Medium,,5106188363,Queens Street Gas 2012-13,WD17 1JW,"2,151.14",
Communities & Local Government,DCLG,16/01/2013,Gas,Finance & Corporate Services,CORONA ENERGY LTD,,Medium,,5106188424,Mast House Gas 2012-13,WD17 1JW,326.41,
Communities & Local Government,DCLG,16/01/2013,Gas,Finance & Corporate Services,CORONA ENERGY LTD,,Medium,,5106188426,Paradise Circus Gas 2012-13,WD17 1JW,"1,913.48",
Communities & Local Government,DCLG,16/01/2013,"IT - PC, Network & Hardware",Neighbourhoods,COMPUTACENTER (UK) LTD,,Large,,5106188366,Synology DS412+ 4 Bay NAS Enclosure,AL10 9TW,493.49,
Communities & Local Government,DCLG,16/01/2013,IT - Service Contracts,Finance & Corporate Services,VERIZON UK LTD,,Large,,5106188432,Financial year 2012/13,RG2 6DA,"1,241.18",
